Workbook

Sheet readme
A1: Table S12. GO Terms, Pathways, and MPO Enrichment of Affected versus Control Subjects
A2: Header_name | B2: Description
A3: #GsID | B3: gene-set ID
A4: GsName | B4: gene-set name
A5: GsSize | B5: number of genes in the gene-set
A6: Case_N | B6: number of cases harbouring a CNV on a gene within this gene-set
A7: Ctrl_N | B7: number of controls harbouring a CNV on a gene within this gene-set
A8: Case_% | B8: fraction of cases harbouring a CNV on a gene within this gene-set (total: subjects with at least one exonic CNV)
A9: Ctrl_% | B9: fraction of controls harbouring a CNV on a gene within this gene-set (total: subjects with at least one exonic CNV)
A10: total_#exonicDEL_count_incases | B10: number of exonic deletions in cases
A11: #denovo_count_incases | B11: nuo. Of de novov CNVs in cases
A12: %denovos | B12: percentage of de novo CNVs
A13: FET-Pvalue | B13: gene-set association p-value (Fisher's Exact Test)
A14: FET-OR | B14: gene-set odds ratio
A15: LRM_GsN_Sign | B15: main coefficient sign
A16: LRM_GsN_Pvalue | B16: logistic regression model p-value (nominal)
A17: LRM_GsN_BHFDR | B17: Benjamini-Hochberg FDR q-value based on the logistic regression p-value (multiple test correction)
A18: FDR_bins | B18: the FDR bins used for the enrichment map
A19: CaseN_max10 | B19: same as 'Case_N' but only considering subjects with a maximum of 10 genes harbouring CNVs
A20: CtrlN_max10 | B20: same as 'Ctrl_N' but only considering subjects harbouring CNVs with a maximum of 10 genes
A21: Case%_max10 | B21: same as 'Case_%' but only considering subjects harbouring CNVs with a maximum of 10 genes
A22: Ctrl%_max10 | B22: same as 'Ctrl_%' but only considering subjects harbouring CNVs with a maximum of 10 genes
A23: FET-Pvalue_max10 | B23: same as 'FET_pv' but only considering subjects harbouring CNVs with a maximum of 10 genes
A24: FET-OR_max10 | B24: same as 'FET_OR' but only considering subjects harbouring CNVs with a maximum of 10 genes
A25: Disease_genes | B25: Overlapping enrichment in Disease Genes: ASD vs. ID. Note that all 'ASD genes' have been previously reported in ASD cases as well as in ID cases. But 'ID genes' have NOT been yet reported in ASD cases.
A26: Supporting_case_IDs | B26: listing of cases supporting the enrichment for that gene-set
A27: Supporting_ctrl_IDs | B27: listing of controls supporting the enrichment for that gene-set
A28: SupportingGenes_cases | B28: listing of Gene symbols supporting the enrichment for that gene-set. Note: A 'support gene' harbours rare CNV(s) more frequently in cases than controls.
A29: SupportingGenes_ctrls | B29: listing of Gene symbols supporting the enrichment for that gene-set. Note: A 'support gene' harbours rare CNV(s) more frequently in cases than controls.
A31: Gene-set/ Pathway enrichment analysis
A32: We previously used gene-set enrichment analysis to show that genes affected by rare deletions converge on pathways involved in cell and neuronal development and function such as projection, motility and proliferation, as well as GTPase/Ras signaling [Pinto et al. 2010]. We performed a similar analysis of our expanded sample set with updated Gene Ontology (GO) (Ashburner et al. 2000; Harris et al. 2004) and Kyoto Encyclopedia of Genes and Genomes (KEGG) (Kaneshisa et al 2008) pathway annotations, and refined our criteria to consider only exonic events. To identify enriched gene-sets/pathways among genes hit by rare CNVs in cases compared to controls, we used a logistic regression framework to fit the case/control status and the number of genes affected by CNVs, controlling for mean global differences of rare CNV rate and length between cases and controls. Significance was assessed using the main variable coefficient, and the nominal p-values corrected for multiple testing using the Benjamini-Hochberg false-discovery rate (BH-FDR). Figure 4A (main text) shows clusters enriched at an FDR ≤20% to better capture the network topology.
A37: Association tests
A38: Logistic Regression Model Comparison Test was used for pathway analyses in Figure 4A to correct for potential global burden differences We used a logistic regression test to identify which gene-sets/pathways present more genes hit by rare CNVs in cases compared to matched controls. We corrected for mean global differences of rare CNV rate and length (i.e. detectable considering all genes in contrast to specific gene-sets) by using appropriate logistic regression covariates (total CNV length in the subject and hits on the gene-set complement, i.e. outside gene-set). In other words, for each gene-set we controlled for the subject's total CNV length and the number of hits on the gene-set's complement (hits outside that gene-set). Significance was assessed using the logistic regression gene count coefficient's asymptotic p-value (main variable coefficient), and the nominal p-values corrected for multiple testing using the BH-FDR. The use of logistic regression allows the data to remain on a continuous scale while maintaining the interpretation of results in terms of an odds ratio, as is used with the standard Fisher exact tests.
A46: We used logistic regression models to fit the case/control status (using the R package brglm) and the following covariates: Y ~ gN_gs_i + Ltot_log10 + gN_gsC_i Once again, subjects act as units, hence each value of the dependent and independent variables correspond to a specific subject. The subject case/control status is modeled as the binary outcome variable. The model variables are:
A48: 1) gN_gs_i: number of genes overlapped by rare CNVs (i.e. hits) within the gene-set being tested
A49: 2) Ltot_log10: log10 of the sum of the length of all rare CNVs in the subject
A50: 3) gN_gsC_i: number of genes overlapped by rare CNVs (i.e. hits) within the set complementary to the tested set, with respect to the gene universe of the gene-set source (i.e. hits outside gene-set)
A51: The association significance was assessed using the significance of the gN_gs_i variable's coefficient.
A53: Multiple test correction
A54: Nominal p-values of converged regression models with the expected direction of association (i.e. positive value of the gN_gs_i coefficient, with cases coded as 1 and controls coded as 0) were corrected for multiple testing using the BH-FDR.
A56: Table S12D
A57: Mouse-enriched phenotypes
A58: We applied the same association test to gene-sets linked to abnormal phenotypes in mice (MPO) (Table S12D). The gene-phenotype association, downloaded from the MGI database (Mouse Genome Informatics) (Eppig et al. 2012) is based on expert curation of published articles characterizing the phenotypic outcome of gene knock-outs (or other genetic manipulations). As in the case of pathways and Gene Ontology sets, we found significant association only for exonic losses. Out of 11 significant phenotypes (FDR≤15%), 9 were clearly neurobehavioral. 11.6% of all case subjects in the CNV data-set, but only 5.5% of controls, have at least one exonic loss overlapping one or more genes associated to these phenotype sets (OR 2.1). In the 9 neurobehavioral sets, there are 10% cases and 4.3% controls (OR 2.3).
A63: Visualization of pathway/network results in Figures 4A, 4B and 5A
A64: Functional maps in main Figure 4A, as well as Figures 4B and 5A were obtained using Cytoscape v.2.8.325 and Spring Embedded graph layouts. Overlap scores between enriched gene-sets/pathways were used to organize sets graphically into a functional enrichment map. For main Figure 4A, only gene-sets associated to cases with exonic deletions with a BH-FDR q-value≤20% (i.e. multiple test adjustment of the logistic regression main coefficient p-value) are shown. Gene-sets are colored by different red intensity scales based on their BH-FDR q-value. In Figure 4A, the main functional groups "Development, Cell proliferation and Cell motility" (blue), "Cell projection, Neural development and Axonogenesis" (yellow) and parts of the "MAPK signalling" and "Protein Kinase signalling" (green) were identified previously (Pinto et al. 2010).

Sheet Table S12A. Enr_GOPathways_Sign
A1: # | B1: #GsID | C1: GsName | D1: GsSize | E1: Case_N | F1: Ctrl_N | G1: Case_% | H1: Ctrl_% | I1: total_#exonicDEL_count_incases | J1: #denovo_count_incases | K1: % denovos | L1: FET-Pvalue | M1: FET-OR | N1: LRM_GsN_Sign | O1: LRM_GsN_Pvalue | P1: LRM_GsN_BHFDR | Q1: FDR_bins | R1: CaseN_max10 | S1: CtrlN_max10 | T1: Case%_max10 | U1: Ctrl%_max10 | V1: FET-Pvalue_max10 | W1: FET-OR_max10 | X1: Disease_genes | Y1: Supporting_case_IDs | Z1: Supporting_ctrl_IDs | AA1: SupportingGenes_cases | AB1: SupportingGenes_ctrls | AC1: #GsID
A2: 1 | B2: GO:0030030 | C2: cell projection organization | D2: 829 | E2: 80 | F2: 32 | G2: 10.13941698 | H2: 3.411513859 | I2: 81 | J2: 22 | K2: =(J2/I2)*100 -> 27.16049383 | L2: 1.101360099e-08 | M2: 3.19255277 | N2: 1 | O2: 1.503389639e-05 | P2: 0.01461294729 | Q2: (-1,0.05] | R2: 48 | S2: 30 | T2: 6.566347469 | U2: 3.289473684 | V2: 0.001443057846 | W2: 2.065284955 | X2: ASD_and_ID | Y2: 5366_5;4374_1;14151_2500;8534_201;4312_1;2204_1;5359_4;20089_1391001;5068_3;20127_4014001;6240_4;4288_1;21035_1;14412_5210;14283_4060;3441_3;5324_3;5082_4;5007_3;14281_4040;8597_201;6301_3;4514_1;16030_1571003001;1946_301;8705_201;21012_1;13123_1403;5032_4;5446_3;4430_1;6130_4;2072_1;2211_1;5081_4;5391_3;4319_1;8446_201;4524_1;14064_1110;3145_3;4330_100;3049_3;4472_1;3181_7;4205_1;3266_3;3173_3;13038_473;5340_3;4534_1;3135_4;2271_1;14393_5020;8737_202;5347_3;5451_3;3174_3;17015_1;3183_7;4272_1;5551_3;3032_3;5424_3;6132_6;5396_3;16079_1571066001;5353_3;5454_3;5545_3;13037_463;16074_1571042001;13017_223;13153_1703;17027_1;13216_2383;8576_201;3141_3;14211_3380;8658_201 | Z2: HABC_900920_900920;HABC_900517_900517;HABC_901068_901068;B877576_1007874042;B312630_0067942574;B277797_1007853793;HABC_900162_900162;B459199_1007840471;B871387_1007875840;110036019115_;B407753_1007874851;HABC_902554_902554;HABC_900383_900383;B306817_1007874015;B973477_1007842438;110036025062_;HABC_900022_900022;B187727_0067949240;110036023075_;HABC_900020_900020;110036023299_;HABC_902583_902583;HABC_902652_902652;HABC_900299_900299;110036001873_;B983717_1007842477;HABC_900472_900472;B630497_1007872229;HABC_900709_900709;B333151_1007853867;110036024081_;HABC_902895_902895 | AA2: ACAP3;ADM;ARHGAP10;B9D1;BAI1;BRSK1;C16orf63;CAPG;CDH13;CHAT;CHL1;CNTN6;CORO1A;CTHRC1;DMD;DOCK1;DVL1;EPHA3;EPHA5;FOXD4;GPR98;HFE2;IGF1R;LIMK1;LPPR4;LRRK2;MAPK3;MAPK8IP2;MAPK8IP3;MYH11;NEO1;NPHP1;NRXN1;NRXN3;NTRK1;PCNT;PLXNB2;PPP3CB;PTPRC;RAB5A;RFX3;RP1L1;RTN4R;RTN4RL1;SHANK1;SHANK3;SPAG6;SPATA13;SPTB;SYNGAP1;THBS4;ULK2;USP33 | AB2: AGRN;ATG7;C1orf88;CACNA1C;CACNA1H;CNTN4;COL4A5;DYNLT1;KLHL1;KNDC1;LRRC4C;MKKS;PMP22;SH3GLB1;SIPA1L1 | AC2: GO:0030030
A3: 2 | B3: GO:0048699 | C3: generation of neurons | D3: 964 | E3: 73 | F3: 27 | G3: 9.252217997 | H3: 2.878464819 | I3: 74 | J3: 23 | K3: =(J3/I3)*100 -> 31.08108108 | L3: 1.109340094e-08 | M3: 3.437669351 | N3: 1 | O3: 8.866235334e-05 | P3: 0.02171192827 | Q3: (-1,0.05] | R3: 42 | S3: 24 | T3: 5.745554036 | U3: 2.631578947 | V3: 0.001098201322 | W3: 2.254343901 | X3: ASD_and_ID | Y3: 1240_3;4374_1;14151_2500;8534_201;4312_1;6240_4;21035_1;5324_3;5082_4;5007_3;14281_4040;8597_201;6301_3;4514_1;4288_1;16030_1571003001;1946_301;8705_201;4272_1;5316_3;13123_1403;5032_4;5446_3;4430_1;20073_1337001;6130_4;2072_1;5081_4;5391_3;8404_201;8549_201;4319_1;8446_201;3441_3;14412_5210;14283_4060;4524_1;13038_473;5340_3;4534_1;5115_3;3135_4;2271_1;14393_5020;20127_4014001;20089_1391001;2204_1;5068_3;5359_4;14011_210;8737_202;5347_3;5451_3;17015_1;3183_7;5551_3;5409_3;4440_1;6132_6;5396_3;16079_1571066001;5353_3;5454_3;5545_3;13037_463;16074_1571042001;13017_223;13153_1703;17027_1;13216_2383;8576_201;2211_1;8658_201 | Z3: HABC_900517_900517;HABC_901068_901068;B312630_0067942574;B277797_1007853793;B136270_1007872262;HABC_900162_900162;B459199_1007840471;HABC_901202_901202;B871387_1007875840;110036019115_;B407753_1007874851;HABC_902554_902554;HABC_900383_900383;HABC_902583_902583;HABC_902652_902652;HABC_900299_900299;110036001873_;B983717_1007842477;HABC_900472_900472;B345605_1007844543;HABC_900504_900504;B630497_1007872229;B333151_1007853867;110036024081_;HABC_902895_902895;HABC_902646_902646;HABC_900013_900013 | AA3: ADM;AGTPBP1;BAI1;BRSK1;CDKN1C;CELSR1;CHAT;CHL1;CNTN6;CTHRC1;DCDC2;DLL1;DMD;DOCK1;DVL1;EPHA3;EPHA5;ESR2;FOXD4;FZD4;FZD9;GPR98;GRM5;HFE2;IGF1R;LIMK1;LPPR4;LRRK2;MAPK3;MAPK8IP2;MAPK8IP3;MYH11;NEO1;NRXN1;NRXN3;NTM;NTRK1;OPCML;PCNT;PLXNB2;PPP3CB;PTPRC;RP1L1;RPGRIP1;RTN4R;RTN4RL1;SHANK1;SHANK3;SPTB;SYNGAP1;THBS4;TRIM32;TUBB2A;ULK2;USH2A;USP33;ZNF488 | AB3: AGRN;ATG7;CACNA1C;CACNA1H;CNTN4;COL4A5;CSPG4;DYNLT1;HAND2;KLHL1;KNDC1;LRRC4C;MDGA2;NKX6-2;PMP22;SIPA1L1;WNT2 | AC3: GO:0048699
A4: 3 | B4: GO:0032990 | C4: cell part morphogenesis | D4: 626 | E4: 57 | F4: 18 | G4: 7.224334601 | H4: 1.918976546 | I4: 57 | J4: 20 | K4: 35.0877193 | L4: 4.709921666e-08 | M4: 3.976967501 | N4: 1 | O4: 0.0001275605291 | P4: 0.02171192827 | Q4: (-1,0.05] | R4: 32 | S4: 17 | T4: 4.377564979 | U4: 1.864035088 | V4: 0.002347790238 | W4: 2.408897358 | X4: ASD_and_ID | Y4: 4374_1;14151_2500;21035_1;14412_5210;14283_4060;3441_3;5324_3;5082_4;5007_3;14281_4040;8597_201;6301_3;4514_1;4288_1;16030_1571003001;1946_301;8705_201;13123_1403;5032_4;5446_3;4430_1;6130_4;2072_1;2211_1;5081_4;5391_3;4319_1;8446_201;4524_1;13038_473;5340_3;4534_1;14393_5020;20127_4014001;20089_1391001;2204_1;5068_3;5359_4;8737_202;5347_3;5451_3;17015_1;3183_7;4272_1;5551_3;5396_3;16079_1571066001;5353_3;5454_3;5545_3;13037_463;16074_1571042001;13017_223;13153_1703;17027_1;13216_2383;8658_201 | Z4: HABC_900517_900517;HABC_901068_901068;B312630_0067942574;B277797_1007853793;HABC_900162_900162;B459199_1007840471;B871387_1007875840;110036019115_;B407753_1007874851;HABC_902554_902554;HABC_900383_900383;B983717_1007842477;HABC_900472_900472;B630497_1007872229;HABC_900709_900709;B333151_1007853867;110036024081_;HABC_902895_902895 | AA4: ADM;B9D1;BAI1;BRSK1;C16orf63;CHL1;CNTN6;DMD;DOCK1;DVL1;EPHA3;EPHA5;FOXD4;HFE2;IGF1R;LIMK1;LPPR4;LRRK2;MAPK3;MAPK8IP2;MAPK8IP3;MYH11;NEO1;NRXN1;NRXN3;NTRK1;PCNT;PLXNB2;PPP3CB;PTPRC;RFX3;RTN4R;RTN4RL1;SHANK1;SHANK3;SPTB;SYNGAP1;THBS4;ULK2;USP33 | AB4: AGRN;ATG7;CACNA1C;CACNA1H;CNTN4;COL4A5;DYNLT1;KNDC1;LRRC4C;MKKS;SIPA1L1 | AC4: GO:0032990
A5: 4 | B5: GO:0048858 | C5: cell projection morphogenesis | D5: 617 | E5: 57 | F5: 18 | G5: 7.224334601 | H5: 1.918976546 | I5: 57 | J5: 20 | K5: 35.0877193 | L5: 4.709921666e-08 | M5: 3.976967501 | N5: 1 | O5: 0.0001275605291 | P5: 0.02171192827 | Q5: (-1,0.05] | R5: 32 | S5: 17 | T5: 4.377564979 | U5: 1.864035088 | V5: 0.002347790238 | W5: 2.408897358 | X5: ASD_and_ID | Y5: 4374_1;14151_2500;21035_1;14412_5210;14283_4060;3441_3;5324_3;5082_4;5007_3;14281_4040;8597_201;6301_3;4514_1;4288_1;16030_1571003001;1946_301;8705_201;13123_1403;5032_4;5446_3;4430_1;6130_4;2072_1;2211_1;5081_4;5391_3;4319_1;8446_201;4524_1;13038_473;5340_3;4534_1;14393_5020;20127_4014001;20089_1391001;2204_1;5068_3;5359_4;8737_202;5347_3;5451_3;17015_1;3183_7;4272_1;5551_3;5396_3;16079_1571066001;5353_3;5454_3;5545_3;13037_463;16074_1571042001;13017_223;13153_1703;17027_1;13216_2383;8658_201 | Z5: HABC_900517_900517;HABC_901068_901068;B312630_0067942574;B277797_1007853793;HABC_900162_900162;B459199_1007840471;B871387_1007875840;110036019115_;B407753_1007874851;HABC_902554_902554;HABC_900383_900383;B983717_1007842477;HABC_900472_900472;B630497_1007872229;HABC_900709_900709;B333151_1007853867;110036024081_;HABC_902895_902895 | AA5: ADM;B9D1;BAI1;BRSK1;C16orf63;CHL1;CNTN6;DMD;DOCK1;DVL1;EPHA3;EPHA5;FOXD4;HFE2;IGF1R;LIMK1;LPPR4;LRRK2;MAPK3;MAPK8IP2;MAPK8IP3;MYH11;NEO1;NRXN1;NRXN3;NTRK1;PCNT;PLXNB2;PPP3CB;PTPRC;RFX3;RTN4R;RTN4RL1;SHANK1;SHANK3;SPTB;SYNGAP1;THBS4;ULK2;USP33 | AB5: AGRN;ATG7;CACNA1C;CACNA1H;CNTN4;COL4A5;DYNLT1;KNDC1;LRRC4C;MKKS;SIPA1L1 | AC5: GO:0048858
A6: 5 | B6: GO:0000902 | C6: cell morphogenesis | D6: 842 | E6: 64 | F6: 25 | G6: 8.111533587 | H6: 2.665245203 | I6: 66 | J6: 21 | K6: 31.81818182 | L6: 2.497442508e-07 | M6: 3.221726012 | N6: 1 | O6: 0.0001661267015 | P6: 0.02171192827 | Q6: (-1,0.05] | R6: 38 | S6: 23 | T6: 5.198358413 | U6: 2.521929825 | V6: 0.00332694564 | W6: 2.118505623 | X6: ASD_and_ID | Y6: 14088_1520;4374_1;14151_2500;2204_1;5359_4;20089_1391001;5068_3;20127_4014001;21035_1;14412_5210;14283_4060;3441_3;5324_3;5082_4;5007_3;14281_4040;13037_463;8597_201;6301_3;4514_1;4288_1;16030_1571003001;1946_301;8705_201;13123_1403;5032_4;5446_3;4430_1;8737_202;6130_4;2072_1;2211_1;5081_4;5391_3;17031_1;14393_5020;4319_1;1960_301;8446_201;13159_1763;4524_1;13038_473;5340_3;4534_1;8658_201;5091_4;5347_3;5451_3;17015_1;3183_7;4272_1;5551_3;4228_1;8549_201;5396_3;16079_1571066001;5353_3;5454_3;5545_3;16074_1571042001;13017_223;13153_1703;17027_1;13216_2383 | Z6: B333151_1007853867;HABC_900488_900488;HABC_900127_900127;B993989_1007854998;HABC_900517_900517;HABC_901068_901068;B312630_0067942574;B277797_1007853793;HABC_900162_900162;B459199_1007840471;B871387_1007875840;110036019115_;B407753_1007874851;HABC_902554_902554;110036004554_r;110036020873_;HABC_900383_900383;B983717_1007842477;HABC_900472_900472;HABC_900504_900504;B630497_1007872229;B712038_0067942594;HABC_900709_900709;110036024081_;HABC_902895_902895 | AA6: ADM;ALDOA;ANXA7;ARC;B9D1;BAI1;BRSK1;C16orf63;C21orf2;CAMSAP1;CDC42SE2;CHL1;CNTN6;CORO1A;DMD;DOCK1;DVL1;EPHA3;EPHA5;FOXD4;FZD4;HFE2;IGF1R;KDR;LIMK1;LPPR4;LRRK2;MAPK3;MAPK8IP2;MAPK8IP3;MERTK;MSX2;MYH11;NEO1;NRXN1;NRXN3;NTRK1;PALMD;PCNT;PLXNB2;PPP3CB;PTPRC;RFX3;RTN4R;RTN4RL1;SH3KBP1;SHANK1;SHANK3;SLC26A5;SPTB;SYNGAP1;TAOK2;THBS4;ULK2;USP33 | AB6: ADAM8;AGRN;ATG7;CACNA1C;CACNA1H;CNTN4;COL4A5;DLC1;DYNLT1;GREM1;KNDC1;LAMC3;LRRC4C;MKKS;PEAK1;SIPA1L1;WNT2 | AC6: GO:0000902
A7: 6 | B7: GO:0048812 | C7: neuron projection morphogenesis | D7: 537 | E7: 56 | F7: 17 | G7: 7.097591888 | H7: 1.812366738 | I7: 56 | J7: 20 | K7: 35.71428571 | L7: 3.483517156e-08 | M7: 4.135808341 | N7: 1 | O7: 0.0001753373851 | P7: 0.02171192827 | Q7: (-1,0.05] | R7: 31 | S7: 16 | T7: 4.240766074 | U7: 1.754385965 | V7: 0.002164891137 | W7: 2.478653323 | X7: ASD_and_ID | Y7: 4374_1;14151_2500;21035_1;5324_3;5082_4;5007_3;14281_4040;8597_201;6301_3;4514_1;4288_1;16030_1571003001;1946_301;8705_201;13123_1403;5032_4;5446_3;4430_1;6130_4;2072_1;5081_4;5391_3;4319_1;8446_201;3441_3;14412_5210;14283_4060;4524_1;13038_473;5340_3;14393_5020;20127_4014001;20089_1391001;2204_1;5068_3;5359_4;8737_202;5347_3;5451_3;17015_1;3183_7;4272_1;5551_3;5396_3;16079_1571066001;5353_3;5454_3;5545_3;13037_463;16074_1571042001;13017_223;13153_1703;17027_1;13216_2383;2211_1;8658_201 | Z7: HABC_900517_900517;HABC_901068_901068;B312630_0067942574;B277797_1007853793;HABC_900162_900162;B459199_1007840471;B871387_1007875840;110036019115_;B407753_1007874851;HABC_902554_902554;HABC_900383_900383;B983717_1007842477;HABC_900472_900472;B630497_1007872229;B333151_1007853867;110036024081_;HABC_902895_902895 | AA7: ADM;BAI1;BRSK1;CHL1;CNTN6;DMD;DOCK1;DVL1;EPHA3;EPHA5;FOXD4;HFE2;IGF1R;LIMK1;LPPR4;LRRK2;MAPK3;MAPK8IP2;MAPK8IP3;MYH11;NEO1;NRXN1;NRXN3;NTRK1;PLXNB2;PPP3CB;PTPRC;RTN4R;RTN4RL1;SHANK1;SHANK3;SPTB;SYNGAP1;THBS4;ULK2;USP33 | AB7: AGRN;ATG7;CACNA1C;CACNA1H;CNTN4;COL4A5;DYNLT1;KNDC1;LRRC4C;SIPA1L1 | AC7: GO:0048812
A8: 7 | B8: GO:0030182 | C8: neuron differentiation | D8: 890 | E8: 71 | F8: 26 | G8: 8.998732573 | H8: 2.771855011 | I8: 72 | J8: 23 | K8: 31.94444444 | L8: 1.488751382e-08 | M8: 3.466200033 | N8: 1 | O8: 0.0001891817804 | P8: 0.02171192827 | Q8: (-1,0.05] | R8: 40 | S8: 23 | T8: 5.471956224 | U8: 2.521929825 | V8: 0.001540558553 | W8: 2.236384457 | X8: ASD_and_ID | Y8: 1240_3;4374_1;14151_2500;8534_201;4312_1;6240_4;21035_1;5324_3;5082_4;5007_3;14281_4040;8597_201;6301_3;4514_1;4288_1;16030_1571003001;1946_301;8705_201;5316_3;13123_1403;5032_4;5446_3;4430_1;20073_1337001;6130_4;2072_1;5081_4;5391_3;8404_201;4319_1;8446_201;3441_3;14412_5210;14283_4060;4524_1;13038_473;5340_3;3135_4;2271_1;14393_5020;20127_4014001;20089_1391001;2204_1;5068_3;5359_4;14011_210;8737_202;5347_3;5451_3;17015_1;3183_7;4272_1;5551_3;5409_3;4440_1;8549_201;6132_6;5396_3;16079_1571066001;5353_3;5454_3;5545_3;13037_463;16074_1571042001;13017_223;13153_1703;17027_1;13216_2383;8576_201;2211_1;8658_201 | Z8: HABC_900517_900517;HABC_901068_901068;B312630_0067942574;B277797_1007853793;B136270_1007872262;HABC_900162_900162;B459199_1007840471;HABC_901202_901202;B871387_1007875840;110036019115_;B407753_1007874851;HABC_902554_902554;HABC_900383_900383;HABC_902583_902583;HABC_902652_902652;HABC_900299_900299;110036001873_;B983717_1007842477;HABC_900472_900472;B345605_1007844543;HABC_900504_900504;B630497_1007872229;B333151_1007853867;110036024081_;HABC_902895_902895;HABC_902646_902646 | AA8: ADM;AGTPBP1;BAI1;BRSK1;CDKN1C;CHAT;CHL1;CNTN6;CTHRC1;DLL1;DMD;DOCK1;DVL1;EPHA3;EPHA5;FOXD4;FZD4;GPR98;HFE2;IGF1R;LIMK1;LPPR4;LRRK2;MAPK3;MAPK8IP2;MAPK8IP3;MYH11;NEO1;NRXN1;NRXN3;NTM;NTRK1;OPCML;PLXNB2;PPP3CB;PTPRC;RP1L1;RPGRIP1;RTN4R;RTN4RL1;SHANK1;SHANK3;SPTB;SYNGAP1;THBS4;TRIM32;TUBB2A;ULK2;USH2A;USP33 | AB8: AGRN;ATG7;CACNA1C;CACNA1H;CNTN4;COL4A5;CSPG4;DYNLT1;HAND2;KLHL1;KNDC1;LRRC4C;MDGA2;NKX6-2;PMP22;SIPA1L1;WNT2 | AC8: GO:0030182
A9: 8 | B9: GO:0048666 | C9: neuron development | D9: 721 | E9: 65 | F9: 23 | G9: 8.238276299 | H9: 2.452025586 | I9: 66 | J9: 22 | K9: 33.33333333 | L9: 3.536951171e-08 | M9: 3.569120061 | N9: 1 | O9: 0.0002088331502 | P9: 0.02171192827 | Q9: (-1,0.05] | R9: 36 | S9: 20 | T9: 4.924760602 | U9: 2.192982456 | V9: 0.001918982535 | W9: 2.309057771 | X9: ASD_and_ID | Y9: 1240_3;4374_1;14151_2500;8534_201;4312_1;6240_4;21035_1;5324_3;5082_4;5007_3;14281_4040;8597_201;6301_3;4514_1;4288_1;16030_1571003001;1946_301;8705_201;13123_1403;5032_4;5446_3;4430_1;6130_4;2072_1;5081_4;5391_3;4319_1;8446_201;3441_3;14412_5210;14283_4060;4524_1;13038_473;5340_3;3135_4;2271_1;14393_5020;20127_4014001;20089_1391001;2204_1;5068_3;5359_4;14011_210;8737_202;5347_3;5451_3;17015_1;3183_7;4272_1;5551_3;6132_6;5396_3;16079_1571066001;5353_3;5454_3;5545_3;13037_463;16074_1571042001;13017_223;13153_1703;17027_1;13216_2383;8576_201;2211_1;8658_201 | Z9: HABC_900517_900517;HABC_901068_901068;B312630_0067942574;B277797_1007853793;B136270_1007872262;HABC_900162_900162;B459199_1007840471;B871387_1007875840;110036019115_;B407753_1007874851;HABC_902554_902554;HABC_900383_900383;HABC_902583_902583;HABC_902652_902652;HABC_900299_900299;110036001873_;B983717_1007842477;HABC_900472_900472;B630497_1007872229;B333151_1007853867;110036024081_;HABC_902895_902895;HABC_902646_902646 | AA9: ADM;BAI1;BRSK1;CDKN1C;CHAT;CHL1;CNTN6;CTHRC1;DMD;DOCK1;DVL1;EPHA3;EPHA5;FOXD4;GPR98;HFE2;IGF1R;LIMK1;LPPR4;LRRK2;MAPK3;MAPK8IP2;MAPK8IP3;MYH11;NEO1;NRXN1;NRXN3;NTM;NTRK1;OPCML;PLXNB2;PPP3CB;PTPRC;RP1L1;RPGRIP1;RTN4R;RTN4RL1;SHANK1;SHANK3;SPTB;SYNGAP1;THBS4;ULK2;USP33 | AB9: AGRN;ATG7;CACNA1C;CACNA1H;CNTN4;COL4A5;CSPG4;DYNLT1;HAND2;KLHL1;KNDC1;LRRC4C;PMP22;SIPA1L1 | AC9: GO:0048666
A10: 9 | B10: GO:0048667 | C10: cell morphogenesis involved in neuron differentiation | D10: 532 | E10: 53 | F10: 15 | G10: 6.717363752 | H10: 1.599147122 | I10: 53 | J10: 20 | K10: 37.73584906 | L10: 3.167912115e-08 | M10: 4.427535539 | N10: 1 | O10: 0.0002178294228 | P10: 0.02171192827 | Q10: (-1,0.05] | R10: 28 | S10: 14 | T10: 3.830369357 | U10: 1.535087719 | V10: 0.002797236463 | W10: 2.55333498 | X10: ASD_and_ID | Y10: 4374_1;14151_2500;21035_1;5082_4;5007_3;14281_4040;6301_3;4514_1;4288_1;16030_1571003001;1946_301;8705_201;13123_1403;5032_4;5446_3;4430_1;6130_4;2072_1;5081_4;5391_3;4319_1;8446_201;3441_3;14412_5210;14283_4060;4524_1;13038_473;5340_3;14393_5020;20127_4014001;20089_1391001;2204_1;5068_3;5359_4;8737_202;5347_3;5451_3;17015_1;3183_7;4272_1;5396_3;16079_1571066001;5353_3;5454_3;5545_3;13037_463;16074_1571042001;13017_223;13153_1703;17027_1;13216_2383;2211_1;8658_201 | Z10: HABC_900517_900517;HABC_901068_901068;B312630_0067942574;B277797_1007853793;HABC_900162_900162;B459199_1007840471;110036019115_;B407753_1007874851;HABC_902554_902554;HABC_900383_900383;B983717_1007842477;B630497_1007872229;B333151_1007853867;110036024081_;HABC_902895_902895 | AA10: BAI1;BRSK1;CHL1;CNTN6;DOCK1;DVL1;EPHA3;EPHA5;FOXD4;HFE2;IGF1R;LIMK1;LPPR4;LRRK2;MAPK3;MAPK8IP2;MAPK8IP3;MYH11;NEO1;NRXN1;NRXN3;NTRK1;PLXNB2;PPP3CB;PTPRC;RTN4R;RTN4RL1;SHANK1;SHANK3;SPTB;SYNGAP1;ULK2;USP33 | AB10: AGRN;ATG7;CACNA1C;CACNA1H;CNTN4;COL4A5;KNDC1;LRRC4C;SIPA1L1 | AC10: GO:0048667
A11: 10 | B11: GO:0032989 | C11: cellular component morphogenesis | D11: 887 | E11: 67 | F11: 29 | G11: 8.491761724 | H11: 3.091684435 | I11: 70 | J11: 22 | K11: 31.42857143 | L11: 8.049853811e-07 | M11: 2.906979052 | N11: 1 | O11: 0.0002233737476 | P11: 0.02171192827 | Q11: (-1,0.05] | R11: 39 | S11: 26 | T11: 5.335157319 | U11: 2.850877193 | V11: 0.007489337895 | W11: 1.919719424 | X11: ASD_and_ID | Y11: 14088_1520;4374_1;14151_2500;2204_1;5359_4;20089_1391001;5068_3;20127_4014001;21035_1;14412_5210;14283_4060;3441_3;5324_3;5082_4;5007_3;14281_4040;13037_463;8597_201;6301_3;4514_1;4288_1;16030_1571003001;1946_301;8705_201;13123_1403;5032_4;5446_3;4430_1;8737_202;6130_4;2072_1;2211_1;5081_4;5391_3;17031_1;14393_5020;4319_1;1960_301;8446_201;13159_1763;4524_1;13038_473;5340_3;4534_1;3135_4;2271_1;8658_201;5091_4;5347_3;5451_3;8559_201;17015_1;3183_7;4272_1;5551_3;4228_1;8549_201;5396_3;16079_1571066001;5353_3;5454_3;5545_3;16074_1571042001;13017_223;13153_1703;17027_1;13216_2383 | Z11: B333151_1007853867;HABC_900488_900488;HABC_900127_900127;B993989_1007854998;HABC_900517_900517;HABC_901068_901068;B312630_0067942574;B277797_1007853793;HABC_900162_900162;B459199_1007840471;B871387_1007875840;110036019115_;B407753_1007874851;HABC_902554_902554;110036004554_r;110036020873_;HABC_900383_900383;HABC_902583_902583;HABC_902652_902652;HABC_900299_900299;B983717_1007842477;B662268_1007853570;HABC_900472_900472;HABC_900504_900504;B630497_1007872229;B712038_0067942594;HABC_900709_900709;110036024081_;HABC_902895_902895 | AA11: ADM;ALDOA;ANXA7;ARC;B9D1;BAI1;BRSK1;C16orf63;C21orf2;CAMSAP1;CDC42SE2;CHL1;CNTN6;CORO1A;DMD;DOCK1;DVL1;EPHA3;EPHA5;FABP9;FOXD4;FZD4;HFE2;IGF1R;KDR;LIMK1;LPPR4;LRRK2;MAPK3;MAPK8IP2;MAPK8IP3;MERTK;MSX2;MYH11;MYOZ1;NEO1;NRXN1;NRXN3;NTRK1;PALMD;PCNT;PLXNB2;PPP3CB;PTPRC;RFX3;RTN4R;RTN4RL1;SH3KBP1;SHANK1;SHANK3;SLC26A5;SPTB;SYNGAP1;TAOK2;THBS4;TTN;ULK2;USP33 | AB11: ADAM8;AGRN;ATG7;CACNA1C;CACNA1H;CNTN4;COL4A5;DLC1;DYNLT1;GREM1;KNDC1;LAMC3;LRRC4C;MKKS;MPP5;PEAK1;PMP22;SIPA1L1;WNT2 | AC11: GO:0032989
A12: 11 | B12: GO:0007409 | C12: axonogenesis | D12: 490 | E12: 50 | F12: 14 | G12: 6.337135615 | H12: 1.492537313 | I12: 50 | J12: 19 | K12: 38 | L12: 6.992621866e-08 | M12: 4.461924933 | N12: 1 | O12: 0.0003495012113 | P12: 0.03088319794 | Q12: (-1,0.05] | R12: 25 | S12: 14 | T12: 3.41997264 | U12: 1.535087719 | V12: 0.009986176455 | W12: 2.270234855 | X12: ASD_and_ID | Y12: 4374_1;14151_2500;5082_4;5007_3;14281_4040;6301_3;4514_1;4288_1;16030_1571003001;1946_301;8705_201;13123_1403;5032_4;5446_3;4430_1;2072_1;6130_4;5081_4;5391_3;4319_1;8446_201;3441_3;14412_5210;14283_4060;4524_1;13038_473;14393_5020;20127_4014001;20089_1391001;2204_1;5068_3;5359_4;8737_202;5347_3;5451_3;17015_1;3183_7;4272_1;5396_3;5353_3;5454_3;5545_3;13037_463;16074_1571042001;13017_223;13153_1703;17027_1;13216_2383;2211_1;8658_201 | Z12: HABC_900517_900517;HABC_901068_901068;B312630_0067942574;B277797_1007853793;HABC_900162_900162;B459199_1007840471;110036019115_;B407753_1007874851;HABC_902554_902554;HABC_900383_900383;B983717_1007842477;B630497_1007872229;110036024081_;HABC_902895_902895 | AA12: BAI1;BRSK1;CHL1;CNTN6;DOCK1;DVL1;EPHA3;EPHA5;FOXD4;HFE2;IGF1R;LIMK1;LPPR4;MAPK3;MAPK8IP3;MYH11;NEO1;NRXN1;NRXN3;NTRK1;PLXNB2;PPP3CB;PTPRC;RTN4R;RTN4RL1;SPTB;SYNGAP1;ULK2;USP33 | AB12: AGRN;ATG7;CACNA1C;CACNA1H;CNTN4;COL4A5;LRRC4C;SIPA1L1 | AC12: GO:0007409
A13: 12 | B13: GO:0031175 | C13: neuron projection development | D13: 632 | E13: 60 | F13: 21 | G13: 7.604562738 | H13: 2.23880597 | I13: 60 | J13: 21 | K13: 35 | L13: 1.04696844e-07 | M13: 3.591421415 | N13: 1 | O13: 0.0004336503533 | P13: 0.03512567862 | Q13: (-1,0.05] | R13: 32 | S13: 19 | T13: 4.377564979 | U13: 2.083333333 | V13: 0.005935356373 | W13: 2.150661487 | X13: ASD_and_ID | Y13: 4374_1;14151_2500;8534_201;4312_1;21035_1;5324_3;5082_4;5007_3;14281_4040;8597_201;6301_3;4514_1;4288_1;16030_1571003001;1946_301;8705_201;13123_1403;5032_4;5446_3;4430_1;6130_4;2072_1;5081_4;5391_3;4319_1;8446_201;3441_3;14412_5210;14283_4060;4524_1;13038_473;5340_3;3135_4;2271_1;14393_5020;20127_4014001;20089_1391001;2204_1;5068_3;5359_4;8737_202;5347_3;5451_3;17015_1;3183_7;4272_1;5551_3;5396_3;16079_1571066001;5353_3;5454_3;5545_3;13037_463;16074_1571042001;13017_223;13153_1703;17027_1;13216_2383;2211_1;8658_201 | Z13: HABC_900517_900517;HABC_901068_901068;B312630_0067942574;B277797_1007853793;HABC_900162_900162;B459199_1007840471;B871387_1007875840;110036019115_;B407753_1007874851;HABC_902554_902554;HABC_900383_900383;HABC_902583_902583;HABC_902652_902652;HABC_900299_900299;110036001873_;B983717_1007842477;HABC_900472_900472;B630497_1007872229;B333151_1007853867;110036024081_;HABC_902895_902895 | AA13: ADM;BAI1;BRSK1;CHAT;CHL1;CNTN6;DMD;DOCK1;DVL1;EPHA3;EPHA5;FOXD4;HFE2;IGF1R;LIMK1;LPPR4;LRRK2;MAPK3;MAPK8IP2;MAPK8IP3;MYH11;NEO1;NRXN1;NRXN3;NTRK1;PLXNB2;PPP3CB;PTPRC;RTN4R;RTN4RL1;SHANK1;SHANK3;SPTB;SYNGAP1;THBS4;ULK2;USP33 | AB13: AGRN;ATG7;CACNA1C;CACNA1H;CNTN4;COL4A5;DYNLT1;KLHL1;KNDC1;LRRC4C;PMP22;SIPA1L1 | AC13: GO:0031175
A14: 13 | B14: GO:0016477 | C14: cell migration | D14: 734 | E14: 51 | F14: 17 | G14: 6.463878327 | H14: 1.812366738 | I14: 52 | J14: 13 | K14: 25 | L14: 5.283177743e-07 | M14: 3.74119525 | N14: 1 | O14: 0.0005283764121 | P14: 0.03950629789 | Q14: (-1,0.05] | R14: 31 | S14: 15 | T14: 4.240766074 | U14: 1.644736842 | V14: 0.001266428726 | W14: 2.646747197 | X14: ASD_and_ID | Y14: 5366_5;14088_1520;3123_8;3318_3;2204_1;5359_4;20089_1391001;5068_3;20127_4014001;6240_4;21035_1;6301_3;4514_1;16030_1571003001;1946_301;6227_4;4272_1;21012_1;4374_1;5316_3;13123_1403;5032_4;5446_3;8612_201;8737_202;1258_4;2072_1;6130_4;8534_201;4312_1;14247_3710;17031_1;4319_1;5391_3;14295_4160;13159_1763;4534_1;5115_3;8743_202;17025_1;5347_3;5451_3;3038_3;8474_202;17015_1;3183_7;5551_3;3181_7;5444_3;3612_3;3164_3 | Z14: B333151_1007853867;HABC_900920_900920;HABC_900127_900127;B993989_1007854998;B579726_1007854733;110036019115_;HABC_900102_900102;B407753_1007874851;110036004554_r;HABC_902800_902800;110036020873_;B966200_1007843929;HABC_900888_900888;HABC_901094_901094;B712038_0067942594;HABC_902646_902646;HABC_900013_900013 | AA14: ABR;ARC;BCAR1;C5AR1;CDH13;CELSR1;CORO1A;CTHRC1;CXCL13;DCDC2;DOCK1;EPHA3;ERBB4;ESR2;ETS1;FOXD4;FUT8;GDF2;HDAC9;IGF1R;KCTD13;KDR;LRRK2;MCC;MERTK;MSX2;OVOL2;PCNT;PLCB1;PLXNB2;PTPRC;SCRIB;SCYL3;SFTPD;SH3KBP1;SLC16A3;SLC7A9;SPATA13;SPN;TAOK2;TBX1;THBS4;TRIM32;USP33 | AB14: ADAM8;ANGPT2;CD177;CYP1B1;DLC1;GREM1;HAND2;LAMA2;PEAK1 | AC14: GO:0016477
A15: 14 | B15: GO:0006935 | C15: chemotaxis | D15: 565 | E15: 47 | F15: 15 | G15: 5.956907478 | H15: 1.599147122 | I15: 48 | J15: 15 | K15: 31.25 | L15: 8.895549437e-07 | M15: 3.894781262 | N15: 1 | O15: 0.0007701772593 | P15: 0.04979255775 | Q15: (-1,0.05] | R15: 26 | S15: 13 | T15: 3.556771546 | U15: 1.425438596 | V15: 0.003958678251 | W15: 2.548930081 | X15: ASD_and_ID | Y15: 5366_5;3123_8;4374_1;14151_2500;2204_1;5359_4;20089_1391001;5068_3;20127_4014001;4219_1;5007_3;14281_4040;6301_3;4514_1;4288_1;6130_4;2072_1;8705_201;13123_1403;5032_4;5446_3;4430_1;1258_4;3181_7;5081_4;5391_3;3183_7;17015_1;8446_201;3441_3;14412_5210;14283_4060;4524_1;5347_3;5451_3;8474_202;4272_1;5551_3;5454_3;5545_3;13037_463;16074_1571042001;13017_223;13153_1703;17027_1;13216_2383;3612_3 | Z15: B333151_1007853867;HABC_900920_900920;HABC_901068_901068;B312630_0067942574;B277797_1007853793;HABC_900162_900162;B459199_1007840471;B407753_1007874851;110036004554_r;HABC_902800_902800;HABC_900383_900383;B359435_1007843544;B630497_1007872229;110036024081_;HABC_902895_902895 | AA15: BCAR1;C5AR1;CDH13;CHL1;CMTM6;CMTM7;CNTN6;CORO1A;CXCL13;DOCK1;DVL1;EPHA5;FOXD4;GPR77;HFE2;KDR;LIMK1;MAPK3;MAPK8IP3;MYH11;NEO1;NRXN1;NRXN3;PTPRC;SCRIB;SERPIND1;SFTPD;SPN;SPTB;THBS4;TYMP;USP33 | AB15: ADAM8;AGRN;ANGPT2;CACNA1C;CACNA1H;CNTN4;COL4A5;GREM1;PIK3C2G | AC15: GO:0006935
A16: 15 | B16: GO:0042330 | C16: taxis | D16: 565 | E16: 47 | F16: 15 | G16: 5.956907478 | H16: 1.599147122 | I16: 48 | J16: 15 | K16: 31.25 | L16: 8.895549437e-07 | M16: 3.894781262 | N16: 1 | O16: 0.0007701772593 | P16: 0.04979255775 | Q16: (-1,0.05] | R16: 26 | S16: 13 | T16: 3.556771546 | U16: 1.425438596 | V16: 0.003958678251 | W16: 2.548930081 | X16: ASD_and_ID | Y16: 5366_5;3123_8;4374_1;14151_2500;2204_1;5359_4;20089_1391001;5068_3;20127_4014001;4219_1;5007_3;14281_4040;6301_3;4514_1;4288_1;6130_4;2072_1;8705_201;13123_1403;5032_4;5446_3;4430_1;1258_4;3181_7;5081_4;5391_3;3183_7;17015_1;8446_201;3441_3;14412_5210;14283_4060;4524_1;5347_3;5451_3;8474_202;4272_1;5551_3;5454_3;5545_3;13037_463;16074_1571042001;13017_223;13153_1703;17027_1;13216_2383;3612_3 | Z16: B333151_1007853867;HABC_900920_900920;HABC_901068_901068;B312630_0067942574;B277797_1007853793;HABC_900162_900162;B459199_1007840471;B407753_1007874851;110036004554_r;HABC_902800_902800;HABC_900383_900383;B359435_1007843544;B630497_1007872229;110036024081_;HABC_902895_902895 | AA16: BCAR1;C5AR1;CDH13;CHL1;CMTM6;CMTM7;CNTN6;CORO1A;CXCL13;DOCK1;DVL1;EPHA5;FOXD4;GPR77;HFE2;KDR;LIMK1;MAPK3;MAPK8IP3;MYH11;NEO1;NRXN1;NRXN3;PTPRC;SCRIB;SERPIND1;SFTPD;SPN;SPTB;THBS4;TYMP;USP33 | AB16: ADAM8;AGRN;ANGPT2;CACNA1C;CACNA1H;CNTN4;COL4A5;GREM1;PIK3C2G | AC16: GO:0042330
A17: 16 | B17: GO:0000904 | C17: cell morphogenesis involved in differentiation | D17: 633 | E17: 56 | F17: 20 | G17: 7.097591888 | H17: 2.132196162 | I17: 56 | J17: 20 | K17: 35.71428571 | L17: 3.913261595e-07 | M17: 3.504248717 | N17: 1 | O17: 0.0008196305802 | P17: 0.04979255775 | Q17: (-1,0.05] | R17: 30 | S17: 18 | T17: 4.103967168 | U17: 1.973684211 | V17: 0.008307266642 | W17: 2.124579627 | X17: ASD_and_ID | Y17: 14088_1520;4374_1;14151_2500;21035_1;5082_4;5007_3;14281_4040;6301_3;4514_1;4288_1;16030_1571003001;1946_301;8705_201;13123_1403;5032_4;5446_3;4430_1;6130_4;2072_1;5081_4;5391_3;4319_1;8446_201;13159_1763;3441_3;14412_5210;14283_4060;4524_1;13038_473;5340_3;14393_5020;20127_4014001;20089_1391001;2204_1;5068_3;5359_4;8737_202;5347_3;5451_3;17015_1;3183_7;4272_1;8549_201;5396_3;16079_1571066001;5353_3;5454_3;5545_3;13037_463;16074_1571042001;13017_223;13153_1703;17027_1;13216_2383;2211_1;8658_201 | Z17: HABC_900488_900488;B993989_1007854998;HABC_900517_900517;HABC_901068_901068;B312630_0067942574;B277797_1007853793;HABC_900162_900162;B459199_1007840471;110036019115_;B407753_1007874851;HABC_902554_902554;110036004554_r;HABC_900383_900383;B983717_1007842477;HABC_900504_900504;B630497_1007872229;B712038_0067942594;B333151_1007853867;110036024081_;HABC_902895_902895 | AA17: BAI1;BRSK1;CHL1;CNTN6;DOCK1;DVL1;EPHA3;EPHA5;FOXD4;FZD4;HFE2;IGF1R;LIMK1;LPPR4;LRRK2;MAPK3;MAPK8IP2;MAPK8IP3;MERTK;MSX2;MYH11;NEO1;NRXN1;NRXN3;NTRK1;PLXNB2;PPP3CB;PTPRC;RTN4R;RTN4RL1;SHANK1;SHANK3;SPTB;SYNGAP1;ULK2;USP33 | AB17: AGRN;ATG7;CACNA1C;CACNA1H;CNTN4;COL4A5;GREM1;KNDC1;LAMC3;LRRC4C;PEAK1;SIPA1L1;WNT2 | AC17: GO:0000904
A18: 17 | B18: GO:0048870 | C18: cell motility | D18: 791 | E18: 51 | F18: 19 | G18: 6.463878327 | H18: 2.025586354 | I18: 52 | J18: 13 | K18: 25 | L18: 2.395150028e-06 | M18: 3.340291965 | N18: 1 | O18: 0.001078975172 | P18: 0.05826465927 | Q18: (0.05,0.1] | R18: 31 | S18: 16 | T18: 4.240766074 | U18: 1.754385965 | V18: 0.002164891137 | W18: 2.478653323 | X18: ASD_and_ID | Y18: 5366_5;14088_1520;3123_8;3318_3;2204_1;5359_4;20089_1391001;5068_3;20127_4014001;6240_4;21035_1;6301_3;4514_1;16030_1571003001;1946_301;6227_4;4272_1;21012_1;4374_1;5316_3;13123_1403;5032_4;5446_3;8612_201;8737_202;1258_4;2072_1;6130_4;8534_201;4312_1;14247_3710;17031_1;4319_1;5391_3;14295_4160;13159_1763;4534_1;5115_3;8743_202;17025_1;5347_3;5451_3;3038_3;8474_202;17015_1;3183_7;5551_3;3181_7;5444_3;3612_3;3164_3 | Z18: B333151_1007853867;HABC_900920_900920;HABC_900127_900127;B993989_1007854998;B579726_1007854733;110036019115_;HABC_900102_900102;B407753_1007874851;HABC_902817_902817;110036004554_r;HABC_902800_902800;110036020873_;B966200_1007843929;HABC_900888_900888;HABC_901094_901094;B712038_0067942594;HABC_900709_900709;HABC_902646_902646;HABC_900013_900013 | AA18: ABR;ARC;BCAR1;C5AR1;CDH13;CELSR1;CORO1A;CTHRC1;CXCL13;DCDC2;DOCK1;EPHA3;ERBB4;ESR2;ETS1;FOXD4;FUT8;GDF2;HDAC9;IGF1R;KCTD13;KDR;LRRK2;MCC;MERTK;MSX2;OVOL2;PCNT;PLCB1;PLXNB2;PTPRC;RFX3;SCRIB;SCYL3;SFTPD;SH3KBP1;SLC16A3;SLC7A9;SPATA13;SPN;TAOK2;TBX1;THBS4;TRIM32;USP33 | AB18: ADAM8;ANGPT2;CD177;CYP1B1;DLC1;GAS8;GREM1;HAND2;LAMA2;MKKS;PEAK1 | AC18: GO:0048870
A19: 18 | B19: GO:0051674 | C19: localization of cell | D19: 791 | E19: 51 | F19: 19 | G19: 6.463878327 | H19: 2.025586354 | I19: 52 | J19: 13 | K19: 25 | L19: 2.395150028e-06 | M19: 3.340291965 | N19: 1 | O19: 0.001078975172 | P19: 0.05826465927 | Q19: (0.05,0.1] | R19: 31 | S19: 16 | T19: 4.240766074 | U19: 1.754385965 | V19: 0.002164891137 | W19: 2.478653323 | X19: ASD_and_ID | Y19: 5366_5;14088_1520;3123_8;3318_3;2204_1;5359_4;20089_1391001;5068_3;20127_4014001;6240_4;21035_1;6301_3;4514_1;16030_1571003001;1946_301;6227_4;4272_1;21012_1;4374_1;5316_3;13123_1403;5032_4;5446_3;8612_201;8737_202;1258_4;2072_1;6130_4;8534_201;4312_1;14247_3710;17031_1;4319_1;5391_3;14295_4160;13159_1763;4534_1;5115_3;8743_202;17025_1;5347_3;5451_3;3038_3;8474_202;17015_1;3183_7;5551_3;3181_7;5444_3;3612_3;3164_3 | Z19: B333151_1007853867;HABC_900920_900920;HABC_900127_900127;B993989_1007854998;B579726_1007854733;110036019115_;HABC_900102_900102;B407753_1007874851;HABC_902817_902817;110036004554_r;HABC_902800_902800;110036020873_;B966200_1007843929;HABC_900888_900888;HABC_901094_901094;B712038_0067942594;HABC_900709_900709;HABC_902646_902646;HABC_900013_900013 | AA19: ABR;ARC;BCAR1;C5AR1;CDH13;CELSR1;CORO1A;CTHRC1;CXCL13;DCDC2;DOCK1;EPHA3;ERBB4;ESR2;ETS1;FOXD4;FUT8;GDF2;HDAC9;IGF1R;KCTD13;KDR;LRRK2;MCC;MERTK;MSX2;OVOL2;PCNT;PLCB1;PLXNB2;PTPRC;RFX3;SCRIB;SCYL3;SFTPD;SH3KBP1;SLC16A3;SLC7A9;SPATA13;SPN;TAOK2;TBX1;THBS4;TRIM32;USP33 | AB19: ADAM8;ANGPT2;CD177;CYP1B1;DLC1;GAS8;GREM1;HAND2;LAMA2;MKKS;PEAK1 | AC19: GO:0051674
A20: 19 | B20: GO:0008285 | C20: negative regulation of cell proliferation | D20: 475 | E20: 43 | F20: 13 | G20: 5.449936629 | H20: 1.385927505 | I20: 43 | J20: 13 | K20: 30.23255814 | L20: 1.459518957e-06 | M20: 4.098243202 | N20: 1 | O20: 0.001539208783 | P20: 0.07874268089 | Q20: (0.05,0.1] | R20: 23 | S20: 11 | T20: 3.146374829 | U20: 1.206140351 | V20: 0.005074995827 | W20: 2.659339217 | X20: None | Y20: 5366_5;1240_3;3439_3;2211_1;8660_201;6240_4;5428_4;21035_1;17015_1;8703_201;3183_7;5324_3;6227_4;4272_1;17025_1;5316_3;8534_201;4312_1;8737_202;5349_3;14295_4160;13159_1763;13038_473;14167_2720;18100_302;1950_301;16040_1571029001;3135_4;2271_1;16043_1571070001;5354_3;3038_3;8474_202;13123_1403;20127_4014001;5068_3;2204_1;5359_4;20089_1391001;4276_1;1258_4;14246_3700;3174_3 | Z20: HABC_900920_900920;HABC_900127_900127;HABC_900102_900102;HABC_902817_902817;B331842_1007873285;HABC_902583_902583;HABC_902652_902652;HABC_900299_900299;HABC_901257_901257;B944304_1007853858;B495422_1007852884;B324430_1007841789;B816843_1007852642 | AA20: ADAMTS8;ADM;BAI1;CDH13;CDK10;CDKN1C;COMT;ERBB4;ESR2;ETS1;FNTB;GDF2;GML;IL2RA;ING5;KAT2B;KIFAP3;KLF13;LILRB1;LRRK2;MCC;MSX2;NTRK1;OVOL2;PARP10;PEMT;PINX1;RNF139;SFTPD;SMARCA2;SPN;TRIM32 | AB20: ATM;BRCA2;DLC1;GAS8;PMP22;SCIN;STK3 | AC20: GO:0008285
A21: 20 | B21: GO:0008284 | C21: positive regulation of cell proliferation | D21: 591 | E21: 37 | F21: 9 | G21: 4.689480355 | H21: 0.9594882729 | I21: 37 | J21: 13 | K21: 35.13513514 | L21: 1.074174773e-06 | M21: 5.075026419 | N21: 1 | O21: 0.001969120933 | P21: 0.09538555097 | Q21: (0.05,0.1] | R21: 19 | S21: 9 | T21: 2.599179207 | U21: 0.9868421053 | V21: 0.01025167958 | W21: 2.67586805 | X21: None | Y21: 5366_5;2204_1;5359_4;20089_1391001;5068_3;20127_4014001;16040_1571029001;1950_301;14167_2720;18100_302;5324_3;4456_1;6227_4;6240_4;2211_1;4272_1;8534_201;4312_1;14398_5070;4319_1;5349_3;5396_3;5391_3;4240_1;3176_3;8446_201;5347_3;5451_3;5340_3;8695_201;3141_3;14211_3380;17015_1;3183_7;5551_3;4288_1;6321_3 | Z21: HABC_900920_900920;HABC_900102_900102;B834420_1007871651;B326195_1007874649;B614568_1007871710;110036015063_;HABC_900441_900441;HABC_900504_900504;HABC_902521_902521 | AA21: ADM;ALDH3A1;ARNT;BMI1;BNC1;CDH13;CHRNA7;CLEC11A;CORO1A;CYP7B1;ECM1;ERBB4;ETS1;FNTB;GDF2;IGF1R;IL11;IL2RA;KDR;MLXIPL;MNAT1;PTPRC;SPN;STS;TBX1;THBS4;TNFRSF4;UTS2R | AB21: CDK13;EAPP;KDM4C;TLR4;WNT2 | AC21: GO:0008284
A22: 21 | B22: GO:0001932 | C22: regulation of protein phosphorylation | D22: 758 | E22: 52 | F22: 21 | G22: 6.590621039 | H22: 2.23880597 | I22: 56 | J22: 17 | K22: 30.35714286 | L22: 5.805599452e-06 | M22: 3.0790227 | N22: 1 | O22: 0.002080053287 | P22: 0.09538555097 | Q22: (0.05,0.1] | R22: 28 | S22: 19 | T22: 3.830369357 | U22: 2.083333333 | V22: 0.02518111477 | W22: 1.871227145 | X22: None | Y22: 1240_3;6162_4;16040_1571029001;1950_301;14167_2720;18100_302;21035_1;5444_3;21006_1;4450_1;4288_1;6227_4;8534_201;4312_1;8559_201;4430_1;6130_4;2072_1;8549_201;3174_3;6261_3;14335_4490;14071_1240;4272_1;6240_4;4319_1;5396_3;3176_3;20127_4014001;2204_1;5068_3;5359_4;4317_1;13038_473;3382_5;3567_4;6016_3;8612_201;5326_3;8617_201;14103_1780;2267_1;8446_201;5451_3;20089_1391001;5347_3;17015_1;3183_7;5551_3;3181_7;13123_1403;4236_1 | Z22: B333151_1007853867;B136270_1007872262;HABC_902475_902475;HABC_900102_900102;B425638_1007872643;HABC_902654_902654;B180195_1007874261;HABC_902836_902836;HABC_902631_902631;B667696_1007873586;B719465_1007853907;HABC_900951_900951;B705813_1007874646;B270421_1007874687;HABC_900391_900391;HABC_900438_900438;HABC_900013_900013;B324430_1007841789;HABC_900441_900441;B467732_1007842340;B566863_1007875835 | AA22: APLP2;C5AR1;CDKN1C;CERK;CHRNA7;CSNK1D;DVL1;EEF2K;ERBB4;ERCC6;FABP4;GDF2;GRM5;HSPA2;IGF1R;IL11;KAT2B;LRRK2;MADD;MAP2K3;MAPK11;MAPK3;MAPK8IP2;MAPK8IP3;MLXIPL;MNAT1;MUSK;NOD1;NTRK1;PARK2;PLXNB2;PRKACB;PTPRC;SULT1A4;TAOK2;TBX1;THBS4;TNFRSF4;TTN;VLDLR;ZNF675 | AB22: ADAM8;AGK;ARFGAP1;BIRC7;CSPG4;KIAA1804;LRRN3;SPRED1;STK3;TLR4 | AC22: GO:0001932
A23: 22 | B23: GO:0007411 | C23: axon guidance | D23: 341 | E23: 35 | F23: 10 | G23: 4.43599493 | H23: 1.066098081 | I23: 35 | J23: 12 | K23: 34.28571429 | L23: 8.911732548e-06 | M23: 4.304342929 | N23: 1 | O23: 0.002158932224 | P23: 0.09538555097 | Q23: (0.05,0.1] | R23: 20 | S23: 10 | T23: 2.735978112 | U23: 1.096491228 | V23: 0.0113237717 | W23: 2.535864021 | X23: ASD_and_ID | Y23: 4374_1;14151_2500;5007_3;14281_4040;6301_3;4514_1;4288_1;8705_201;13123_1403;5032_4;5446_3;4430_1;5081_4;5391_3;8446_201;3441_3;14412_5210;14283_4060;4524_1;20127_4014001;20089_1391001;2204_1;5068_3;5359_4;5347_3;5451_3;4272_1;5454_3;5545_3;13037_463;16074_1571042001;13017_223;13153_1703;17027_1;13216_2383 | Z23: HABC_901068_901068;B312630_0067942574;B277797_1007853793;HABC_900162_900162;B459199_1007840471;B407753_1007874851;HABC_900383_900383;B630497_1007872229;110036024081_;HABC_902895_902895 | AA23: CHL1;CNTN6;DOCK1;DVL1;EPHA5;FOXD4;HFE2;LIMK1;MAPK3;MAPK8IP3;MYH11;NEO1;NRXN1;NRXN3;PTPRC;SPTB;USP33 | AB23: AGRN;CACNA1C;CACNA1H;CNTN4;COL4A5 | AC23: GO:0007411
A24: 23 | B24: GO:0031399 | C24: regulation of protein modification process | D24: 932 | E24: 61 | F24: 29 | G24: 7.73130545 | H24: 3.091684435 | I24: 65 | J24: 19 | K24: 29.23076923 | L24: 1.19262152e-05 | M24: 2.624985396 | N24: 1 | O24: 0.002294943838 | P24: 0.09698632218 | Q24: (0.05,0.1] | R24: 34 | S24: 26 | T24: 4.651162791 | U24: 2.850877193 | V24: 0.03623873433 | W24: 1.6617408 | X24: None | Y24: 1240_3;6162_4;5007_3;5428_4;16040_1571029001;1950_301;14167_2720;18100_302;21035_1;5444_3;5032_4;21006_1;4450_1;4288_1;6227_4;8534_201;4312_1;8559_201;4430_1;6130_4;2072_1;14061_1040;5396_3;8549_201;3174_3;6261_3;14335_4490;14071_1240;4272_1;6240_4;4319_1;8446_201;4456_1;3176_3;20127_4014001;2204_1;5068_3;5359_4;4317_1;13038_473;3382_5;3567_4;6016_3;8612_201;5326_3;8617_201;14103_1780;2267_1;5451_3;20089_1391001;8404_201;1960_301;4236_1;5347_3;3141_3;14211_3380;17015_1;3183_7;5551_3;3181_7;13123_1403 | Z24: B333151_1007853867;HABC_900127_900127;HABC_900517_900517;B136270_1007872262;B347545_0067942603;HABC_901120_901120;B755839_1007845915;110036005551_;B413550_1007872281;HABC_902475_902475;HABC_900102_900102;B425638_1007872643;HABC_902654_902654;B180195_1007874261;HABC_902836_902836;HABC_902631_902631;B667696_1007873586;B719465_1007853907;HABC_900951_900951;B705813_1007874646;B270421_1007874687;HABC_900391_900391;HABC_900438_900438;B993989_1007854998;HABC_900013_900013;B324430_1007841789;HABC_900441_900441;B467732_1007842340;B566863_1007875835 | AA24: APLP2;ARNT;BMI1;C5AR1;CDKN1C;CERK;CHRNA7;CSNK1D;DVL1;EEF2K;ERBB4;ERCC6;FABP4;GDF2;GRM5;HSPA2;IGF1R;IL11;KAT2B;LIMK1;LRRK2;MADD;MAP2K3;MAPK11;MAPK3;MAPK8;MAPK8IP2;MAPK8IP3;MLXIPL;MNAT1;MUSK;NDNL2;NOC2L;NOD1;NTRK1;PARK2;PIAS3;PLXNB2;PRKACB;PSMB1;PSMC2;PSMC3;PTPRC;RNF139;SPI1;SULT1A4;TAOK2;TBX1;THBS4;TNFRSF4;TTN;UBE2S;VLDLR;ZNF675 | AB24: ADAM8;AGK;ANAPC1;ARFGAP1;ATG7;BIRC7;COMMD1;CSPG4;DLC1;FBXO22;KIAA1804;LRRN3;SPRED1;STK3;TLR4 | AC24: GO:0031399
A25: 24 | B25: GO:0040007 | C25: growth | D25: 718 | E25: 39 | F25: 13 | G25: 4.942965779 | H25: 1.385927505 | I25: 39 | J25: 14 | K25: 35.8974359 | L25: 1.263849078e-05 | M25: 3.697360168 | N25: 1 | O25: 0.002675489957 | P25: 0.09930002729 | Q25: (0.05,0.1] | R25: 21 | S25: 12 | T25: 2.872777018 | U25: 1.315789474 | V25: 0.01996062902 | W25: 2.217255716 | X25: ASD_and_ID | Y25: 2211_1;3439_3;8534_201;4312_1;16077_1571056001;5324_3;4288_1;6227_4;4272_1;5316_3;13123_1403;5032_4;8612_201;1960_301;14398_5070;8446_201;8737_202;13159_1763;4317_1;4236_1;4534_1;14144_2420;1258_4;5008_3;14393_5020;1950_301;6053_3;5213_3;13003_43;4530_1;18095_301;4276_1;8638_201;20089_1391001;5359_4;2204_1;20127_4014001;5068_3;3612_3 | Z25: B993989_1007854998;HABC_900102_900102;110036004554_r;HABC_900383_900383;B378731_1007852637;HABC_902879_902879;HABC_901085_901085;HABC_902884_902884;B944304_1007853858;B495422_1007852884;B324430_1007841789;HABC_900571_900571;HABC_900504_900504 | AA25: ADM;BCAR1;BRMS1L;CDK11A;CDK11B;CHAT;CRIM1;DMBX1;DNAJC2;DVL1;ERBB4;ESR2;EXOSC4;FOXD4;GDF10;GDF2;ING5;LIMK1;LY6E;MSX2;MUSK;NCAPG2;NDNL2;NDUFS3;PCNT;PLCB1;PPP3CB;PRSS2;RAI1;SMARCA2;TAOK2;TRIM32;UTS2R | AB25: AGRN;ATAD3A;BCL2L11;BMPR1B;BRCA2;GREM1;NELL2;STK3;THBS3;WNT2 | AC25: GO:0040007
A26: 25 | B26: GO:0072358 | C26: cardiovascular system development | D26: 689 | E26: 50 | F26: 18 | G26: 6.337135615 | H26: 1.918976546 | I26: 51 | J26: 17 | K26: 33.33333333 | L26: 1.918283401e-06 | M26: 3.455753583 | N26: 1 | O26: 0.002748196728 | P26: 0.09930002729 | Q26: (0.05,0.1] | R26: 25 | S26: 15 | T26: 3.41997264 | U26: 1.644736842 | V26: 0.01561033833 | W26: 2.116617596 | X26: ASD_and_ID | Y26: 5366_5;3123_8;3183_7;8703_201;17015_1;16040_1571029001;1950_301;14167_2720;18100_302;5324_3;4288_1;6130_4;2072_1;4456_1;6227_4;6240_4;5314_3;3539_4;8534_201;4312_1;8635_201;14398_5070;8446_201;5391_3;8737_202;3176_3;13159_1763;4236_1;3441_3;14412_5210;14283_4060;13038_473;14393_5020;2211_1;5537_3;3038_3;13123_1403;8404_201;5551_3;5451_3;8549_201;5454_3;5545_3;13037_463;16074_1571042001;13017_223;13153_1703;17027_1;13216_2383;3164_3 | Z26: B333151_1007853867;HABC_900920_900920;HABC_900127_900127;HABC_900517_900517;B136270_1007872262;B579726_1007854733;HABC_900102_900102;110036004554_r;HABC_902800_902800;B331842_1007873285;B771049_1007845881;B324430_1007841789;B467732_1007842340;HABC_900504_900504;HABC_900709_900709;HABC_902895_902895;HABC_902646_902646;B531891_1007854698 | AA26: ADM;ADM2;ALPK3;ARHGAP22;BAI1;BAZ1B;CDH13;CHRNA7;CRKL;CXCL13;DVL1;ECM1;ERBB4;ETS1;FZD4;FZD9;GDF2;GJA5;GTF2I;HDAC9;KDR;LY6E;MAPK7;MNAT1;MSX2;MYBPC3;MYH11;NRXN1;NRXN3;NTRK1;OVOL2;PPP3CB;SMARCA2;TBX1;TCF25;THBS2;THBS4;TSPAN12;TTN;TXNRD2;TYMP;UTS2R;VLDLR | AB26: ADAM8;ANGPT2;ATG7;ATM;CSPG4;CYP1B1;DLC1;GREM1;HAND2;MKKS;RNH1;SLC12A6;STK3;TBX4;WNT2 | AC26: GO:0072358
A27: 26 | B27: GO:0072359 | C27: circulatory system development | D27: 689 | E27: 50 | F27: 18 | G27: 6.337135615 | H27: 1.918976546 | I27: 51 | J27: 17 | K27: 33.33333333 | L27: 1.918283401e-06 | M27: 3.455753583 | N27: 1 | O27: 0.002748196728 | P27: 0.09930002729 | Q27: (0.05,0.1] | R27: 25 | S27: 15 | T27: 3.41997264 | U27: 1.644736842 | V27: 0.01561033833 | W27: 2.116617596 | X27: ASD_and_ID | Y27: 5366_5;3123_8;3183_7;8703_201;17015_1;16040_1571029001;1950_301;14167_2720;18100_302;5324_3;4288_1;6130_4;2072_1;4456_1;6227_4;6240_4;5314_3;3539_4;8534_201;4312_1;8635_201;14398_5070;8446_201;5391_3;8737_202;3176_3;13159_1763;4236_1;3441_3;14412_5210;14283_4060;13038_473;14393_5020;2211_1;5537_3;3038_3;13123_1403;8404_201;5551_3;5451_3;8549_201;5454_3;5545_3;13037_463;16074_1571042001;13017_223;13153_1703;17027_1;13216_2383;3164_3 | Z27: B333151_1007853867;HABC_900920_900920;HABC_900127_900127;HABC_900517_900517;B136270_1007872262;B579726_1007854733;HABC_900102_900102;110036004554_r;HABC_902800_902800;B331842_1007873285;B771049_1007845881;B324430_1007841789;B467732_1007842340;HABC_900504_900504;HABC_900709_900709;HABC_902895_902895;HABC_902646_902646;B531891_1007854698 | AA27: ADM;ADM2;ALPK3;ARHGAP22;BAI1;BAZ1B;CDH13;CHRNA7;CRKL;CXCL13;DVL1;ECM1;ERBB4;ETS1;FZD4;FZD9;GDF2;GJA5;GTF2I;HDAC9;KDR;LY6E;MAPK7;MNAT1;MSX2;MYBPC3;MYH11;NRXN1;NRXN3;NTRK1;OVOL2;PPP3CB;SMARCA2;TBX1;TCF25;THBS2;THBS4;TSPAN12;TTN;TXNRD2;TYMP;UTS2R;VLDLR | AB27: ADAM8;ANGPT2;ATG7;ATM;CSPG4;CYP1B1;DLC1;GREM1;HAND2;MKKS;RNH1;SLC12A6;STK3;TBX4;WNT2 | AC27: GO:0072359
A28: 27 | B28: GO:0051726 | C28: regulation of cell cycle | D28: 697 | E28: 42 | F28: 10 | G28: 5.323193916 | H28: 1.066098081 | I28: 42 | J28: 14 | K28: 33.33333333 | L28: 1.513618518e-07 | M28: 5.213810806 | N28: 1 | O28: 0.002758334091 | P28: 0.09930002729 | Q28: (0.05,0.1] | R28: 22 | S28: 10 | T28: 3.009575923 | U28: 1.096491228 | V28: 0.00452292938 | W28: 2.797163713 | X28: ASD_and_ID | Y28: 1240_3;8660_201;6240_4;5316_3;8612_201;4272_1;1258_4;4253_1;8737_202;5371_3;6130_4;2072_1;3176_3;8446_201;4219_1;4256_1;6024_7;6336_4;8635_201;8404_201;1960_301;4236_1;5347_3;5451_3;3038_3;17015_1;3183_7;5056_4;5213_3;13003_43;4530_1;18095_301;6340_3;4456_1;5396_3;14246_3700;3174_3;20089_1391001;5359_4;2204_1;20127_4014001;5068_3 | Z28: B993989_1007854998;HABC_901257_901257;B331842_1007873285;B944304_1007853858;B495422_1007852884;HABC_900907_900907;B887823_1007874701;B592971_1007873531;HABC_902593_902593;HABC_902521_902521 | AA28: BRSK1;CDC45;CDK10;CDK11A;CDKN1C;DYNC1LI1;ETS1;FNTB;GML;HORMAD1;HSPA2;HUS1;KAT2B;LILRB1;MADD;MAPK12;MLXIPL;MNAT1;ORC3;OVOL2;PIM3;PLCB1;PPM1A;PRKAB2;PSMB1;PSMC2;PSMC3;PTPRC;RANBP1;RFC2;RFWD3;SCRIB;SETMAR;TAOK2;TRIM32;UBE2L3;YY1AP1 | AB28: ANAPC1;ATM;BCL2L11;BRCA2;BUB1;CDK13;SLBP;USP17L2;XPC | AC28: GO:0051726
A29: 28 | B29: REACT:708 | C29: REACT: Neuronal System | D29: 289 | E29: 26 | F29: 6 | G29: 3.29531052 | H29: 0.6396588486 | I29: 26 | J29: 10 | K29: 38.46153846 | L29: 3.48394201e-05 | M29: 5.287826463 | N29: 1 | O29: 0.002792044417 | P29: 0.09527738102 | Q29: (0.05,0.1] | R29: 12 | S29: 6 | T29: 1.641586867 | U29: 0.6578947368 | V29: 0.04815756779 | W29: 2.518781701 | X29: ASD_and_ID | Y29: 4312_1;8534_201;14167_2720;1950_301;18100_302;16040_1571029001;17015_1;3183_7;8703_201;13123_1403;3308_4;3318_3;8612_201;8465_202;5079_4;6240_4;3567_4;13204_883;20057_1290002;2204_1;5451_3;2072_1;6130_4;8446_201;14393_5020;4272_1 | Z29: HABC_900362_900362;B466917_1007874508;HABC_902486_902486;B532470_1007875811;B592971_1007873531;HABC_900315_900315 | AA29: ABAT;AKAP5;CAMK2G;CHAT;CHRNA7;COMT;GNG13;GNG2;GRIK2;KCNH1;KCNJ1;KCNJ12;KCNJ5;KCNV2;PANX2;PLCB1;PRKACB;SLC18A3;STX1A | AB29: GRIP2;STX8;SYT2;UNC13B | AC29: REACT:708
A30: 29 | B30: REACT:302 | C30: REACT: Developmental Biology | D30: 420 | E30: 29 | F30: 6 | G30: 3.675538657 | H30: 0.6396588486 | I30: 29 | J30: 11 | K30: 37.93103448 | L30: 5.563402438e-06 | M30: 5.92120575 | N30: 1 | O30: 0.002905826082 | P30: 0.09527738102 | Q30: (0.05,0.1] | R30: 10 | S30: 6 | T30: 1.367989056 | U30: 0.6578947368 | V30: 0.114637513 | W30: 2.093393826 | X30: ASD_and_ID | Y30: 4374_1;14151_2500;5007_3;6301_3;4514_1;8559_201;5081_4;5391_3;8446_201;3441_3;14283_4060;14412_5210;4524_1;17015_1;3183_7;2275_1;2211_1;3439_3;5359_4;20127_4014001;2204_1;20089_1391001;5068_3;2072_1;6130_4;5347_3;5451_3;8496_202;4272_1 | Z30: HABC_901068_901068;B312630_0067942574;B277797_1007853793;HABC_900383_900383;B630497_1007872229;110036024081_ | AA30: CHL1;CNTN6;DOCK1;FABP4;HFE2;LIMK1;MAPK11;MAPK12;MAPK3;MED15;MED18;MED9;MYH11;NEO1;PTPRC;SCN7A;SPTB;SREBF1 | AB30: AGRN;CACNA1C;CACNA1H;COL4A5 | AC30: REACT:302
A31: 30 | B31: GO:2000026 | C31: regulation of multicellular organismal development | D31: 957 | E31: 60 | F31: 29 | G31: 7.604562738 | H31: 3.091684435 | I31: 61 | J31: 17 | K31: 27.86885246 | L31: 1.833990078e-05 | M31: 2.578436683 | N31: 1 | O31: 0.003282351334 | P31: 0.113944482 | Q31: (0.1,0.15] | R31: 39 | S31: 25 | T31: 5.335157319 | U31: 2.74122807 | V31: 0.005154681754 | W31: 1.998773191 | X31: ASD_and_ID | Y31: 3123_8;8660_201;16040_1571029001;1950_301;14167_2720;18100_302;6240_4;4312_1;8534_201;21035_1;14281_4040;21006_1;4450_1;4288_1;4456_1;16030_1571003001;1946_301;6227_4;8437_202;5316_3;13123_1403;5032_4;8612_201;3539_4;2072_1;6130_4;14398_5070;8404_201;8549_201;8446_201;4339_1;5349_3;5391_3;13159_1763;4317_1;13038_473;3135_4;2271_1;4399_1;4190_1;2211_1;8737_202;3038_3;20028_1134001;3141_3;14211_3380;17015_1;3183_7;4236_1;5551_3;1347_301;16079_1571066001;5353_3;13037_463;16074_1571042001;13017_223;13153_1703;17027_1;13216_2383;3164_3 | Z31: B333151_1007853867;110036019446_;HABC_900162_900162;B459199_1007840471;110036019115_;HABC_900102_900102;HABC_902554_902554;B136270_1007872262;110036004554_r;HABC_902800_902800;B472351_1007842232;HABC_900383_900383;B966200_1007843929;HABC_902583_902583;HABC_902652_902652;HABC_900299_900299;B983717_1007842477;B771049_1007845881;HABC_902884_902884;B944304_1007853858;B495422_1007852884;HABC_900472_900472;HABC_900441_900441;HABC_900504_900504;B993989_1007854998;B816843_1007852642;HABC_902895_902895;HABC_902646_902646;HABC_900013_900013 | AA31: ADM2;ARNT;ASPN;BAI1;BMI1;BMP2K;CA2;CELSR1;CHRNA7;CTHRC1;CXCL13;DLL1;DVL1;ECM1;EPHA3;ERBB4;ETS1;FBN2;FOXD4;GDF2;GRM5;GTF2I;HDAC9;HLA-DOA;IL2RA;KDR;KLF13;LILRB4;LIMK1;LRRK2;MAPK7;MAPK8;MSX2;MUSK;NRXN1;NTRK1;OVOL2;PLCB1;PLXNB2;RFX3;RTN4R;SHANK3;SMAP1;SPI1;SYNGAP1;TBX1;THBS2;THBS4;TRIM32;TSPAN12;UTS2R;ZNF488;ZNF675 | AB31: ADAM8;AGRN;ANGPT2;BMPR1B;BRCA2;CNTN4;DYNLT1;FBXO22;GREM1;HAND2;KNDC1;LAMA2;LILRB3;LRRC4C;NKX6-2;PMP22;RNH1;SCIN;SIPA1L1;TLR4;WNT2;ZC3H8 | AC31: GO:2000026
A32: 31 | B32: REACT:1181 | C32: REACT: Transmission across Chemical Synapses | D32: 190 | E32: 21 | F32: 3 | G32: 2.661596958 | H32: 0.3198294243 | I32: 21 | J32: 7 | K32: 33.33333333 | L32: 2.330307322e-05 | M32: 8.513362441 | N32: 1 | O32: 0.003512946803 | P32: 0.09527738102 | Q32: (0.05,0.1] | R32: 10 | S32: 3 | T32: 1.367989056 | U32: 0.3289473684 | V32: 0.01820698825 | W32: 4.199099444 | X32: ASD_and_ID | Y32: 4312_1;8534_201;14167_2720;1950_301;18100_302;16040_1571029001;17015_1;3183_7;8703_201;3318_3;8612_201;8465_202;6240_4;3567_4;13204_883;20057_1290002;2204_1;5451_3;8446_201;14393_5020;4272_1 | Z32: HABC_900362_900362;B532470_1007875811;B592971_1007873531 | AA32: ABAT;AKAP5;CAMK2G;CHAT;CHRNA7;COMT;GNG13;GNG2;GRIK2;KCNJ12;KCNJ5;PLCB1;PRKACB;SLC18A3;STX1A | AB32: GRIP2;UNC13B | AC32: REACT:1181
A33: 32 | B33: KEGG:04724 | C33: Glutamatergic synapse | D33: 126 | E33: 19 | F33: 2 | G33: 2.408111534 | H33: 0.2132196162 | I33: 20 | J33: 11 | K33: 55 | L33: 2.095174426e-05 | M33: 11.53561205 | N33: 1 | O33: 0.003561771253 | P33: 0.09527738102 | Q33: (0.05,0.1] | R33: 10 | S33: 2 | T33: 1.367989056 | U33: 0.2192982456 | V33: 0.00696918439 | W33: 6.3039591 | X33: ASD_and_ID | Y33: 6325_3;6319_3;5237_3;8612_201;8465_202;8549_201;5340_3;13204_883;20057_1290002;2204_1;14393_5020;5451_3;5359_4;20127_4014001;20089_1391001;5068_3;2072_1;6130_4;16079_1571066001 | Z33: HABC_900623_900623;B630497_1007872229 | AA33: GNG13;GNG2;GRIK2;GRM5;MAPK3;PLCB1;PPP3CB;PRKACB;SHANK1;SHANK2;SHANK3 | AB33: CACNA1C;GRM7 | AC33: KEGG:04724
A34: 33 | B34: GO:0022603 | C34: regulation of anatomical structure morphogenesis | D34: 512 | E34: 41 | F34: 12 | G34: 5.196451204 | H34: 1.279317697 | I34: 42 | J34: 17 | K34: =(J34/I34)*100 -> 40.47619048 | L34: 1.846696991e-06 | M34: 4.226456281 | N34: 1 | O34: 0.003873714044 | P34: 0.1263719967 | Q34: (0.1,0.15] | R34: 18 | S34: 10 | T34: 2.462380301 | U34: 1.096491228 | V34: 0.02677085347 | W34: 2.276021216 | X34: None | Y34: 3123_8;2204_1;5359_4;20089_1391001;5068_3;20127_4014001;16040_1571029001;1950_301;14167_2720;18100_302;6240_4;21035_1;13037_463;4288_1;4456_1;16030_1571003001;1946_301;8737_202;3539_4;2072_1;6130_4;8534_201;4312_1;14398_5070;8446_201;17031_1;14393_5020;1960_301;5391_3;13038_473;4399_1;8658_201;2211_1;5091_4;17015_1;3183_7;8404_201;5551_3;4228_1;5353_3;3164_3 | Z34: HABC_900127_900127;110036019115_;HABC_902554_902554;110036004554_r;HABC_902800_902800;110036020873_;B983717_1007842477;B771049_1007845881;HABC_900504_900504;B333151_1007853867;HABC_902646_902646;HABC_900013_900013 | AA34: ADM2;ALDOA;ANXA7;ARC;ASPN;BAI1;C21orf2;CAMSAP1;CDC42SE2;CELSR1;CHRNA7;CORO1A;CTHRC1;CXCL13;DVL1;ECM1;EPHA3;ETS1;GDF2;GTF2I;HDAC9;KDR;LIMK1;LRRK2;MAPK7;NTRK1;PALMD;PLXNB2;RTN4R;SH3KBP1;SLC26A5;SYNGAP1;TAOK2;TBX1;THBS2;THBS4;TSPAN12;UTS2R | AB34: ANGPT2;DLC1;GREM1;HAND2;KNDC1;LRRC4C;RNH1;SIPA1L1;WNT2 | AC34: GO:0022603
A35: 34 | B35: GO:0042325 | C35: regulation of phosphorylation | D35: 811 | E35: 52 | F35: 23 | G35: 6.590621039 | H35: 2.452025586 | I35: 56 | J35: 17 | K35: 30.35714286 | L35: 2.043529674e-05 | M35: 2.805284337 | N35: 1 | O35: 0.003900370267 | P35: 0.1263719967 | Q35: (0.1,0.15] | R35: 28 | S35: 21 | T35: 3.830369357 | U35: 2.302631579 | V35: 0.04855085442 | W35: 1.689326963 | X35: None | Y35: 1240_3;6162_4;16040_1571029001;1950_301;14167_2720;18100_302;21035_1;5444_3;21006_1;4450_1;4288_1;6227_4;8534_201;4312_1;8559_201;4430_1;6130_4;2072_1;8549_201;3174_3;6261_3;14335_4490;14071_1240;4272_1;6240_4;4319_1;5396_3;3176_3;20127_4014001;2204_1;5068_3;5359_4;4317_1;13038_473;3382_5;3567_4;6016_3;8612_201;5326_3;8617_201;14103_1780;2267_1;8446_201;5451_3;20089_1391001;5347_3;17015_1;3183_7;5551_3;3181_7;13123_1403;4236_1 | Z35: B333151_1007853867;B877576_1007874042;B136270_1007872262;HABC_902475_902475;HABC_900102_900102;B425638_1007872643;HABC_902654_902654;B180195_1007874261;HABC_902836_902836;HABC_902631_902631;B667696_1007873586;B719465_1007853907;HABC_900951_900951;B705813_1007874646;B270421_1007874687;HABC_900391_900391;HABC_900438_900438;B782197_1007875255;HABC_900013_900013;B324430_1007841789;HABC_900441_900441;B467732_1007842340;B566863_1007875835 | AA35: APLP2;C5AR1;CDKN1C;CERK;CHRNA7;CSNK1D;DVL1;EEF2K;ERBB4;ERCC6;FABP4;GDF2;GRM5;HSPA2;IGF1R;IL11;KAT2B;LRRK2;MADD;MAP2K3;MAPK11;MAPK3;MAPK8IP2;MAPK8IP3;MLXIPL;MNAT1;MUSK;NOD1;NTRK1;PARK2;PLXNB2;PRKACB;PTPRC;SULT1A4;TAOK2;TBX1;THBS4;TNFRSF4;TTN;VLDLR;ZNF675 | AB35: ADAM8;AGK;ARFGAP1;ATXN1;BIRC7;C1orf88;CSPG4;KIAA1804;LRRN3;SPRED1;STK3;TLR4 | AC35: GO:0042325
A36: 35 | B36: GO:0005625 | C36: soluble fraction | D36: 369 | E36: 35 | F36: 9 | G36: 4.43599493 | H36: 0.9594882729 | I36: 35 | J36: 12 | K36: 34.28571429 | L36: 3.490866353e-06 | M36: 4.787879501 | N36: 1 | O36: 0.004991801815 | P36: 0.1525639362 | Q36: (0.15,0.2] | R36: 16 | S36: 8 | T36: 2.18878249 | U36: 0.8771929825 | V36: 0.02312150368 | W36: 2.527275096 | X36: ID_only | Y36: 5449_3;14088_1520;3123_8;14108_1940;17015_1;8703_201;3183_7;5324_3;20090_1392002;8658_201;3017_3;8534_201;4312_1;8559_201;4430_1;14393_5020;5537_3;4288_1;3439_3;2211_1;6340_3;3263_3;5126_4;3616_3;3452_3;8488_202;20127_4014001;20089_1391001;2204_1;5068_3;5359_4;5556_3;2072_1;6130_4;3065_5 | Z36: B993989_1007854998;B555308_1007853571;HABC_900229_900229;B141230_1007874883;HABC_900449_900449;HABC_900489_900489;B333151_1007853867;HABC_900637_900637;B306257_1007873482 | AA36: ACP1;ADM;AGL;ANXA7;AS3MT;COMT;CSGALNACT1;CSNK1G2;CXCL13;ECHS1;ERCC6;FABP4;GYG2;LOC100506658;MAPK12;MAPK3;MAPK8IP3;MERTK;NMB;PARG;PFKP;PPP3CB;RASD1;SDF4 | AB36: ERCC8;FARS2;FSHB;MAN2B1 | AC36: GO:0005625
A37: 36 | B37: GO:0016049 | C37: cell growth | D37: 353 | E37: 25 | F37: 3 | G37: 3.168567807 | H37: 0.3198294243 | I37: 25 | J37: 11 | K37: 44 | L37: 1.525469459e-06 | M37: 10.1876687 | N37: 1 | O37: 0.005022681027 | P37: 0.1525639362 | Q37: (0.15,0.2] | R37: 11 | S37: 2 | T37: 1.504787962 | U37: 0.2192982456 | V37: 0.003597843232 | W37: 6.943923386 | X37: None | Y37: 4288_1;4272_1;5316_3;13123_1403;5032_4;8534_201;4312_1;1960_301;14398_5070;8446_201;4236_1;14144_2420;1258_4;14393_5020;6053_3;5213_3;13003_43;4530_1;18095_301;20089_1391001;5359_4;2204_1;20127_4014001;5068_3;3612_3 | Z37: 110036004554_r;HABC_902879_902879;HABC_901085_901085 | AA37: BCAR1;CDK11A;CDK11B;CRIM1;DNAJC2;DVL1;ESR2;EXOSC4;FOXD4;GDF2;LIMK1;NDUFS3;PPP3CB;PRSS2;SMARCA2;TAOK2;TRIM32;UTS2R | AB37: ATAD3A;GREM1 | AC37: GO:0016049
A38: 37 | B38: GO:0000165 | C38: MAPK cascade | D38: 387 | E38: 29 | F38: 6 | G38: 3.675538657 | H38: 0.6396588486 | I38: 30 | J38: 10 | K38: 33.33333333 | L38: 5.563402438e-06 | M38: 5.92120575 | N38: 1 | O38: 0.005683359939 | P38: 0.1674007837 | Q38: (0.15,0.2] | R38: 14 | S38: 6 | T38: 1.915184679 | U38: 0.6578947368 | V38: 0.01856575717 | W38: 2.946518996 | X38: ASD_and_ID | Y38: 6162_4;21035_1;3183_7;17015_1;21006_1;4450_1;6227_4;8534_201;4312_1;4430_1;8612_201;6130_4;2072_1;8465_202;4319_1;5396_3;5391_3;13038_473;21012_1;4374_1;20127_4014001;20089_1391001;2204_1;5068_3;5359_4;2211_1;3567_4;4372_1;5353_3 | Z38: HABC_900102_900102;B594795_1007871727;B324430_1007841789;HABC_900441_900441;HABC_900391_900391;B566863_1007875835 | AA38: CRKL;EDA2R;ERBB4;ERCC6;GRIK2;IGF1R;IL11;KDR;LRRK2;MAP2K3;MAPK11;MAPK12;MAPK3;MAPK7;MAPK8;MAPK8IP2;MAPK8IP3;NOD1;NTRK1;PLCB1;SYNGAP1;TAOK2;TBX1;TNFRSF19;ZNF675 | AB38: BIRC7;KIAA1804;STK3;TLR4 | AC38: GO:0000165
A39: 38 | B39: GO:0048646 | C39: anatomical structure formation involved in morphogenesis | D39: 710 | E39: 57 | F39: 23 | G39: 7.224334601 | H39: 2.452025586 | I39: 58 | J39: 21 | K39: 36.20689655 | L39: 1.968794034e-06 | M39: 3.095867234 | N39: 1 | O39: 0.006027501407 | P39: 0.1702415148 | Q39: (0.15,0.2] | R39: 27 | S39: 19 | T39: 3.693570451 | U39: 2.083333333 | V39: 0.03507664516 | W39: 1.801874922 | X39: ASD_and_ID | Y39: 5366_5;3123_8;16040_1571029001;1950_301;14167_2720;18100_302;6240_4;14412_5210;14283_4060;3441_3;5324_3;4288_1;6130_4;2072_1;4456_1;8437_202;20073_1337001;1258_4;3539_4;8534_201;4312_1;8635_201;2211_1;14398_5070;8404_201;8446_201;5079_4;5391_3;13159_1763;13038_473;3264_3;4534_1;3135_4;2271_1;8737_202;3038_3;14393_5020;13123_1403;8559_201;17015_1;3183_7;20127_4014001;5068_3;5359_4;2204_1;20089_1391001;5551_3;5451_3;5454_3;5545_3;13037_463;16074_1571042001;13017_223;13153_1703;17027_1;13216_2383;3164_3 | Z39: B993989_1007854998;B333151_1007853867;HABC_900920_900920;HABC_900127_900127;B136270_1007872262;B579726_1007854733;110036004554_r;HABC_902800_902800;B331842_1007873285;HABC_902583_902583;HABC_902652_902652;HABC_900299_900299;B771049_1007845881;B662268_1007853570;B324430_1007841789;HABC_900571_900571;HABC_900504_900504;HABC_900709_900709;110036024081_;HABC_902895_902895;HABC_902646_902646;B531891_1007854698;HABC_900013_900013 | AA39: ADM;ADM2;AGTPBP1;ARHGAP22;B9D1;BAI1;C16orf63;CDH13;CELSR1;CHRNA7;CTHRC1;CXCL13;DLL1;DVL1;ECM1;ETS1;FABP9;FBN2;GDF2;GJA5;GTF2I;HDAC9;KCNH1;KDR;MAPK7;MSX2;MYH11;MYOZ1;NRXN1;NRXN3;NTRK1;OVOL2;PCDH8;PCNT;PLXNB2;RFX3;SCRIB;TBX1;TBX6;THBS2;THBS4;TJP1;TSPAN12;TTN;TYMP;UTS2R | AB39: ADAM8;ANGPT2;ATM;BCL2L11;CACNA1H;CSPG4;CYP1B1;DLC1;GREM1;HAND2;KNDC1;MKKS;MPP5;PMP22;RNH1;SLC12A6;STK3;TBX4;THBS3;WNT2 | AC39: GO:0048646
A40: 39 | B40: GO:0007611 | C40: learning or memory | D40: 136 | E40: 38 | F40: 15 | G40: 4.816223067 | H40: 1.599147122 | I40: 39 | J40: 15 | K40: 38.46153846 | L40: 9.0135633e-05 | M40: 3.111571963 | N40: 1 | O40: 0.006508208214 | P40: 0.1702415148 | Q40: (0.15,0.2] | R40: 21 | S40: 15 | T40: 2.872777018 | U40: 1.644736842 | V40: 0.06465788704 | W40: 1.768084513 | X40: ASD_and_ID | Y40: 8534_201;4312_1;16040_1571029001;1950_301;14167_2720;18100_302;14412_5210;3441_3;14283_4060;17015_1;8703_201;3183_7;8612_201;8737_202;6130_4;2072_1;8549_201;4240_1;4317_1;3382_5;3567_4;6016_3;5326_3;8617_201;14103_1780;2267_1;5340_3;14393_5020;13123_1403;8446_201;5353_3;13037_463;16074_1571042001;13017_223;13153_1703;17027_1;13216_2383;6321_3 | Z40: HABC_902959_900544;HABC_900623_900623;B614568_1007871710;B306257_1007873482;HABC_902654_902654;B180195_1007874261;HABC_902836_902836;HABC_902631_902631;B667696_1007873586;B719465_1007853907;HABC_900951_900951;B705813_1007874646;B782197_1007875255;B467732_1007842340;HABC_902895_902895 | AA40: ARC;CHAT;CHRNA7;COMT;CYP7B1;FZD9;GRM5;MAPK8IP2;MUSK;NRXN1;NTAN1;PARK2;PLCB1;PPP3CB;SHANK1;STS;SYNGAP1;VLDLR | AB40: ATXN1;GRM7;MAN2B1 | AC40: GO:0007611
A41: 40 | B41: GO:0005769 | C41: early endosome | D41: 179 | E41: 26 | F41: 5 | G41: 3.29531052 | H41: 0.5330490405 | I41: 26 | J41: 10 | K41: 38.46153846 | L41: 1.147287311e-05 | M41: 6.35219202 | N41: 1 | O41: 0.006680555098 | P41: 0.1702415148 | Q41: (0.15,0.2] | R41: 12 | S41: 5 | T41: 1.641586867 | U41: 0.548245614 | V41: 0.02667467979 | W41: 3.025566279 | X41: None | Y41: 4456_1;16030_1571003001;1946_301;5211_3;2072_1;6125_4;6130_4;3171_3;4312_1;14398_5070;5391_3;5353_3;8534_201;13038_473;2298_1;20127_4014001;20089_1391001;2204_1;5068_3;5359_4;5332_3;3174_3;8559_201;8695_201;8416_201;14039_680 | Z41: 110036019115_;HABC_900403_900403;110036021749_;HABC_900605_900605;HABC_900148_900148 | AA41: B2M;CD1E;CTSS;EPHA3;FAM21A;FAM21B;FAM21C;FKBP15;KDR;KIFC1;MAPK3;MARCH1;MLC1;NTRK1;RAB21;RAB5A;SH3GL3;SNX16;UTS2R | AB41: RABEP2;RABGAP1L | AC41: GO:0005769
A42: 41 | B42: GO:0070011 | C42: peptidase activity, acting on L-amino acid peptides | D42: 553 | E42: 74 | F42: 49 | G42: 9.37896071 | H42: 5.223880597 | I42: 76 | J42: 10 | K42: 13.15789474 | L42: 0.0005841704373 | M42: 1.877002403 | N42: 1 | O42: 0.006719358118 | P42: 0.1702415148 | Q42: (0.15,0.2] | R42: 55 | S42: 47 | T42: 7.523939808 | U42: 5.153508772 | V42: 0.03066995725 | W42: 1.496991658 | X42: None | Y42: 3263_3;2291_1;8549_201;6240_4;16067_1571134001;4319_1;3612_3;20050_1272001;20021_1107001;4456_1;18100_302;1950_301;14167_2720;16040_1571029001;5370_3;5130_3;3617_3;8596_201;5446_3;4276_1;20073_1337001;14283_4060;3441_3;5537_3;3268_4;14412_5210;21012_1;4374_1;5078_4;4427_1;6290_3;5430_4;2072_1;16079_1571066001;5267_3;6053_3;3557_4;8404_201;8695_201;4312_1;8534_201;3576_4;3183_7;17015_1;6261_3;14071_1240;14335_4490;3174_3;6047_4;4468_1;5338_3;6270_3;3095_3;8556_201;4170_1;4156_1;14069_1190;16038_1571018001;16042_1571055001;18178_302;14299_4200;14154_2530;14204_3300;3320_3;6296_3;4357_1;4305_1;6330_3;6341_6;2294_1;5213_3;1960_301;3034_3;14284_4070 | Z42: B333151_1007853867;B823925_0067942577;HABC_902486_902486;HABC_900286_900286;B847353_1007844832;HABC_901040_901040;110036023851_;HABC_900214_900214;HABC_902557_902557;HABC_900122_900122;B999735_1007854262;B407753_1007874851;110036024081_;HABC_901257_901257;B594795_1007871727;110036004554_r;HABC_901062_901062;B827334_1007874018;B425638_1007872643;HABC_902427_902427;B769138_1007846093;HABC_901099_901099;HABC_900768_900768;B578118_1007853652;HABC_900042_900042;B714366_1007851282;HABC_900397_900397;B230179_1007841236;HABC_900567_900567;HABC_900853_900853;HABC_901137_901137;B996545_1007873335;HABC_900947_900947;B382816_1007872257;HABC_901048_901048;B953582_1007843997;B917258_0067942645;HABC_902678_902678;B270421_1007874687;HABC_900344_900344;B923510_1007875812;HABC_900408_900408;110036019495_;HABC_901022_901022;B542076_0067942602;HABC_902794_902794;HABC_900264_900264;B177474_0057061567;B323068_1007875284 | AA42: ACR;ADAMTS15;ADAMTS18;ADAMTS8;ADAMTSL3;ADAMTSL4;AGBL1;AGBL2;AGTPBP1;APH1A;ATG4B;C9orf3;CAPN14;CORIN;CRBN;CTRB1;CTRB2;CTSC;CTSE;CTSK;CTSS;DPP6;IMMP1L;IMMP2L;MIPEP;MMP23B;NOMO1;NOMO3;OTUD7A;OTUD7B;PGPEP1L;PITRM1;PMPCB;PRSS1;PRSS2;PRSS22;PRSS23;PSMB1;RBP3;SEC11A;ST14;TMPRSS15;UFD1L;UQCRC2;USP17;USP17L5;USP17L6P;USP33 | AB42: ADAM8;ADAMTS17;ADAMTS19;AGBL4;C15orf24;HM13;OSGEPL1;PREPL;PRSS35;TPSAB1;TPSB2;TPSG1;TYSND1;USP17L2;USP26 | AC42: GO:0070011
A43: 42 | B43: KEGG:04144 | C43: Endocytosis | D43: 202 | E43: 23 | F43: 6 | G43: 2.915082383 | H43: 0.6396588486 | I43: 23 | J43: 6 | K43: 26.08695652 | L43: 0.0002046316693 | M43: 4.660701763 | N43: 1 | O43: 0.006768142752 | P43: 0.1448382549 | Q43: (0.1,0.15] | R43: 13 | S43: 6 | T43: 1.778385773 | U43: 0.6578947368 | V43: 0.03019126331 | W43: 2.732355058 | X43: None | Y43: 4456_1;4288_1;8446_201;6227_4;2211_1;3616_3;17031_1;5430_4;6290_3;4427_1;5078_4;4272_1;4319_1;5349_3;5391_3;13038_473;3174_3;20028_1134001;8695_201;3183_7;17015_1;4236_1;8559_201 | Z43: HABC_901151_901151;HABC_900102_900102;110036020873_;110036023299_;HABC_900391_900391;HABC_900403_900403 | AA43: ACAP3;ARFGAP2;CHMP4C;CLTCL1;EHD3;EPN2;ERBB4;HSPA2;IGF1R;IL2RA;KDR;NTRK1;PSD3;RAB5A;SH3GL3;SH3KBP1;SMAP1;VPS37D;VPS45 | AB43: ARFGAP1;SH3GLB1;WWP1 | AC43: KEGG:04144
A44: 43 | B44: GO:0016044 | C44: cellular membrane organization | D44: 615 | E44: 65 | F44: 37 | G44: 8.238276299 | H44: 3.9445629 | I44: 66 | J44: 18 | K44: 27.27272727 | L44: 0.0001218155294 | M44: 2.185271588 | N44: 1 | O44: 0.006830678064 | P44: 0.1702415148 | Q44: (0.15,0.2] | R44: 43 | S44: 33 | T44: 5.882352941 | U44: 3.618421053 | V44: 0.02033028418 | W44: 1.664220784 | X44: ASD_and_ID | Y44: 4236_1;5366_5;14088_1520;8660_201;2204_1;5359_4;20089_1391001;5068_3;20127_4014001;5324_3;8446_201;6301_3;4514_1;4288_1;2211_1;5446_3;2072_1;6125_4;6130_4;8737_202;3171_3;8465_202;14247_3710;1946_301;5449_3;8405_202;17031_1;8474_202;13038_473;8488_202;13041_503;4150_1;14193_3170;18171_302;6041_2;8549_201;5557_3;14397_5060;8623_201;20109_1504002;5507_4;4239_1;14211_3380;2176_101;4238_1;4317_1;5091_4;3174_3;8695_201;13123_1403;3183_7;17015_1;5424_3;5353_3;5256_3;8559_201;13037_463;16074_1571042001;13017_223;13153_1703;17027_1;13216_2383;21008_1;14393_5020;4403_1 | Z44: HABC_900920_900920;B993989_1007854998;HABC_900517_900517;B640981_1007874885;B136270_1007872262;B407753_1007874851;110036020154_;110036004877_;110036020873_;HABC_900383_900383;B326294_1007873306;B301469_1007854697;HABC_900282_900282;HABC_901206_901206;HABC_900740_900740;HABC_901038_901038;HABC_900394_900394;HABC_900489_900489;B779589_1007853847;HABC_900023_900023;110036017630_;110036022705_;HABC_900499_900499;HABC_900596_900596;HABC_900554_900554;HABC_902496_902496;HABC_901191_901191;HABC_902677_902677;B618506_1007853744;B333151_1007853867;B771049_1007845881;HABC_900391_900391;B662268_1007853570;B467732_1007842340;110036021749_;HABC_900403_900403;HABC_902895_902895 | AA44: ABR;ADM;ANXA11;ARC;CDC42SE2;CDH13;CHMP4C;CLTCL1;CORO1A;DOCK1;DVL1;ELMOD3;EPN2;FKBP15;GRIK2;GTF2H2;LILRB1;MAPK3;MERTK;MLC1;MUSK;NR1H3;NRXN1;OTOF;PACSIN3;PEAR1;RAB5A;SEC16B;SEC24C;SEC24D;SFTPD;SH3GL3;SH3KBP1;SNAP29;SYNGAP1;TIMM22;USP33;VLDLR;VPS37D | AB44: AGRN;ARFGAP1;ATG7;CALY;LMBR1L;MPP5;MSR1;RABEP2;SCAMP5;SGCZ | AC44: GO:0016044
A45: 44 | B45: GO:0061024 | C45: membrane organization | D45: 617 | E45: 65 | F45: 37 | G45: 8.238276299 | H45: 3.9445629 | I45: 66 | J45: 18 | K45: 27.27272727 | L45: 0.0001218155294 | M45: 2.185271588 | N45: 1 | O45: 0.006830678064 | P45: 0.1702415148 | Q45: (0.15,0.2] | R45: 43 | S45: 33 | T45: 5.882352941 | U45: 3.618421053 | V45: 0.02033028418 | W45: 1.664220784 | X45: ASD_and_ID | Y45: 4236_1;5366_5;14088_1520;8660_201;2204_1;5359_4;20089_1391001;5068_3;20127_4014001;5324_3;8446_201;6301_3;4514_1;4288_1;2211_1;5446_3;2072_1;6125_4;6130_4;8737_202;3171_3;8465_202;14247_3710;1946_301;5449_3;8405_202;17031_1;8474_202;13038_473;8488_202;13041_503;4150_1;14193_3170;18171_302;6041_2;8549_201;5557_3;14397_5060;8623_201;20109_1504002;5507_4;4239_1;14211_3380;2176_101;4238_1;4317_1;5091_4;3174_3;8695_201;13123_1403;3183_7;17015_1;5424_3;5353_3;5256_3;8559_201;13037_463;16074_1571042001;13017_223;13153_1703;17027_1;13216_2383;21008_1;14393_5020;4403_1 | Z45: HABC_900920_900920;B993989_1007854998;HABC_900517_900517;B640981_1007874885;B136270_1007872262;B407753_1007874851;110036020154_;110036004877_;110036020873_;HABC_900383_900383;B326294_1007873306;B301469_1007854697;HABC_900282_900282;HABC_901206_901206;HABC_900740_900740;HABC_901038_901038;HABC_900394_900394;HABC_900489_900489;B779589_1007853847;HABC_900023_900023;110036017630_;110036022705_;HABC_900499_900499;HABC_900596_900596;HABC_900554_900554;HABC_902496_902496;HABC_901191_901191;HABC_902677_902677;B618506_1007853744;B333151_1007853867;B771049_1007845881;HABC_900391_900391;B662268_1007853570;B467732_1007842340;110036021749_;HABC_900403_900403;HABC_902895_902895 | AA45: ABR;ADM;ANXA11;ARC;CDC42SE2;CDH13;CHMP4C;CLTCL1;CORO1A;DOCK1;DVL1;ELMOD3;EPN2;FKBP15;GRIK2;GTF2H2;LILRB1;MAPK3;MERTK;MLC1;MUSK;NR1H3;NRXN1;OTOF;PACSIN3;PEAR1;RAB5A;SEC16B;SEC24C;SEC24D;SFTPD;SH3GL3;SH3KBP1;SNAP29;SYNGAP1;TIMM22;USP33;VLDLR;VPS37D | AB45: AGRN;ARFGAP1;ATG7;CALY;LMBR1L;MPP5;MSR1;RABEP2;SCAMP5;SGCZ | AC45: GO:0061024
A46: 45 | B46: GO:0017124 | C46: SH3 domain binding | D46: 118 | E46: 16 | F46: 2 | G46: 2.027883397 | H46: 0.2132196162 | I46: 16 | J46: 8 | K46: 50 | L46: 0.0001677654669 | M46: 9.676824022 | N46: 1 | O46: 0.007430734837 | P46: 0.1805668565 | Q46: (0.15,0.2] | R46: 12 | S46: 2 | T46: 1.641586867 | U46: 0.2192982456 | V46: 0.001835457248 | W46: 7.585638915 | X46: None | Y46: 4288_1;6301_3;4514_1;3452_3;5237_3;6325_3;6319_3;4272_1;17031_1;5340_3;3032_3;2072_1;6130_4;16079_1571066001;5353_3;3612_3 | Z46: 110036020873_;110036023299_ | AA46: ACAP3;ARHGAP10;BCAR1;DOCK1;FUT8;KHDRBS2;SH3KBP1;SHANK1;SHANK2;SHANK3;SYNGAP1 | AB46: SH3GLB1 | AC46: GO:0017124
A47: 46 | B47: GO:0007010 | C47: cytoskeleton organization | D47: 721 | E47: 65 | F47: 36 | G47: 8.238276299 | H47: 3.837953092 | I47: 65 | J47: 18 | K47: 27.69230769 | L47: 7.801628505e-05 | M47: 2.24842875 | N47: 1 | O47: 0.007801012348 | P47: 0.1849410732 | Q47: (0.15,0.2] | R47: 38 | S47: 33 | T47: 5.198358413 | U47: 3.618421053 | V47: 0.07488211709 | W47: 1.460219142 | X47: ID_only | Y47: 2204_1;5359_4;20089_1391001;5068_3;20127_4014001;14412_5210;14283_4060;3441_3;5444_3;13037_463;8658_201;4288_1;16030_1571003001;1946_301;8705_201;13123_1403;8737_202;14363_4770;4319_1;14247_3710;17031_1;13038_473;8446_201;3439_3;2211_1;14064_1110;3145_3;4330_100;3049_3;4472_1;3181_7;4205_1;3266_3;3173_3;3382_5;3567_4;6016_3;8612_201;5326_3;8617_201;14103_1780;2267_1;5340_3;4219_1;4534_1;14393_5020;17015_1;3183_7;21012_1;4374_1;3135_4;2271_1;4272_1;5451_3;4228_1;3032_3;14339_4530;14310_4270;5424_3;5356_3;5396_3;2072_1;6130_4;16079_1571066001;3612_3 | Z47: HABC_900127_900127;HABC_900569_900569;B476506_1007852940;B333151_1007853867;B640981_1007874885;110036019115_;B994790_1007874024;HABC_902554_902554;110036020873_;110036004554_r;B306817_1007874015;B973477_1007842438;110036025062_;HABC_900022_900022;B187727_0067949240;110036023075_;HABC_900020_900020;HABC_902654_902654;B180195_1007874261;HABC_902836_902836;HABC_902631_902631;B667696_1007873586;B719465_1007853907;HABC_900951_900951;B705813_1007874646;110036001873_;B594795_1007871727;HABC_900299_900299;HABC_902652_902652;HABC_902583_902583;B495422_1007852884;B944304_1007853858;HABC_900472_900472;B816843_1007852642;B277390_1007875280;HABC_900013_900013 | AA47: ABR;ALDOA;ARC;ARHGAP10;BCAR1;BRSK1;C16orf63;C21orf2;CAMSAP1;CAPG;CELSR1;CORO1A;CSNK1D;DIAPH3;DVL1;DYNC1LI1;EPHA3;EPHA5;INSRR;KANK1;KCTD13;LIMK1;LLGL1;MAPK3;MYH11;MYOZ1;NDE1;NPHP1;PARK2;PCNT;PPP4C;RANBP1;SASS6;SGCG;SH3KBP1;SHANK1;SHANK3;SPTB;SYNM;TAOK2;TEKT1;TTN;TUBGCP6 | AB47: BRCA2;DLC1;DYNLT1;FMN1;KLHL1;SCIN;SGCZ;SIPA1L1;SPAG5;SPAST;TEKT3;TESK2;TUBGCP2;WASF1 | AC47: GO:0007010
A48: 47 | B48: KEGG:04725 | C48: Cholinergic synapse | D48: 112 | E48: 17 | F48: 2 | G48: 2.154626109 | H48: 0.2132196162 | I48: 18 | J48: 7 | K48: 38.88888889 | L48: 8.434849077e-05 | M48: 10.29482243 | N48: 1 | O48: 0.008175886702 | P48: 0.1458033129 | Q48: (0.1,0.15] | R48: 7 | S48: 1 | T48: 0.9575923393 | U48: 0.1096491228 | V48: 0.01664924622 | W48: 8.798338503 | X48: ASD_and_ID | Y48: 4312_1;8534_201;14167_2720;1950_301;18100_302;16040_1571029001;8612_201;3567_4;13204_883;20057_1290002;2204_1;5451_3;5359_4;20127_4014001;20089_1391001;5068_3;14393_5020 | Z48: 110036004554_r;B630497_1007872229 | AA48: CAMK2G;CHAT;CHRNA7;GNG13;GNG2;KCNJ12;MAPK3;PLCB1;PRKACB;SLC18A3 | AB48: CACNA1C;CHRM5 | AC48: KEGG:04725
A49: 48 | B49: GO:0045859 | C49: regulation of protein kinase activity | D49: 588 | E49: 34 | F49: 9 | G49: 4.309252218 | H49: 0.9594882729 | I49: 36 | J49: 13 | K49: 36.11111111 | L49: 6.237199226e-06 | M49: 4.644878275 | N49: 1 | O49: 0.008343465303 | P49: 0.1862396271 | Q49: (0.15,0.2] | R49: 14 | S49: 8 | T49: 1.915184679 | U49: 0.8771929825 | V49: 0.05478179644 | W49: 2.205375587 | X49: None | Y49: 1240_3;6162_4;16040_1571029001;1950_301;14167_2720;18100_302;21035_1;21006_1;4450_1;4288_1;8534_201;4312_1;8559_201;4430_1;8549_201;4272_1;6240_4;4319_1;3176_3;20127_4014001;2204_1;5068_3;5359_4;13038_473;5451_3;20089_1391001;2072_1;6130_4;3567_4;5347_3;3181_7;13123_1403;4236_1;3174_3 | Z49: B333151_1007853867;HABC_902475_902475;HABC_900391_900391;HABC_900438_900438;HABC_900013_900013;B324430_1007841789;HABC_900441_900441;B467732_1007842340;B566863_1007875835 | AA49: APLP2;C5AR1;CDKN1C;CERK;CHRNA7;DVL1;ERCC6;FABP4;GRM5;HSPA2;IGF1R;KAT2B;LRRK2;MADD;MAP2K3;MAPK11;MAPK3;MAPK8IP3;MNAT1;NOD1;NTRK1;PRKACB;PTPRC;SULT1A4;TAOK2;TNFRSF4;TTN;VLDLR;ZNF675 | AB49: ADAM8;AGK;ARFGAP1;BIRC7;KIAA1804;SPRED1;STK3;TLR4 | AC49: GO:0045859
A50: 49 | B50: GO:0045765 | C50: regulation of angiogenesis | D50: 139 | E50: 21 | F50: 2 | G50: 2.661596958 | H50: 0.2132196162 | I50: 21 | J50: 8 | K50: 38.0952381 | L50: 5.099551261e-06 | M50: 12.78283973 | N50: 1 | O50: 0.008642222134 | P50: 0.1862396271 | Q50: (0.15,0.2] | R50: 9 | S50: 2 | T50: 1.23119015 | U50: 0.2192982456 | V50: 0.0133157419 | W50: 5.665733245 | X50: None | Y50: 3123_8;16040_1571029001;1950_301;14167_2720;18100_302;4456_1;6240_4;3539_4;8534_201;4312_1;14398_5070;8446_201;5391_3;13038_473;2211_1;8737_202;8404_201;5551_3;6130_4;2072_1;3164_3 | Z50: HABC_902800_902800;B771049_1007845881 | AA50: ADM2;BAI1;CHRNA7;CXCL13;ECM1;ETS1;GDF2;GTF2I;HDAC9;KDR;MAPK7;NTRK1;THBS2;THBS4;TSPAN12;UTS2R | AB50: ANGPT2;RNH1 | AC50: GO:0045765
A51: 50 | B51: GO:0008233 | C51: peptidase activity | D51: 572 | E51: 74 | F51: 50 | G51: 9.37896071 | H51: 5.330490405 | I51: 76 | J51: 10 | K51: 13.15789474 | L51: 0.0008203270137 | M51: 1.83741517 | N51: 1 | O51: 0.008753227573 | P51: 0.1862396271 | Q51: (0.15,0.2] | R51: 55 | S51: 48 | T51: 7.523939808 | U51: 5.263157895 | V51: 0.03820021108 | W51: 1.464131311 | X51: None | Y51: 3263_3;2291_1;8549_201;6240_4;16067_1571134001;4319_1;3612_3;20050_1272001;20021_1107001;4456_1;18100_302;1950_301;14167_2720;16040_1571029001;5370_3;5130_3;3617_3;8596_201;5446_3;4276_1;20073_1337001;14283_4060;3441_3;5537_3;3268_4;14412_5210;21012_1;4374_1;5078_4;4427_1;6290_3;5430_4;2072_1;16079_1571066001;5267_3;6053_3;3557_4;8404_201;8695_201;4312_1;8534_201;3576_4;3183_7;17015_1;6261_3;14071_1240;14335_4490;3174_3;6047_4;4468_1;5338_3;6270_3;3095_3;8556_201;4170_1;4156_1;14069_1190;16038_1571018001;16042_1571055001;18178_302;14299_4200;14154_2530;14204_3300;3320_3;6296_3;4357_1;4305_1;6330_3;6341_6;2294_1;5213_3;1960_301;3034_3;14284_4070 | Z51: B333151_1007853867;B823925_0067942577;HABC_902486_902486;HABC_900286_900286;B847353_1007844832;HABC_901040_901040;110036023851_;HABC_900214_900214;HABC_902557_902557;HABC_900122_900122;B999735_1007854262;B407753_1007874851;110036024081_;HABC_901257_901257;B594795_1007871727;B771049_1007845881;110036004554_r;HABC_901062_901062;B827334_1007874018;B425638_1007872643;HABC_902427_902427;B769138_1007846093;HABC_901099_901099;HABC_900768_900768;B578118_1007853652;HABC_900042_900042;B714366_1007851282;HABC_900397_900397;B230179_1007841236;HABC_900567_900567;HABC_900853_900853;HABC_901137_901137;B996545_1007873335;HABC_900947_900947;B382816_1007872257;HABC_901048_901048;B953582_1007843997;B917258_0067942645;HABC_902678_902678;B270421_1007874687;HABC_900344_900344;B923510_1007875812;HABC_900408_900408;110036019495_;HABC_901022_901022;B542076_0067942602;HABC_902794_902794;HABC_900264_900264;B177474_0057061567;B323068_1007875284 | AA51: ACR;ADAMTS15;ADAMTS18;ADAMTS8;ADAMTSL3;ADAMTSL4;AGBL1;AGBL2;AGTPBP1;APH1A;ATG4B;C9orf3;CAPN14;CORIN;CRBN;CTRB1;CTRB2;CTSC;CTSE;CTSK;CTSS;DPP6;IMMP1L;IMMP2L;MIPEP;MMP23B;NOMO1;NOMO3;OTUD7A;OTUD7B;PGPEP1L;PITRM1;PMPCB;PRSS1;PRSS2;PRSS22;PRSS23;PSMB1;RBP3;SEC11A;ST14;TMPRSS15;UFD1L;UQCRC2;USP17;USP17L5;USP17L6P;USP33 | AB51: ADAM8;ADAMTS17;ADAMTS19;AGBL4;C15orf24;DHH;HM13;OSGEPL1;PREPL;PRSS35;TPSAB1;TPSB2;TPSG1;TYSND1;USP17L2;USP26 | AC51: GO:0008233
A52: 51 | B52: GO:0051338 | C52: regulation of transferase activity | D52: 634 | E52: 38 | F52: 13 | G52: 4.816223067 | H52: 1.385927505 | I52: 40 | J52: 13 | K52: 32.5 | L52: 2.13411728e-05 | M52: 3.597804638 | N52: 1 | O52: 0.008960023001 | P52: 0.1862396271 | Q52: (0.15,0.2] | R52: 18 | S52: 12 | T52: 2.462380301 | U52: 1.315789474 | V52: 0.06223586785 | W52: 1.892639279 | X52: None | Y52: 1240_3;6162_4;16040_1571029001;1950_301;14167_2720;18100_302;21035_1;21006_1;4450_1;4288_1;6227_4;8534_201;4312_1;8559_201;4430_1;5551_3;8549_201;4272_1;6240_4;4319_1;3176_3;20127_4014001;2204_1;5068_3;5359_4;13038_473;16043_1571070001;5354_3;5451_3;20089_1391001;2072_1;6130_4;3567_4;5347_3;3181_7;13123_1403;4236_1;3174_3 | Z52: B333151_1007853867;B877576_1007874042;HABC_902475_902475;HABC_900102_900102;B582347_1007848500;HABC_901257_901257;HABC_900391_900391;HABC_900438_900438;HABC_900013_900013;B324430_1007841789;HABC_900441_900441;B467732_1007842340;B566863_1007875835 | AA52: APLP2;C5AR1;CDKN1C;CERK;CHRNA7;DVL1;ERBB4;ERCC6;FABP4;GRM5;HSPA2;IGF1R;KAT2B;LRRK2;MADD;MAP2K3;MAPK11;MAPK3;MAPK8IP3;MNAT1;NOD1;NTRK1;PINX1;PRKACB;PTPRC;SERINC5;SULT1A4;TAOK2;TNFRSF4;TTN;VLDLR;ZNF675 | AB52: ADAM8;AGK;ARFGAP1;BIRC7;C1orf88;KIAA1804;POT1;SPRED1;STK3;TLR4 | AC52: GO:0051338
A53: 52 | B53: GO:0048514 | C53: blood vessel morphogenesis | D53: 394 | E53: 36 | F53: 10 | G53: 4.562737643 | H53: 1.066098081 | I53: 36 | J53: 14 | K53: 38.88888889 | L53: 5.06638904e-06 | M53: 4.433147874 | N53: 1 | O53: 0.009051276423 | P53: 0.1862396271 | Q53: (0.15,0.2] | R53: 19 | S53: 7 | T53: 2.599179207 | U53: 0.7675438596 | V53: 0.002817558334 | W53: 3.447554569 | X53: None | Y53: 5366_5;3123_8;16040_1571029001;1950_301;14167_2720;18100_302;5324_3;6130_4;2072_1;4456_1;6240_4;3539_4;8534_201;4312_1;8635_201;14398_5070;8446_201;5391_3;13038_473;2211_1;8737_202;3038_3;17015_1;3183_7;8404_201;5551_3;8549_201;5454_3;5545_3;13037_463;16074_1571042001;13017_223;13153_1703;17027_1;13216_2383;3164_3 | Z53: B333151_1007853867;HABC_900920_900920;B136270_1007872262;B579726_1007854733;110036004554_r;HABC_902800_902800;B771049_1007845881;HABC_902895_902895;HABC_902646_902646;B531891_1007854698 | AA53: ADM;ADM2;ARHGAP22;BAI1;CDH13;CHRNA7;CXCL13;ECM1;ETS1;FZD4;GDF2;GJA5;GTF2I;HDAC9;KDR;MAPK7;NRXN1;NRXN3;NTRK1;OVOL2;TBX1;THBS2;THBS4;TSPAN12;TYMP;UTS2R | AB53: ADAM8;ANGPT2;CSPG4;CYP1B1;GREM1;HAND2;RNH1;SLC12A6;TBX4 | AC53: GO:0048514
A54: 53 | B54: GO:0019220 | C54: regulation of phosphate metabolic process | D54: 891 | E54: 65 | F54: 38 | G54: 8.238276299 | H54: 4.051172708 | I54: 69 | J54: 17 | K54: 24.63768116 | L54: 0.0001870015723 | M54: 2.12543786 | N54: 1 | O54: 0.009261762286 | P54: 0.1862396271 | Q54: (0.15,0.2] | R54: 38 | S54: 35 | T54: 5.198358413 | U54: 3.837719298 | V54: 0.1134384449 | W54: 1.37370141 | X54: None | Y54: 1240_3;6162_4;16040_1571029001;1950_301;14167_2720;18100_302;21035_1;5444_3;4272_1;13047_563;21006_1;4450_1;4288_1;6227_4;8534_201;4312_1;8559_201;4430_1;3171_3;6130_4;2072_1;8549_201;3174_3;6261_3;14335_4490;14071_1240;6240_4;4319_1;5396_3;3176_3;20127_4014001;2204_1;5068_3;5359_4;4317_1;13038_473;3382_5;3567_4;6016_3;8612_201;5326_3;8617_201;14103_1780;2267_1;8446_201;9619_201;3025_4;3023_3;3048_3;13003_43;8474_202;5451_3;20089_1391001;5347_3;14358_4720;3616_3;17015_1;3183_7;5551_3;3181_7;13123_1403;4236_1;3441_3;14412_5210;14283_4060 | Z54: B333151_1007853867;110040001976_;HABC_900127_900127;110036004554_r;B877576_1007874042;B136270_1007872262;HABC_902475_902475;HABC_900102_900102;B308771_1007854329;B437078_1007874489;B425638_1007872643;HABC_902654_902654;B180195_1007874261;HABC_902836_902836;HABC_902631_902631;B667696_1007873586;B719465_1007853907;HABC_900951_900951;B705813_1007874646;B270421_1007874687;HABC_901044_901044;B881240_1007875262;B315954_1007852594;HABC_900327_900327;HABC_902523_902523;110036010759_r;B410218_1007840272;HABC_902951_902951;HABC_901174_901174;HABC_900938_900938;HABC_900391_900391;HABC_900438_900438;B782197_1007875255;HABC_900013_900013;B324430_1007841789;HABC_900441_900441;B467732_1007842340;B566863_1007875835 | AA54: APLP2;C14orf50;C5AR1;CDKN1C;CERK;CHRNA7;CNST;CSNK1D;DVL1;EEF2K;ERBB4;ERCC6;FABP4;FKBP15;GDF2;GRM5;HSPA2;IGF1R;IL11;KAT2B;KIAA0430;LRRK2;MADD;MAP2K3;MAPK11;MAPK3;MAPK8IP2;MAPK8IP3;MLXIPL;MNAT1;MUSK;NOD1;NTRK1;PARK2;PLXNB2;PRKACB;PTPRC;SH2D4A;SULT1A4;TAOK2;TBX1;THBS4;TNFRSF4;TTN;VLDLR;ZNF675 | AB54: ADAM8;AGK;ARFGAP1;ATXN1;BIRC7;C1orf88;CHRM5;CSPG4;DLC1;FARP1;GPATCH2;KIAA1804;LRRN3;PCDH11X;RRP1B;SPRED1;STK3;SYTL2;TLR4 | AC54: GO:0019220
A55: 54 | B55: GO:0051174 | C55: regulation of phosphorus metabolic process | D55: 891 | E55: 65 | F55: 38 | G55: 8.238276299 | H55: 4.051172708 | I55: 69 | J55: 17 | K55: 24.63768116 | L55: 0.0001870015723 | M55: 2.12543786 | N55: 1 | O55: 0.009261762286 | P55: 0.1862396271 | Q55: (0.15,0.2] | R55: 38 | S55: 35 | T55: 5.198358413 | U55: 3.837719298 | V55: 0.1134384449 | W55: 1.37370141 | X55: None | Y55: 1240_3;6162_4;16040_1571029001;1950_301;14167_2720;18100_302;21035_1;5444_3;4272_1;13047_563;21006_1;4450_1;4288_1;6227_4;8534_201;4312_1;8559_201;4430_1;3171_3;6130_4;2072_1;8549_201;3174_3;6261_3;14335_4490;14071_1240;6240_4;4319_1;5396_3;3176_3;20127_4014001;2204_1;5068_3;5359_4;4317_1;13038_473;3382_5;3567_4;6016_3;8612_201;5326_3;8617_201;14103_1780;2267_1;8446_201;9619_201;3025_4;3023_3;3048_3;13003_43;8474_202;5451_3;20089_1391001;5347_3;14358_4720;3616_3;17015_1;3183_7;5551_3;3181_7;13123_1403;4236_1;3441_3;14412_5210;14283_4060 | Z55: B333151_1007853867;110040001976_;HABC_900127_900127;110036004554_r;B877576_1007874042;B136270_1007872262;HABC_902475_902475;HABC_900102_900102;B308771_1007854329;B437078_1007874489;B425638_1007872643;HABC_902654_902654;B180195_1007874261;HABC_902836_902836;HABC_902631_902631;B667696_1007873586;B719465_1007853907;HABC_900951_900951;B705813_1007874646;B270421_1007874687;HABC_901044_901044;B881240_1007875262;B315954_1007852594;HABC_900327_900327;HABC_902523_902523;110036010759_r;B410218_1007840272;HABC_902951_902951;HABC_901174_901174;HABC_900938_900938;HABC_900391_900391;HABC_900438_900438;B782197_1007875255;HABC_900013_900013;B324430_1007841789;HABC_900441_900441;B467732_1007842340;B566863_1007875835 | AA55: APLP2;C14orf50;C5AR1;CDKN1C;CERK;CHRNA7;CNST;CSNK1D;DVL1;EEF2K;ERBB4;ERCC6;FABP4;FKBP15;GDF2;GRM5;HSPA2;IGF1R;IL11;KAT2B;KIAA0430;LRRK2;MADD;MAP2K3;MAPK11;MAPK3;MAPK8IP2;MAPK8IP3;MLXIPL;MNAT1;MUSK;NOD1;NTRK1;PARK2;PLXNB2;PRKACB;PTPRC;SH2D4A;SULT1A4;TAOK2;TBX1;THBS4;TNFRSF4;TTN;VLDLR;ZNF675 | AB55: ADAM8;AGK;ARFGAP1;ATXN1;BIRC7;C1orf88;CHRM5;CSPG4;DLC1;FARP1;GPATCH2;KIAA1804;LRRN3;PCDH11X;RRP1B;SPRED1;STK3;SYTL2;TLR4 | AC55: GO:0051174
A56: 55 | B56: GO:0016757 | C56: transferase activity, transferring glycosyl groups | D56: 262 | E56: 53 | F56: 30 | G56: 6.717363752 | H56: 3.198294243 | I56: 54 | J56: 10 | K56: 18.51851852 | L56: 0.0004944406223 | M56: 2.178569148 | N56: 1 | O56: 0.009411805816 | P56: 0.1862396271 | Q56: (0.15,0.2] | R56: 41 | S56: 29 | T56: 5.60875513 | U56: 3.179824561 | V56: 0.0109307423 | W56: 1.808554023 | X56: ID_only | Y56: 5316_3;4288_1;20028_1134001;14393_5020;8658_201;6130_4;2072_1;20089_1391001;2204_1;5068_3;5359_4;20127_4014001;4272_1;5516_3;13035_443;3177_6;3102_3;5237_3;8629_201;2159_1;5099_3;5033_3;13013_173;3420_3;2256_1;6272_3;6270_3;3015_3;6384_3;13049_583;14087_1510;5122_3;5307_3;13050_593;4446_1;5126_4;3616_3;3452_3;8488_202;14370_4830;4224_1;8484_201;5255_3;18164_302;3386_4;5371_3;6329_3;8680_201;1258_4;3082_3;3065_5;8630_201;20068_1324001 | Z56: 110036021087_;B476506_1007852940;HABC_900461_900461;B980299_0067942608;HABC_901254_901254;B334479_1007875807;B867787_1007854142;HABC_900131_900131;HABC_902700_902700;B497980_1007852882;HABC_900942_900942;B828621_0057060997;B439994_1007852600;B529705_1007840923;B536676_1007840725;B773734_1007873292;B841482_1007854027;B483586_1007842342;B611425_1007873622;B519248_1007840750;HABC_901034_901034;110036024651_;HABC_900990_900990;B885849_1007872260;HABC_902809_902809;B599687_1007875248;B964889_1007843494;B599757_1007875362;B421125_1007874266;B437844_1007854382 | AA56: ABO;AGL;ALG1;ALG12;ART3;B3GALT6;B3GAT2;C3orf39;CSGALNACT1;FUT11;FUT8;GALNT9;GBGT1;GYG2;LARGE;PARP10;QPRT;TUSC3;TYMP;UGT1A10;UGT1A6;UGT1A7;UGT1A8;UGT1A9;UGT2B10;UGT2B28;UGT2B4;UPP1;WBSCR17 | AB56: ALG10B;GALNT8;GCNT2;PIGB;UGT2A1;UGT2B11 | AC56: GO:0016757
A57: 56 | B57: GO:0001944 | C57: vasculature development | D57: 469 | E57: 37 | F57: 11 | G57: 4.689480355 | H57: 1.172707889 | I57: 38 | J57: 15 | K57: 39.47368421 | L57: 7.083182516e-06 | M57: 4.143236317 | N57: 1 | O57: 0.009768230406 | P57: 0.1862396271 | Q57: (0.15,0.2] | R57: 19 | S57: 8 | T57: 2.599179207 | U57: 0.8771929825 | V57: 0.005593330038 | W57: 3.013490084 | X57: ASD_and_ID | Y57: 5366_5;3123_8;16040_1571029001;1950_301;14167_2720;18100_302;5324_3;3183_7;17015_1;6130_4;2072_1;4456_1;6240_4;3539_4;8534_201;4312_1;8635_201;14398_5070;8446_201;5391_3;13038_473;2211_1;8737_202;3038_3;13123_1403;8404_201;5551_3;8549_201;5454_3;5545_3;13037_463;16074_1571042001;13017_223;13153_1703;17027_1;13216_2383;3164_3 | Z57: B333151_1007853867;HABC_900920_900920;B136270_1007872262;B579726_1007854733;110036004554_r;HABC_902800_902800;B771049_1007845881;HABC_900504_900504;HABC_902895_902895;HABC_902646_902646;B531891_1007854698 | AA57: ADM;ADM2;ARHGAP22;BAI1;CDH13;CHRNA7;CRKL;CXCL13;ECM1;ETS1;FZD4;FZD9;GDF2;GJA5;GTF2I;HDAC9;KDR;MAPK7;NRXN1;NRXN3;NTRK1;OVOL2;SMARCA2;TBX1;THBS2;THBS4;TSPAN12;TYMP;UTS2R | AB57: ADAM8;ANGPT2;CSPG4;CYP1B1;GREM1;HAND2;RNH1;SLC12A6;TBX4;WNT2 | AC57: GO:0001944
A58: 57 | B58: GO:0001558 | C58: regulation of cell growth | D58: 276 | E58: 22 | F58: 1 | G58: 2.78833967 | H58: 0.1066098081 | I58: 22 | J58: 9 | K58: 40.90909091 | L58: 3.653019596e-07 | M58: 26.84398715 | N58: 1 | O58: 0.009804671185 | P58: 0.1862396271 | Q58: (0.15,0.2] | R58: 10 | S58: 0 | T58: 1.367989056 | U58: 0 | V58: 0.0002936732975 | W58: Inf | X58: None | Y58: 4272_1;5316_3;8534_201;4312_1;1960_301;14398_5070;8446_201;4236_1;14144_2420;1258_4;6053_3;13123_1403;5213_3;13003_43;4530_1;18095_301;20089_1391001;5359_4;2204_1;20127_4014001;5068_3;3612_3 | Z58: 110036004554_r | AA58: BCAR1;CDK11A;CDK11B;CRIM1;DNAJC2;ESR2;EXOSC4;GDF2;LIMK1;NDUFS3;PRSS2;SMARCA2;TAOK2;TRIM32;UTS2R | AB58: GREM1 | AC58: GO:0001558
A59: 58 | B59: REACT:711 | C59: REACT: Neurotransmitter Receptor Binding And Downstream Transmission In The Postsynaptic Cell | D59: 136 | E59: 14 | F59: 1 | G59: 1.774397972 | H59: 0.1066098081 | I59: 14 | J59: 4 | K59: 28.57142857 | L59: 0.0001404022978 | M59: 16.91343099 | N59: 1 | O59: 0.009849756656 | P59: 0.150560566 | Q59: (0.15,0.2] | R59: 8 | S59: 1 | T59: 1.094391245 | U59: 0.1096491228 | V59: 0.008209961232 | W59: 10.06890478 | X59: None | Y59: 14167_2720;1950_301;18100_302;16040_1571029001;8612_201;8465_202;6240_4;3567_4;13204_883;20057_1290002;2204_1;5451_3;14393_5020;4272_1 | Z59: B592971_1007873531 | AA59: AKAP5;CAMK2G;CHRNA7;GNG13;GNG2;GRIK2;KCNJ12;KCNJ5;PLCB1;PRKACB | AB59: GRIP2 | AC59: REACT:711
A60: 59 | B60: GO:0009790 | C60: embryo development | D60: 799 | E60: 46 | F60: 17 | G60: 5.830164766 | H60: 1.812366738 | I60: 47 | J60: 16 | K60: 34.04255319 | L60: 7.01962102e-06 | M60: 3.351879413 | N60: 1 | O60: 0.01002015061 | P60: 0.1862396271 | Q60: (0.15,0.2] | R60: 21 | S60: 15 | T60: 2.872777018 | U60: 1.644736842 | V60: 0.06465788704 | W60: 1.768084513 | X60: ASD_and_ID | Y60: 4236_1;20003_1019001;6240_4;5324_3;4288_1;6227_4;8437_202;13123_1403;5032_4;4430_1;8612_201;1258_4;2072_1;6130_4;4272_1;8635_201;8404_201;14247_3710;8446_201;5371_3;5391_3;4456_1;8737_202;13159_1763;3264_3;4534_1;3439_3;2211_1;5008_3;3038_3;4372_1;3141_3;14211_3380;17015_1;3183_7;20127_4014001;5068_3;5359_4;2204_1;20089_1391001;1950_301;5213_3;13003_43;4530_1;18095_301;8549_201 | Z60: B993989_1007854998;HABC_900127_900127;HABC_900102_900102;B136270_1007872262;110036004554_r;B966200_1007843929;B331842_1007873285;B944304_1007853858;B495422_1007852884;B324430_1007841789;HABC_900907_900907;B887823_1007874701;HABC_900504_900504;HABC_900709_900709;HABC_902646_902646;B531891_1007854698;HABC_900013_900013 | AA60: ABR;ADM;APLP2;ARNT;BMI1;CDK11A;CELF1;CELSR1;CTHRC1;DLL1;DVL1;EDA2R;ERBB4;FBN2;FOXD4;FUT8;FZD4;FZD9;GJA5;GJB6;GTF2I;GTF2IRD1;HIRA;HORMAD1;HUS1;KDR;LY6E;MAPK7;MAPK8IP3;MSX2;MYO15A;NCAPG2;OVOL2;PCDH8;PCNT;PLCB1;PLXNB2;PSMC3;SCO2;SCRIB;TBX1;TBX6;TJP1 | AB60: ATM;BCL2L11;BRCA2;BUB1;DLC1;GREM1;HAND2;LAMA2;MKKS;SIN3A;STK3;TBX4;WNT2 | AC60: GO:0009790
A61: 60 | B61: GO:0023056 | C61: positive regulation of signaling | D61: 675 | E61: 57 | F61: 29 | G61: 7.224334601 | H61: 3.091684435 | I61: 59 | J61: 19 | K61: 32.20338983 | L61: 6.441008458e-05 | M61: 2.439551736 | N61: 1 | O61: 0.0101550414 | P61: 0.1862396271 | Q61: (0.15,0.2] | R61: 34 | S61: 26 | T61: 4.651162791 | U61: 2.850877193 | V61: 0.03623873433 | W61: 1.6617408 | X61: None | Y61: 4236_1;5366_5;1240_3;6162_4;21035_1;5213_3;5444_3;4288_1;4456_1;6227_4;13123_1403;5032_4;8612_201;1258_4;6130_4;2072_1;8534_201;4312_1;8465_202;4319_1;5396_3;5391_3;8703_201;13159_1763;13038_473;3382_5;3567_4;6016_3;5326_3;8617_201;14103_1780;2267_1;4256_1;21012_1;4374_1;5347_3;5451_3;4372_1;8635_201;14330_4440;5007_3;6362_3;17015_1;3183_7;16079_1571066001;20089_1391001;5359_4;2204_1;20127_4014001;5068_3;13037_463;16074_1571042001;13017_223;13153_1703;17027_1;13216_2383;4272_1 | Z61: B993989_1007854998;B333151_1007853867;HABC_900920_900920;HABC_900457_900457;B857546_0067942612;HABC_900071_900071;HABC_900102_900102;B966200_1007843929;B331842_1007873285;HABC_902654_902654;B180195_1007874261;HABC_902836_902836;HABC_902631_902631;B667696_1007873586;B719465_1007853907;HABC_900951_900951;B705813_1007874646;B594795_1007871727;B346627_1007872552;HABC_900862_900862;B557049_1007853857;HABC_900156_900156;B667482_1007854320;B324430_1007841789;HABC_900441_900441;HABC_900504_900504;HABC_902895_902895;HABC_902646_902646;B858950_1007854319 | AA61: AKAP5;ARNT;CDH13;CDKN1C;CSNK1D;DVL1;ECM1;EDA2R;ERBB4;FOXD4;GDF2;GPR89A;GRIK2;IGF1R;IL11;KDR;LGALS9;LRRK2;MAPK8IP2;MIB2;MSX2;NOD1;NR1H3;NRXN1;NTRK1;PARK2;PLCB1;PPM1A;PTPRC;SCRIB;SHANK3;SHARPIN;TAOK2;TBX1;TNFRSF19 | AB61: ADAM8;AKAP12;ATM;BCL2L11;EXOC4;HAND2;LAMA2;MPP7;NMU;STK3;TLR4;TRIM13;WNT2 | AC61: GO:0023056
A62: 61 | B62: GO:0019725 | C62: cellular homeostasis | D62: 622 | E62: 63 | F62: 33 | G62: 7.984790875 | H62: 3.518123667 | I62: 64 | J62: 21 | K62: 32.8125 | L62: 4.149095988e-05 | M62: 2.378618861 | N62: 1 | O62: 0.01111065415 | P62: 0.1999917748 | Q62: (0.15,0.2] | R62: 39 | S62: 30 | T62: 5.335157319 | U62: 3.289473684 | V62: 0.02710358512 | W62: 1.656392587 | X62: ASD_and_ID | Y62: 5007_3;3123_8;3183_7;8703_201;17015_1;16040_1571029001;1950_301;14167_2720;18100_302;21035_1;5324_3;3268_4;8597_201;8705_201;5068_3;20127_4014001;2204_1;5359_4;20089_1391001;6130_4;2072_1;8534_201;4312_1;14398_5070;14376_4890;8465_202;14393_5020;6240_4;1960_301;14331_4450;4456_1;5340_3;8446_201;3135_4;2271_1;14293_4140;14364_4780;3076_4;4144_1;8659_201;5347_3;5451_3;8635_201;14330_4440;6362_3;3181_7;20114_1547001;5382_3;20071_1335001;21001_1;1347_301;6329_3;8680_201;16079_1571066001;4236_1;8630_201;20068_1324001;13037_463;16074_1571042001;13017_223;13153_1703;17027_1;13216_2383 | Z62: B640981_1007874885;B871387_1007875840;B277797_1007853793;110036021749_;B771049_1007845881;B953582_1007843997;B662268_1007853570;HABC_902583_902583;HABC_902652_902652;HABC_900299_900299;B529567_1007875209;110036011773_;B546105_1007840953;110036004554_r;B782197_1007875255;B557049_1007853857;HABC_900156_900156;B667482_1007854320;HABC_900927_900927;B618029_1007874552;HABC_902459_902459;HABC_902656_902656;HABC_902532_902532;B809518_0057061032;B906859_1007845326;HABC_900953_900953;HABC_900017_900017;B630497_1007872229;B599757_1007875362;B421125_1007874266;B333151_1007853867;HABC_900942_900942;HABC_902895_902895 | AA62: ADM;AIFM3;ALDOA;ANXA7;APLP2;C5AR1;CA2;CHRNA7;CXCL13;DMD;EPHA5;FGGY;GDF2;GPR89A;GRID2;GRIK2;LARGE;LRRK2;MAPK8IP2;MBP;MCL1;MLXIPL;NRXN1;PIAS3;PIM3;PPP3CB;PTPRC;SBF2;SCO2;SHANK1;SHANK3;SLC26A5;SLC30A8;SLC39A13;SLC8A2;TUSC3;TXNRD2;UTS2R;ZNF236 | AB62: ATP2A1;ATP6V1D;ATXN1;CACNA1C;DHH;GCM2;MPP5;NKX6-2;NMUR2;PMP22;RXFP3;RYR3;SGCZ;SLC8A1;TRPV1 | AC62: GO:0019725
A63: 62 | B63: KEGG:04514 | C63: Cell adhesion molecules (CAMs) | D63: 133 | E63: 22 | F63: 3 | G63: 2.78833967 | H63: 0.3198294243 | I63: 22 | J63: 10 | K63: 45.45454545 | L63: 1.188101599e-05 | M63: 8.930309903 | N63: 1 | O63: 0.01293326733 | P63: 0.1729824506 | Q63: (0.15,0.2] | R63: 12 | S63: 3 | T63: 1.641586867 | U63: 0.3289473684 | V63: 0.005470581192 | W63: 5.053143426 | X63: ASD_and_ID | Y63: 5449_3;8446_201;4339_1;4524_1;4276_1;5347_3;5451_3;5068_3;20089_1391001;2204_1;20127_4014001;5359_4;17015_1;3183_7;5454_3;5545_3;13153_1703;16074_1571042001;17027_1;13037_463;13017_223;13216_2383 | Z63: B598149_1007874481;B472351_1007842232;HABC_902895_902895 | AA63: CLDN3;CLDN4;CLDN5;HLA-DOA;HLA-DPA1;HLA-DPB1;LOC100506658;NEO1;NRXN1;NRXN3;PDCD1;PTPRC;SPN | AB63: CLDN23 | AC63: KEGG:04514
A64: 63 | B64: REACT:210 | C64: REACT: Cell Cycle, Mitotic | D64: 330 | E64: 23 | F64: 7 | G64: 2.915082383 | H64: 0.7462686567 | I64: 23 | J64: 9 | K64: 39.13043478 | L64: 0.0005014103337 | M64: 3.99051409 | N64: 1 | O64: 0.01795195605 | P64: 0.1802309338 | Q64: (0.15,0.2] | R64: 11 | S64: 6 | T64: 1.504787962 | U64: 0.6578947368 | V64: 0.07519020186 | W64: 2.305795788 | X64: None | Y64: 16029_1571001001;5444_3;4253_1;13047_563;4272_1;3176_3;4534_1;14283_4060;3441_3;14412_5210;8404_201;1960_301;4236_1;8446_201;13003_43;4530_1;5213_3;18095_301;17015_1;3183_7;6130_4;2072_1;8658_201 | Z64: B333151_1007853867;HABC_901139_901139;HABC_900254_900254;B993989_1007854998;HABC_900907_900907;B887823_1007874701;HABC_901058_901058 | AA64: AHCTF1;CDC14A;CDC45;CDK11A;CDK11B;CENPC1;CSNK1D;MAX;MNAT1;NDE1;ORC3;PCNT;PSMB1;PSMC2;PSMC3;RFC2;TUBGCP6 | AB64: ANAPC1;BUB1;CENPI;ITGB3BP;MLF1IP;TUBGCP2 | AC64: REACT:210
A65: 64 | B65: KEGG:04723 | C65: Retrograde endocannabinoid signaling | D65: 102 | E65: 15 | F65: 1 | G65: 1.901140684 | H65: 0.1066098081 | I65: 16 | J65: 8 | K65: 50 | L65: 6.757001179e-05 | M65: 18.14373383 | N65: 1 | O65: 0.01843895789 | P65: 0.1802309338 | Q65: (0.15,0.2] | R65: 4 | S65: 1 | T65: 0.5471956224 | U65: 0.1096491228 | V65: 0.1258248311 | W65: 5.008656813 | X65: None | Y65: 8612_201;8549_201;6240_4;13204_883;20057_1290002;2204_1;5451_3;5359_4;20127_4014001;20089_1391001;5068_3;8534_201;4312_1;2072_1;6130_4 | Z65: B630497_1007872229 | AA65: GNG13;GNG2;GRM5;KCNJ5;MAPK11;MAPK12;MAPK3;MAPK8;PLCB1;PRKACB | AB65: CACNA1C | AC65: KEGG:04723
A66: 65 | B66: REACT:208 | C66: REACT: Cell Cycle | D66: 409 | E66: 27 | F66: 9 | G66: 3.422053232 | H66: 0.9594882729 | I66: 27 | J66: 9 | K66: =(J66/I66)*100 -> 33.33333333 | L66: 0.0002988166049 | M66: 3.654904956 | N66: 1 | O66: 0.01852841376 | P66: 0.1802309338 | Q66: (0.15,0.2] | R66: 13 | S66: 8 | T66: 1.778385773 | U66: 0.8771929825 | V66: 0.0818787691 | W66: 2.045092047 | X66: None | Y66: 16029_1571001001;5444_3;4253_1;13047_563;5332_3;5521_3;4272_1;5371_3;3176_3;4534_1;14283_4060;3441_3;14412_5210;8404_201;1960_301;4236_1;8446_201;13003_43;4530_1;5213_3;18095_301;17015_1;3183_7;6130_4;2072_1;8658_201;2297_1 | Z66: B333151_1007853867;HABC_901139_901139;HABC_900254_900254;B582347_1007848500;B331842_1007873285;B993989_1007854998;HABC_900907_900907;B887823_1007874701;HABC_901058_901058 | AA66: AHCTF1;CDC14A;CDC45;CDK11A;CDK11B;CENPC1;CSNK1D;FKBP6;HIST1H2AD;HIST1H2BD;HIST1H2BH;HSPA2;HUS1;MAX;MNAT1;NDE1;ORC3;PCNT;PSMB1;PSMC2;PSMC3;RFC2;SYCE1;TUBGCP6 | AB66: ANAPC1;ATM;BUB1;CENPI;ITGB3BP;MLF1IP;POT1;TUBGCP2 | AC66: REACT:208
A67: 66 | B67: REACT:138 | C67: REACT: Axon guidance | D67: 266 | E67: 21 | F67: 6 | G67: 2.661596958 | H67: 0.6396588486 | I67: 21 | J67: 6 | K67: 28.57142857 | L67: 0.000638880184 | M67: 4.244221575 | N67: 1 | O67: 0.0204742042 | P67: 0.1809715304 | Q67: (0.15,0.2] | R67: 9 | S67: 6 | T67: 1.23119015 | U67: 0.6578947368 | V67: 0.1701956633 | W67: 1.881515697 | X67: ASD_and_ID | Y67: 4374_1;14151_2500;5007_3;6301_3;4514_1;5081_4;5391_3;8446_201;3441_3;14283_4060;14412_5210;4524_1;5359_4;20127_4014001;2204_1;20089_1391001;5068_3;5347_3;5451_3;8496_202;4272_1 | Z67: HABC_901068_901068;B312630_0067942574;B277797_1007853793;HABC_900383_900383;B630497_1007872229;110036024081_ | AA67: CHL1;CNTN6;DOCK1;HFE2;LIMK1;MAPK3;MYH11;NEO1;PTPRC;SCN7A;SPTB | AB67: AGRN;CACNA1C;CACNA1H;COL4A5 | AC67: REACT:138
A68: 67 | B68: KEGG:04010 | C68: MAPK signaling pathway | D68: 268 | E68: 21 | F68: 7 | G68: 2.661596958 | H68: 0.7462686567 | I68: 21 | J68: 11 | K68: 52.38095238 | L68: 0.001465856559 | M68: 3.634174606 | N68: 1 | O68: 0.02244162888 | P68: 0.1809715304 | Q68: (0.15,0.2] | R68: 7 | S68: 7 | T68: 0.9575923393 | U68: 0.7675438596 | V68: 0.4382711486 | W68: 1.249822374 | X68: ASD_and_ID | Y68: 3183_7;17015_1;4430_1;6130_4;2072_1;4272_1;13038_473;4256_1;14393_5020;5451_3;5359_4;20127_4014001;2204_1;20089_1391001;5068_3;2211_1;8534_201;4312_1;3567_4;5061_3;9610_201 | Z68: B542076_0067942602;HABC_901022_901022;B323068_1007875284;B324430_1007841789;B630497_1007872229;110036024081_;B917258_0067942645 | AA68: CACNA2D4;CRKL;HSPA2;MAP2K3;MAPK11;MAPK12;MAPK3;MAPK7;MAPK8;MAPK8IP2;MAPK8IP3;MAX;NTRK1;PPM1A;PPP3CB;PRKACB;TAOK2 | AB68: CACNA1C;CACNA1H;PPM1B;STK3 | AC68: KEGG:04010
A69: 68 | B69: KEGG:04062 | C69: Chemokine signaling pathway | D69: 189 | E69: 13 | F69: 1 | G69: 1.64765526 | H69: 0.1066098081 | I69: 14 | J69: 5 | K69: 35.71428571 | L69: 0.0002903717334 | M69: 15.68638979 | N69: 1 | O69: 0.02367851799 | P69: 0.1809715304 | Q69: (0.15,0.2] | R69: 6 | S69: 1 | T69: 0.8207934337 | U69: 0.1096491228 | V69: 0.03330228359 | W69: 7.531218638 | X69: None | Y69: 3123_8;3183_7;17015_1;8612_201;13204_883;20057_1290002;2204_1;5451_3;5359_4;20127_4014001;20089_1391001;5068_3;3612_3 | Z69: 110036017424_ | AA69: BCAR1;CRKL;CXCL13;GNG13;GNG2;MAPK3;PLCB1;PRKACB | AB69: TIAM2 | AC69: KEGG:04062
A70: 69 | B70: REACT:1029 | C70: REACT: Signaling by Insulin receptor | D70: 109 | E70: 12 | F70: 2 | G70: 1.520912548 | H70: 0.2132196162 | I70: 12 | J70: 5 | K70: 41.66666667 | L70: 0.002439451117 | M70: 7.220626078 | N70: 1 | O70: 0.03500674254 | P70: 0.1971423776 | Q70: (0.15,0.2] | R70: 5 | S70: 2 | T70: 0.683994528 | U70: 0.2192982456 | V70: 0.1458823213 | W70: 3.131518318 | X70: ASD_and_ID | Y70: 3174_3;14335_4490;6261_3;14071_1240;4509_1;4256_1;8635_201;5359_4;20127_4014001;2204_1;20089_1391001;5068_3 | Z70: B425638_1007872643;B662268_1007853570 | AA70: EEF2K;MAPK3;PIK3C3;PPM1A;PRKAB2 | AB70: ATP6V1D | AC70: REACT:1029
A71: 70 | B71: KEGG:04912 | C71: GnRH signaling pathway | D71: 101 | E71: 14 | F71: 2 | G71: 1.774397972 | H71: 0.2132196162 | I71: 14 | J71: 9 | K71: 64.28571429 | L71: 0.0006502282998 | M71: 8.445582289 | N71: 1 | O71: 0.03757190047 | P71: 0.1971423776 | Q71: (0.15,0.2] | R71: 3 | S71: 2 | T71: 0.4103967168 | U71: 0.2192982456 | V71: 0.3974305323 | W71: 1.874252755 | X71: ASD_and_ID | Y71: 8612_201;5451_3;5359_4;20127_4014001;2204_1;20089_1391001;5068_3;2211_1;8534_201;4312_1;2072_1;6130_4;3567_4;14393_5020 | Z71: HABC_900637_900637;B630497_1007872229 | AA71: CAMK2G;MAP2K3;MAPK11;MAPK12;MAPK3;MAPK7;MAPK8;PLCB1;PRKACB | AB71: CACNA1C;FSHB | AC71: KEGG:04912
A72: 71 | B72: REACT:1157 | C72: REACT: Toll Receptor Cascades | D72: 121 | E72: 14 | F72: 2 | G72: 1.774397972 | H72: 0.2132196162 | I72: 14 | J72: 8 | K72: 57.14285714 | L72: 0.0006502282998 | M72: 8.445582289 | N72: 1 | O72: 0.03833236665 | P72: 0.1971423776 | Q72: (0.15,0.2] | R72: 3 | S72: 2 | T72: 0.4103967168 | U72: 0.2192982456 | V72: 0.3974305323 | W72: 1.874252755 | X72: None | Y72: 6162_4;4456_1;4509_1;5359_4;20127_4014001;2204_1;20089_1391001;5068_3;2211_1;8534_201;4312_1;2072_1;6130_4;3567_4 | Z72: HABC_900441_900441;B264851_1007876013 | AA72: CTSK;CTSS;MAP2K3;MAPK11;MAPK3;MAPK7;MAPK8;NOD1;PIK3C3 | AB72: TLR10;TLR4 | AC72: REACT:1157
A73: 72 | B73: KEGG:04728 | C73: Dopaminergic synapse | D73: 130 | E73: 14 | F73: 2 | G73: 1.774397972 | H73: 0.2132196162 | I73: 14 | J73: 0 | K73: 0 | L73: 0.0006502282998 | M73: 8.445582289 | N73: 1 | O73: 0.03838632582 | P73: 0.1971423776 | Q73: (0.15,0.2] | R73: 5 | S73: 1 | T73: 0.683994528 | U73: 0.1096491228 | V73: 0.06546800866 | W73: 6.267499875 | X73: None | Y73: 17015_1;3183_7;8703_201;8612_201;6240_4;13204_883;20057_1290002;2204_1;14393_5020;5451_3;8534_201;4312_1;2072_1;6130_4 | Z73: B333151_1007853867;B630497_1007872229 | AA73: CAMK2G;COMT;GNG13;GNG2;KCNJ5;MAPK11;MAPK12;MAPK8;PLCB1;PPP3CB;PRKACB | AB73: CACNA1C;CALY | AC73: KEGG:04728
A74: 73 | B74: KEGG:04910 | C74: Insulin signaling pathway | D74: 138 | E74: 13 | F74: 1 | G74: 1.64765526 | H74: 0.1066098081 | I74: 13 | J74: 9 | K74: 69.23076923 | L74: 0.0002903717334 | M74: 15.68638979 | N74: 1 | O74: 0.03915444728 | P74: 0.1971423776 | Q74: (0.15,0.2] | R74: 1 | S74: 1 | T74: 0.1367989056 | U74: 0.1096491228 | V74: 0.6920341937 | W74: 1.247769361 | X74: ASD_and_ID | Y74: 3183_7;17015_1;8635_201;5451_3;5359_4;20127_4014001;2204_1;20089_1391001;5068_3;8534_201;4312_1;2211_1;3439_3 | Z74: 110036001121_ | AA74: CRKL;MAPK3;MAPK8;PRKAB2;PRKACB;SREBF1 | AB74: PHKB | AC74: KEGG:04910
A75: 74 | B75: REACT:492 | C75: REACT: Hemostasis | D75: 468 | E75: 33 | F75: 16 | G75: 4.182509506 | H75: 1.70575693 | I75: 35 | J75: 12 | K75: 34.28571429 | L75: 0.001594905972 | M75: 2.514071048 | N75: 1 | O75: 0.04065403296 | P75: 0.1971423776 | Q75: (0.15,0.2] | R75: 21 | S75: 15 | T75: 2.872777018 | U75: 1.644736842 | V75: 0.06465788704 | W75: 1.768084513 | X75: None | Y75: 14173_2800;5324_3;14088_1520;3318_3;2211_1;4456_1;6301_3;4514_1;5068_3;5359_4;20127_4014001;20089_1391001;2204_1;17025_1;3183_7;17015_1;6180_4;5430_4;6290_3;4427_1;5078_4;5353_3;4369_100;13204_883;20057_1290002;5451_3;8743_202;3174_3;3181_7;13123_1403;5032_4;5444_3;3612_3 | Z75: B993989_1007854998;HABC_901154_901154;B159476_1007873588;HABC_902635_902635;B621960_1007854303;B136270_1007872262;110036021749_;HABC_902800_902800;HABC_902573_902573;HABC_902645_902645;B479722_1007875261;HABC_901094_901094;HABC_900888_900888;110036011773_;HABC_901242_901242;HABC_902975_901251 | AA75: ABCC4;AK3;AKAP10;ALDOA;BCAR1;DOCK1;DOCK8;EHD3;GNG13;GNG2;GP1BB;HBB;KIFAP3;KIFC1;MAPK3;MERTK;MRVI1;PRKACB;RAB5A;SLC16A3;SLC7A9;SLC8A2;SPN;TTN;VPS45 | AB75: ANGPT2;ATP2A1;CD177;F2RL2;IFNA1;IFNA14;IFNA16;IFNA17;IFNA8;LAT;MMRN1;SERPINB2;SH2B1;SIN3A;SLC8A1 | AC75: REACT:492
A76: 75 | B76: KEGG:04510 | C76: Focal adhesion | D76: 200 | E76: 17 | F76: 5 | G76: 2.154626109 | H76: 0.5330490405 | I76: 17 | J76: 7 | K76: 41.17647059 | L76: 0.002483992778 | M76: 4.106010291 | N76: 1 | O76: 0.04186304917 | P76: 0.1971423776 | Q76: (0.15,0.2] | R76: 6 | S76: 5 | T76: 0.8207934337 | U76: 0.548245614 | V76: 0.3534343343 | W76: 1.500846793 | X76: ID_only | Y76: 3183_7;17015_1;6301_3;4514_1;4319_1;5391_3;5359_4;20127_4014001;2204_1;20089_1391001;5068_3;8534_201;4312_1;8404_201;5551_3;5007_3;3612_3 | Z76: HABC_900488_900488;B312630_0067942574;B277797_1007853793;B966200_1007843929;HABC_900571_900571 | AA76: BCAR1;CRKL;DOCK1;IGF1R;ITGA10;KDR;MAPK3;MAPK8;THBS2;THBS4 | AB76: COL4A5;LAMA2;LAMC3;THBS3 | AC76: KEGG:04510
A77: 76 | B77: KEGG:04722 | C77: Neurotrophin signaling pathway | D77: 120 | E77: 14 | F77: 1 | G77: 1.774397972 | H77: 0.1066098081 | I77: 14 | J77: 10 | K77: 71.42857143 | L77: 0.0001404022978 | M77: 16.91343099 | N77: 1 | O77: 0.04378021613 | P77: 0.1971423776 | Q77: (0.15,0.2] | R77: 1 | S77: 1 | T77: 0.1367989056 | U77: 0.1096491228 | V77: 0.6920341937 | W77: 1.247769361 | X77: ASD_and_ID | Y77: 3183_7;17015_1;13038_473;5359_4;20127_4014001;2204_1;20089_1391001;5068_3;2211_1;8534_201;4312_1;2072_1;6130_4;14393_5020 | Z77: 110036021749_ | AA77: CAMK2G;CRKL;MAPK11;MAPK12;MAPK3;MAPK7;MAPK8;NTRK1 | AB77: SH2B1 | AC77: KEGG:04722
A78: 77 | B78: KEGG:04916 | C78: Melanogenesis | D78: 101 | E78: 11 | F78: 1 | G78: 1.394169835 | H78: 0.1066098081 | I78: 11 | J78: 6 | K78: 54.54545455 | L78: 0.001221726484 | M78: 13.23144125 | N78: 1 | O78: 0.04459242257 | P78: 0.1971423776 | Q78: (0.15,0.2] | R78: 2 | S78: 1 | T78: 0.2735978112 | U78: 0.1096491228 | V78: 0.417661245 | W78: 2.497955838 | X78: None | Y78: 4288_1;8612_201;5451_3;5359_4;20127_4014001;2204_1;20089_1391001;5068_3;14393_5020;8549_201;8446_201 | Z78: HABC_900504_900504 | AA78: CAMK2G;DVL1;FZD4;FZD9;MAPK3;PLCB1;PRKACB | AB78: WNT2 | AC78: KEGG:04916
A79: 78 | B79: REACT:623 | C79: REACT: Metabolism of lipids and lipoproteins | D79: 489 | E79: 40 | F79: 24 | G79: 5.069708492 | H79: 2.558635394 | I79: 41 | J79: 12 | K79: 29.26829268 | L79: 0.00436390602 | M79: 2.033011526 | N79: 1 | O79: 0.04468109001 | P79: 0.1971423776 | Q79: (0.15,0.2] | R79: 24 | S79: 21 | T79: 3.283173735 | U79: 2.302631579 | V79: 0.145097513 | W79: 1.439949746 | X79: None | Y79: 3439_3;2211_1;2204_1;20089_1391001;20127_4014001;5068_3;5359_4;5516_3;3616_3;4312_1;8534_201;6130_4;2072_1;4276_1;3417_3;20090_1392002;8737_202;3017_3;6180_4;8559_201;2158_1;20041_1248001;6269_3;5112_4;16058_1571037001;4336_1;14194_3180;4240_1;17015_1;3183_7;4509_1;4446_1;2275_1;6290_3;8635_201;5451_3;16097_1571153001;17023_1;14330_4440;6321_3 | Z79: HABC_902785_902785;B626713_1007853686;HABC_901204_901204;110036005551_;HABC_900066_900066;B333151_1007853867;110036023851_;HABC_902758_902758;B848304_1007844833;HABC_900808_900808;HABC_902636_902636;110036004554_r;B136270_1007872262;110036017424_;B850068_1007871741;B614568_1007871710;B359435_1007843544;HABC_900957_900957;HABC_900013_900013;B392973_1007852618;B771049_1007845881;HABC_902511_902511;110036017028_;B951657_1007843871 | AA79: AGPAT5;ARSA;ARSG;CDIPT;CEL;CERK;CHAT;CHKB;CPT1B;CSNK1G2;CYP11B1;CYP11B2;CYP7B1;ECHS1;ELOVL7;FABP4;FDFT1;GALC;LIPC;MED15;MED18;MED9;MTMR3;NEU4;PEMT;PI4KA;PIK3C3;PRKAB2;PRKACB;SLC25A1;SLC44A5;SLCO1A2;SREBF1;STARD4;STS;SULT2A1;SUMF1;UGT1A9 | AB79: AKR1B1;ARSJ;CH25H;LASS3;LCLAT1;LPCAT4;MBOAT1;PIK3C2G;PLB1;PPAP2C;PTDSS2;SIN3A;SLCO1B1;SLCO1B3;SMPD4;TECR;TIAM2 | AC79: REACT:623
A80: 79 | B80: REACT:1030 | C80: REACT: Signaling by Interleukins | D80: 109 | E80: 11 | F80: 1 | G80: 1.394169835 | H80: 0.1066098081 | I80: 11 | J80: 5 | K80: 45.45454545 | L80: 0.001221726484 | M80: 13.23144125 | N80: 1 | O80: 0.04697415303 | P80: 0.1971423776 | Q80: (0.15,0.2] | R80: 4 | S80: 1 | T80: 0.5471956224 | U80: 0.1096491228 | V80: 0.1258248311 | W80: 5.008656813 | X80: None | Y80: 6162_4;3183_7;17015_1;5349_3;5267_3;5451_3;5359_4;20127_4014001;2204_1;20089_1391001;5068_3 | Z80: HABC_902463_902463 | AA80: CRKL;IL2RA;IL5RA;MAPK3;NOD1;PRKACB | AC80: REACT:1030
A81: 80 | B81: NCI:63 | C81: NCI:ERBB1_downstream_pathway | D81: 106 | E81: 12 | F81: 2 | G81: 1.520912548 | H81: 0.2132196162 | I81: 12 | J81: 7 | K81: 58.33333333 | L81: 0.002439451117 | M81: 7.220626078 | N81: 1 | O81: 0.04966375137 | P81: 0.1971423776 | Q81: (0.15,0.2] | R81: 3 | S81: 2 | T81: 0.4103967168 | U81: 0.2192982456 | V81: 0.3974305323 | W81: 1.874252755 | X81: ASD_and_ID | Y81: 5359_4;20127_4014001;2204_1;20089_1391001;5068_3;2211_1;8534_201;4312_1;3174_3;5516_3;14310_4270;14339_4530 | Z81: HABC_901154_901154;B159476_1007873588 | AA81: DIAPH3;MAPK3;MAPK7;MAPK8;RAB5A;RALGDS | AB81: F2RL2 | AC81: NCI:63
A82: 81 | B82: REACT:1151 | C82: REACT: Toll Like Receptor 4 (TLR4) Cascade | D82: 103 | E82: 12 | F82: 1 | G82: 1.520912548 | H82: 0.1066098081 | I82: 12 | J82: 8 | K82: 66.66666667 | L82: 0.000597383074 | M82: 14.4498642 | N82: 1 | O82: 0.04987718642 | P82: 0.1971423776 | Q82: (0.15,0.2] | R82: 2 | S82: 1 | T82: 0.2735978112 | U82: 0.1096491228 | V82: 0.417661245 | W82: 2.497955838 | X82: None | Y82: 6162_4;5359_4;20127_4014001;2204_1;20089_1391001;5068_3;2211_1;8534_201;4312_1;2072_1;6130_4;3567_4 | Z82: HABC_900441_900441 | AA82: MAP2K3;MAPK11;MAPK3;MAPK7;MAPK8;NOD1 | AB82: TLR4 | AC82: REACT:1151
A83: 82 | B83: REACT:616 | C83: REACT: Membrane Trafficking | D83: 133 | E83: 11 | F83: 2 | G83: 1.394169835 | H83: 0.2132196162 | I83: 11 | J83: 4 | K83: 36.36363636 | L83: 0.004655615241 | M83: 6.610482657 | N83: 1 | O83: 0.05210937754 | P83: 0.1971423776 | Q83: (0.15,0.2] | R83: 3 | S83: 2 | T83: 0.4103967168 | U83: 0.2192982456 | V83: 0.3974305323 | W83: 1.874252755 | X83: None | Y83: 20003_1019001;8446_201;8635_201;3540_2;1950_301;4320_1;3183_7;17015_1;8559_201;14393_5020;4403_1 | Z83: HABC_900391_900391;HABC_900403_900403 | AA83: CHMP4C;CLTCL1;GJA5;GJA8;GJB6;SEC24C;SEC24D;TBC1D8B;TJP1;TPD52;VPS37D | AB83: ARFGAP1 | AC83: REACT:616
A84: 83 | B84: REACT:552 | C84: REACT: Integration of energy metabolism | D84: 125 | E84: 9 | F84: 1 | G84: 1.140684411 | H84: 0.1066098081 | I84: 9 | J84: 3 | K84: 33.33333333 | L84: 0.005001648961 | M84: 10.80014125 | N84: 1 | O84: 0.05575461537 | P84: 0.1971423776 | Q84: (0.15,0.2] | R84: 4 | S84: 1 | T84: 0.5471956224 | U84: 0.1096491228 | V84: 0.1258248311 | W84: 5.008656813 | X84: None | Y84: 8612_201;5537_3;8446_201;13204_883;20057_1290002;2204_1;8635_201;5451_3;4272_1 | Z84: B630497_1007872229 | AA84: AKAP5;GNG13;GNG2;MLXIPL;PLCB1;PRKAB2;PRKACB;SEC11A;STX1A | AB84: CACNA1C | AC84: REACT:552
A85: 84 | B85: REACT:115 | C85: REACT: Apoptosis | D85: 148 | E85: 11 | F85: 1 | G85: 1.394169835 | H85: 0.1066098081 | I85: 11 | J85: 3 | K85: 27.27272727 | L85: 0.001221726484 | M85: 13.23144125 | N85: 1 | O85: 0.05777362046 | P85: 0.1971423776 | Q85: (0.15,0.2] | R85: 2 | S85: 1 | T85: 0.2735978112 | U85: 0.1096491228 | V85: 0.417661245 | W85: 2.497955838 | X85: None | Y85: 5449_3;5332_3;5521_3;1258_4;8534_201;4312_1;8404_201;1960_301;4236_1;1950_301;3032_3 | Z85: B993989_1007854998 | AA85: ARHGAP10;HIST1H1D;HIST1H1E;LOC100506658;MAPK8;PLEC;PSMB1;PSMC2;PSMC3;TJP1 | AB85: BCL2L11 | AC85: REACT:115
A86: 85 | B86: KEGG:04270 | C86: Vascular smooth muscle contraction | D86: 116 | E86: 11 | F86: 2 | G86: 1.394169835 | H86: 0.2132196162 | I86: 11 | J86: 4 | K86: 36.36363636 | L86: 0.004655615241 | M86: 6.610482657 | N86: 1 | O86: 0.0589092281 | P86: 0.1971423776 | Q86: (0.15,0.2] | R86: 3 | S86: 2 | T86: 0.4103967168 | U86: 0.2192982456 | V86: 0.3974305323 | W86: 1.874252755 | X86: None | Y86: 5324_3;8612_201;3441_3;14283_4060;14412_5210;5451_3;5359_4;20127_4014001;2204_1;20089_1391001;5068_3 | Z86: B466917_1007874508;B630497_1007872229 | AA86: MAPK3;MRVI1;MYH11;PLCB1;PRKACB | AB86: CACNA1C;PPP1R12B | AC86: KEGG:04270
A87: 86 | B87: KEGG:04660 | C87: T cell receptor signaling pathway | D87: 108 | E87: 11 | F87: 1 | G87: 1.394169835 | H87: 0.1066098081 | I87: 11 | J87: 7 | K87: 63.63636364 | L87: 0.001221726484 | M87: 13.23144125 | N87: 1 | O87: 0.05895846807 | P87: 0.1971423776 | Q87: (0.15,0.2] | R87: 3 | S87: 1 | T87: 0.4103967168 | U87: 0.1096491228 | V87: 0.2344671116 | W87: 3.751288102 | X87: ID_only | Y87: 4276_1;14393_5020;5359_4;20127_4014001;2204_1;20089_1391001;5068_3;2072_1;6130_4;5347_3;5451_3 | Z87: 110036021749_ | AA87: MAPK11;MAPK12;MAPK3;PDCD1;PPP3CB;PTPRC | AB87: LAT | AC87: KEGG:04660

Sheet Table S12B. Enr_dn_perGS_acrGS
A1: # | B1: #GsID | C1: GsName | D1: GsSize | E1: Case_N | F1: Ctrl_N | G1: Case_% | H1: Ctrl_% | I1: total_#exonicDEL_count_incases | J1: #denovo_count_incases | K1: % denovos | L1: Enrichment_denovos_hypergeometric_distribution | M1: expected | N1: observed | O1: chsquare_value_(O-E)^2/E
A2: 1 | B2: GO:0030030 | C2: cell projection organization | D2: 829 | E2: 80 | F2: 32 | G2: 10.13941698 | H2: 3.411513859 | I2: 81 | J2: 22 | K2: =(J2/I2)*100 -> 27.16049383 | L2: =HYPGEOMDIST(J2,I2,53,1012) -> 2.702321624e-12 | M2: =53/1012 -> 0.0523715415 | N2: =J2/I2 -> 0.2716049383 | O2: =(N2-M2)^2/M2 -> 0.9177366348
A3: 2 | B3: GO:0048699 | C3: generation of neurons | D3: 964 | E3: 73 | F3: 27 | G3: 9.252217997 | H3: 2.878464819 | I3: 74 | J3: 23 | K3: =(J3/I3)*100 -> 31.08108108 | L3: =HYPGEOMDIST(J3,I3,53,1012) -> 2.591218666e-14 | M3: =53/1012 -> 0.0523715415 | N3: =J3/I3 -> 0.3108108108 | O3: =(N3-M3)^2/M3 -> 1.275327287
A4: 3 | B4: GO:0032990 | C4: cell part morphogenesis | D4: 626 | E4: 57 | F4: 18 | G4: 7.224334601 | H4: 1.918976546 | I4: 57 | J4: 20 | K4: 35.0877193 | L4: 1.583589025e-13 | M4: 0.0523715415 | N4: 0.350877193 | O4: 1.701413046
A5: 4 | B5: GO:0048858 | C5: cell projection morphogenesis | D5: 617 | E5: 57 | F5: 18 | G5: 7.224334601 | H5: 1.918976546 | I5: 57 | J5: 20 | K5: 35.0877193 | L5: 1.583589025e-13 | M5: 0.0523715415 | N5: 0.350877193 | O5: 1.701413046
A6: 5 | B6: GO:0000902 | C6: cell morphogenesis | D6: 842 | E6: 64 | F6: 25 | G6: 8.111533587 | H6: 2.665245203 | I6: 66 | J6: 21 | K6: 31.81818182 | L6: 3.061998435e-13 | M6: 0.0523715415 | N6: 0.3181818182 | O6: 1.349112536
A7: 6 | B7: GO:0048812 | C7: neuron projection morphogenesis | D7: 537 | E7: 56 | F7: 17 | G7: 7.097591888 | H7: 1.812366738 | I7: 56 | J7: 20 | K7: 35.71428571 | L7: 1.064695805e-13 | M7: 0.0523715415 | N7: 0.3571428571 | O7: 1.77358833
A8: 7 | B8: GO:0030182 | C8: neuron differentiation | D8: 890 | E8: 71 | F8: 26 | G8: 8.998732573 | H8: 2.771855011 | I8: 72 | J8: 23 | K8: 31.94444444 | L8: 1.305202312e-14 | M8: 0.0523715415 | N8: 0.3194444444 | O8: 1.361959825
A9: 8 | B9: GO:0048666 | C9: neuron development | D9: 721 | E9: 65 | F9: 23 | G9: 8.238276299 | H9: 2.452025586 | I9: 66 | J9: 22 | K9: 33.33333333 | L9: 2.190401265e-14 | M9: 0.0523715415 | N9: 0.3333333333 | O9: 1.507298166
A10: 9 | B10: GO:0048667 | C10: cell morphogenesis involved in neuron differentiation | D10: 532 | E10: 53 | F10: 15 | G10: 6.717363752 | H10: 1.599147122 | I10: 53 | J10: 20 | K10: 37.73584906 | L10: 3.046504977e-14 | M10: 0.0523715415 | N10: 0.3773584906 | O10: 2.016677647
A11: 10 | B11: GO:0032989 | C11: cellular component morphogenesis | D11: 887 | E11: 67 | F11: 29 | G11: 8.491761724 | H11: 3.091684435 | I11: 70 | J11: 22 | K11: 31.42857143 | L11: 9.031738623e-14 | M11: 0.0523715415 | N11: 0.3142857143 | O11: 1.309853251
A12: 11 | B12: GO:0007409 | C12: axonogenesis | D12: 490 | E12: 50 | F12: 14 | G12: 6.337135615 | H12: 1.492537313 | I12: 50 | J12: 19 | K12: 38 | L12: 1.389023144e-13 | M12: 0.0523715415 | N12: 0.38 | O12: 2.049594183
A13: 12 | B13: GO:0031175 | C13: neuron projection development | D13: 632 | E13: 60 | F13: 21 | G13: 7.604562738 | H13: 2.23880597 | I13: 60 | J13: 21 | K13: 35 | L13: 3.371833216e-14 | M13: 0.0523715415 | N13: 0.35 | O13: 1.691428145
A14: 13 | B14: GO:0016477 | C14: cell migration | D14: 734 | E14: 51 | F14: 17 | G14: 6.463878327 | H14: 1.812366738 | I14: 52 | J14: 13 | K14: 25 | L14: 6.058982914e-07 | M14: 0.0523715415 | N14: 0.25 | O14: 0.7457677679
A15: 14 | B15: GO:0006935 | C15: chemotaxis | D15: 565 | E15: 47 | F15: 15 | G15: 5.956907478 | H15: 1.599147122 | I15: 48 | J15: 15 | K15: 31.25 | L15: 2.251384413e-09 | M15: 0.0523715415 | N15: 0.3125 | O15: 1.292053145
A16: 15 | B16: GO:0042330 | C16: taxis | D16: 565 | E16: 47 | F16: 15 | G16: 5.956907478 | H16: 1.599147122 | I16: 48 | J16: 15 | K16: 31.25 | L16: 2.251384413e-09 | M16: 0.0523715415 | N16: 0.3125 | O16: 1.292053145
A17: 16 | B17: GO:0000904 | C17: cell morphogenesis involved in differentiation | D17: 633 | E17: 56 | F17: 20 | G17: 7.097591888 | H17: 2.132196162 | I17: 56 | J17: 20 | K17: 35.71428571 | L17: 1.064695805e-13 | M17: 0.0523715415 | N17: 0.3571428571 | O17: 1.77358833
A18: 17 | B18: GO:0048870 | C18: cell motility | D18: 791 | E18: 51 | F18: 19 | G18: 6.463878327 | H18: 2.025586354 | I18: 52 | J18: 13 | K18: 25 | L18: 6.058982914e-07 | M18: 0.0523715415 | N18: 0.25 | O18: 0.7457677679
A19: 18 | B19: GO:0051674 | C19: localization of cell | D19: 791 | E19: 51 | F19: 19 | G19: 6.463878327 | H19: 2.025586354 | I19: 52 | J19: 13 | K19: 25 | L19: 6.058982914e-07 | M19: 0.0523715415 | N19: 0.25 | O19: 0.7457677679
A20: 19 | B20: GO:0008285 | C20: negative regulation of cell proliferation | D20: 475 | E20: 43 | F20: 13 | G20: 5.449936629 | H20: 1.385927505 | I20: 43 | J20: 13 | K20: 30.23255814 | L20: 5.108512613e-08 | M20: 0.0523715415 | N20: 0.3023255814 | O20: 1.192957478
A21: 20 | B21: GO:0008284 | C21: positive regulation of cell proliferation | D21: 591 | E21: 37 | F21: 9 | G21: 4.689480355 | H21: 0.9594882729 | I21: 37 | J21: 13 | K21: 35.13513514 | L21: 6.40153385e-09 | M21: 0.0523715415 | N21: 0.3513513514 | O21: 1.706822525
A22: 21 | B22: GO:0001932 | C22: regulation of protein phosphorylation | D22: 758 | E22: 52 | F22: 21 | G22: 6.590621039 | H22: 2.23880597 | I22: 56 | J22: 17 | K22: 30.35714286 | L22: 2.429822263e-10 | M22: 0.0523715415 | N22: 0.3035714286 | O22: 1.204879243
A23: 22 | B23: GO:0007411 | C23: axon guidance | D23: 341 | E23: 35 | F23: 10 | G23: 4.43599493 | H23: 1.066098081 | I23: 35 | J23: 12 | K23: 34.28571429 | L23: 3.725796166e-08 | M23: 0.0523715415 | N23: 0.3428571429 | O23: 1.611216362
A24: 23 | B24: GO:0031399 | C24: regulation of protein modification process | D24: 932 | E24: 61 | F24: 29 | G24: 7.73130545 | H24: 3.091684435 | I24: 65 | J24: 19 | K24: 29.23076923 | L24: 3.267802535e-11 | M24: 0.0523715415 | N24: 0.2923076923 | O24: 1.099248844
A25: 24 | B25: GO:0040007 | C25: growth | D25: 718 | E25: 39 | F25: 13 | G25: 4.942965779 | H25: 1.385927505 | I25: 39 | J25: 14 | K25: 35.8974359 | L25: 1.067510696e-09 | M25: 0.0523715415 | N25: 0.358974359 | O25: 1.794968889
A26: 25 | B26: GO:0072358 | C26: cardiovascular system development | D26: 689 | E26: 50 | F26: 18 | G26: 6.337135615 | H26: 1.918976546 | I26: 51 | J26: 17 | K26: 33.33333333 | L26: 4.434615889e-11 | M26: 0.0523715415 | N26: 0.3333333333 | O26: 1.507298166
A27: 26 | B27: GO:0072359 | C27: circulatory system development | D27: 689 | E27: 50 | F27: 18 | G27: 6.337135615 | H27: 1.918976546 | I27: 51 | J27: 17 | K27: 33.33333333 | L27: 4.434615889e-11 | M27: 0.0523715415 | N27: 0.3333333333 | O27: 1.507298166
A28: 27 | B28: GO:0051726 | C28: regulation of cell cycle | D28: 697 | E28: 42 | F28: 10 | G28: 5.323193916 | H28: 1.066098081 | I28: 42 | J28: 14 | K28: 33.33333333 | L28: 3.308387166e-09 | M28: 0.0523715415 | N28: 0.3333333333 | O28: 1.507298166
A29: 28 | B29: REACT:708 | C29: REACT: Neuronal System | D29: 289 | E29: 26 | F29: 6 | G29: 3.29531052 | H29: 0.6396588486 | I29: 26 | J29: 10 | K29: 38.46153846 | L29: 1.719642915e-07 | M29: 0.0523715415 | N29: 0.3846153846 | O29: 2.107747225
A30: 29 | B30: REACT:302 | C30: REACT: Developmental Biology | D30: 420 | E30: 29 | F30: 6 | G30: 3.675538657 | H30: 0.6396588486 | I30: 29 | J30: 11 | K30: 37.93103448 | L30: 4.476790424e-08 | M30: 0.0523715415 | N30: 0.3793103448 | O30: 2.040974507
A31: 30 | B31: GO:2000026 | C31: regulation of multicellular organismal development | D31: 957 | E31: 60 | F31: 29 | G31: 7.604562738 | H31: 3.091684435 | I31: 61 | J31: 17 | K31: 27.86885246 | L31: 1.098164814e-09 | M31: 0.0523715415 | N31: 0.2786885246 | O31: 0.9780001765
A32: 31 | B32: REACT:1181 | C32: REACT: Transmission across Chemical Synapses | D32: 190 | E32: 21 | F32: 3 | G32: 2.661596958 | H32: 0.3198294243 | I32: 21 | J32: 7 | K32: 33.33333333 | L32: 4.383886594e-05 | M32: 0.0523715415 | N32: 0.3333333333 | O32: 1.507298166
A33: 32 | B33: KEGG:04724 | C33: Glutamatergic synapse | D33: 126 | E33: 19 | F33: 2 | G33: 2.408111534 | H33: 0.2132196162 | I33: 20 | J33: 11 | K33: 55 | L33: 3.213098453e-10 | M33: 0.0523715415 | N33: 0.55 | O33: 4.728409277
A34: 33 | B34: GO:0022603 | C34: regulation of anatomical structure morphogenesis | D34: 512 | E34: 41 | F34: 12 | G34: 5.196451204 | H34: 1.279317697 | I34: 42 | J34: 17 | K34: 40.47619048 | L34: 1.076110337e-12 | M34: 0.0523715415 | N34: 0.4047619048 | O34: 2.371115391
A35: 34 | B35: GO:0042325 | C35: regulation of phosphorylation | D35: 811 | E35: 52 | F35: 23 | G35: 6.590621039 | H35: 2.452025586 | I35: 56 | J35: 17 | K35: 30.35714286 | L35: 2.429822263e-10 | M35: 0.0523715415 | N35: 0.3035714286 | O35: 1.204879243
A36: 35 | B36: GO:0005625 | C36: soluble fraction | D36: 369 | E36: 35 | F36: 9 | G36: 4.43599493 | H36: 0.9594882729 | I36: 35 | J36: 12 | K36: 34.28571429 | L36: 3.725796166e-08 | M36: 0.0523715415 | N36: 0.3428571429 | O36: 1.611216362
A37: 36 | B37: GO:0016049 | C37: cell growth | D37: 353 | E37: 25 | F37: 3 | G37: 3.168567807 | H37: 0.3198294243 | I37: 25 | J37: 11 | K37: 44 | L37: 6.865391198e-09 | M37: 0.0523715415 | N37: 0.44 | O37: 2.869035692
A38: 37 | B38: GO:0000165 | C38: MAPK cascade | D38: 387 | E38: 29 | F38: 6 | G38: 3.675538657 | H38: 0.6396588486 | I38: 30 | J38: 10 | K38: 33.33333333 | L38: 8.135656631e-07 | M38: 0.0523715415 | N38: 0.3333333333 | O38: 1.507298166
A39: 38 | B39: GO:0048646 | C39: anatomical structure formation involved in morphogenesis | D39: 710 | E39: 57 | F39: 23 | G39: 7.224334601 | H39: 2.452025586 | I39: 58 | J39: 21 | K39: 36.20689655 | L39: 1.511338516e-14 | M39: 0.0523715415 | N39: 0.3620689655 | O39: 1.831385743
A40: 39 | B40: GO:0007611 | C40: learning or memory | D40: 136 | E40: 38 | F40: 15 | G40: 4.816223067 | H40: 1.599147122 | I40: 39 | J40: 15 | K40: 38.46153846 | L40: 7.421197353e-11 | M40: 0.0523715415 | N40: 0.3846153846 | O40: 2.107747225
A41: 40 | B41: GO:0005769 | C41: early endosome | D41: 179 | E41: 26 | F41: 5 | G41: 3.29531052 | H41: 0.5330490405 | I41: 26 | J41: 10 | K41: 38.46153846 | L41: 1.719642915e-07 | M41: 0.0523715415 | N41: 0.3846153846 | O41: 2.107747225
A42: 41 | B42: GO:0070011 | C42: peptidase activity, acting on L-amino acid peptides | D42: 553 | E42: 74 | F42: 49 | G42: 9.37896071 | H42: 5.223880597 | I42: 76 | J42: 10 | K42: 13.15789474 | L42: 0.003135083519 | M42: 0.0523715415 | N42: 0.1315789474 | O42: 0.1197943189
A43: 42 | B43: KEGG:04144 | C43: Endocytosis | D43: 202 | E43: 23 | F43: 6 | G43: 2.915082383 | H43: 0.6396588486 | I43: 23 | J43: 6 | K43: 26.08695652 | L43: 0.0006943149127 | M43: 0.0523715415 | N43: 0.2608695652 | O43: 0.8300581699
A44: 43 | B44: GO:0016044 | C44: cellular membrane organization | D44: 615 | E44: 65 | F44: 37 | G44: 8.238276299 | H44: 3.9445629 | I44: 66 | J44: 18 | K44: 27.27272727 | L44: 4.563119466e-10 | M44: 0.0523715415 | N44: 0.2727272727 | O44: 0.9271571333
A45: 44 | B45: GO:0061024 | C45: membrane organization | D45: 617 | E45: 65 | F45: 37 | G45: 8.238276299 | H45: 3.9445629 | I45: 66 | J45: 18 | K45: 27.27272727 | L45: 4.563119466e-10 | M45: 0.0523715415 | N45: 0.2727272727 | O45: 0.9271571333
A46: 45 | B46: GO:0017124 | C46: SH3 domain binding | D46: 118 | E46: 16 | F46: 2 | G46: 2.027883397 | H46: 0.2132196162 | I46: 16 | J46: 8 | K46: 50 | L46: 2.97440843e-07 | M46: 0.0523715415 | N46: 0.5 | O46: 3.825956447
A47: 46 | B47: GO:0007010 | C47: cytoskeleton organization | D47: 721 | E47: 65 | F47: 36 | G47: 8.238276299 | H47: 3.837953092 | I47: 65 | J47: 18 | K47: 27.69230769 | L47: 3.445992132e-10 | M47: 0.0523715415 | N47: 0.2769230769 | O47: 0.9628013729
A48: 47 | B48: KEGG:04725 | C48: Cholinergic synapse | D48: 112 | E48: 17 | F48: 2 | G48: 2.154626109 | H48: 0.2132196162 | I48: 18 | J48: 7 | K48: 38.88888889 | L48: 1.383269834e-05 | M48: 0.0523715415 | N48: 0.3888888889 | O48: 2.162317966
A49: 48 | B49: GO:0045859 | C49: regulation of protein kinase activity | D49: 588 | E49: 34 | F49: 9 | G49: 4.309252218 | H49: 0.9594882729 | I49: 36 | J49: 13 | K49: 36.11111111 | L49: 4.329796977e-09 | M49: 0.0523715415 | N49: 0.3611111111 | O49: 1.820074779
A50: 49 | B50: GO:0045765 | C50: regulation of angiogenesis | D50: 139 | E50: 21 | F50: 2 | G50: 2.661596958 | H50: 0.2132196162 | I50: 21 | J50: 8 | K50: 38.0952381 | L50: 3.730474322e-06 | M50: 0.0523715415 | N50: 0.380952381 | O50: 2.061527405
A51: 50 | B51: GO:0008233 | C51: peptidase activity | D51: 572 | E51: 74 | F51: 50 | G51: 9.37896071 | H51: 5.330490405 | I51: 76 | J51: 10 | K51: 13.15789474 | L51: 0.003135083519 | M51: 0.0523715415 | N51: 0.1315789474 | O51: 0.1197943189
A52: 51 | B52: GO:0051338 | C52: regulation of transferase activity | D52: 634 | E52: 38 | F52: 13 | G52: 4.816223067 | H52: 1.385927505 | I52: 40 | J52: 13 | K52: 32.5 | L52: 1.906684511e-08 | M52: 0.0523715415 | N52: 0.325 | O52: 1.419211164
A53: 52 | B53: GO:0048514 | C53: blood vessel morphogenesis | D53: 394 | E53: 36 | F53: 10 | G53: 4.562737643 | H53: 1.066098081 | I53: 36 | J53: 14 | K53: 38.88888889 | L53: 3.036601021e-10 | M53: 0.0523715415 | N53: 0.3888888889 | O53: 2.162317966
A54: 53 | B54: GO:0019220 | C54: regulation of phosphate metabolic process | D54: 891 | E54: 65 | F54: 38 | G54: 8.238276299 | H54: 4.051172708 | I54: 69 | J54: 17 | K54: 24.63768116 | L54: 8.950341524e-09 | M54: 0.0523715415 | N54: 0.2463768116 | O54: 0.7186736106
A55: 54 | B55: GO:0051174 | C55: regulation of phosphorus metabolic process | D55: 891 | E55: 65 | F55: 38 | G55: 8.238276299 | H55: 4.051172708 | I55: 69 | J55: 17 | K55: 24.63768116 | L55: 8.950341524e-09 | M55: 0.0523715415 | N55: 0.2463768116 | O55: 0.7186736106
A56: 55 | B56: GO:0016757 | C56: transferase activity, transferring glycosyl groups | D56: 262 | E56: 53 | F56: 30 | G56: 6.717363752 | H56: 3.198294243 | I56: 54 | J56: 10 | K56: 18.51851852 | L56: 0.0002183693878 | M56: 0.0523715415 | N56: 0.1851851852 | O56: 0.3368139154
A57: 56 | B57: GO:0001944 | C57: vasculature development | D57: 469 | E57: 37 | F57: 11 | G57: 4.689480355 | H57: 1.172707889 | I57: 38 | J57: 15 | K57: 39.47368421 | L57: 4.752298634e-11 | M57: 0.0523715415 | N57: 0.3947368421 | O57: 2.238123907
A58: 57 | B58: GO:0001558 | C58: regulation of cell growth | D58: 276 | E58: 22 | F58: 1 | G58: 2.78833967 | H58: 0.1066098081 | I58: 22 | J58: 9 | K58: 40.90909091 | L58: 4.140788854e-07 | M58: 0.0523715415 | N58: 0.4090909091 | O58: 2.429730032
A59: 58 | B59: REACT:711 | C59: REACT: Neurotransmitter Receptor Binding And Downstream Transmission In The Postsynaptic Cell | D59: 136 | E59: 14 | F59: 1 | G59: 1.774397972 | H59: 0.1066098081 | I59: 14 | J59: 4 | K59: 28.57142857 | L59: 0.004089714099 | M59: 0.0523715415 | N59: 0.2857142857 | O59: 1.039664572
A60: 59 | B60: GO:0009790 | C60: embryo development | D60: 799 | E60: 46 | F60: 17 | G60: 5.830164766 | H60: 1.812366738 | I60: 47 | J60: 16 | K60: 34.04255319 | L60: 1.319579478e-10 | M60: 0.0523715415 | N60: 0.3404255319 | O60: 1.584354766
A61: 60 | B61: GO:0023056 | C61: positive regulation of signaling | D61: 675 | E61: 57 | F61: 29 | G61: 7.224334601 | H61: 3.091684435 | I61: 59 | J61: 19 | K61: 32.20338983 | L61: 4.610966897e-12 | M61: 0.0523715415 | N61: 0.3220338983 | O61: 1.388498115
A62: 61 | B62: GO:0019725 | C62: cellular homeostasis | D62: 622 | E62: 63 | F62: 33 | G62: 7.984790875 | H62: 3.518123667 | I62: 64 | J62: 21 | K62: 32.8125 | L62: 1.513751586e-13 | M62: 0.0523715415 | N62: 0.328125 | O62: 1.45193301
A63: 62 | B63: KEGG:04514 | C63: Cell adhesion molecules (CAMs) | D63: 133 | E63: 22 | F63: 3 | G63: 2.78833967 | H63: 0.3198294243 | I63: 22 | J63: 10 | K63: 45.45454545 | L63: 2.501088938e-08 | M63: 0.0523715415 | N63: 0.4545454545 | O63: 3.088392125
A64: 63 | B64: REACT:210 | C64: REACT: Cell Cycle, Mitotic | D64: 330 | E64: 23 | F64: 7 | G64: 2.915082383 | H64: 0.7462686567 | I64: 23 | J64: 9 | K64: 39.13043478 | L64: 6.500381232e-07 | M64: 0.0523715415 | N64: 0.3913043478 | O64: 2.193470803
A65: 64 | B65: KEGG:04723 | C65: Retrograde endocannabinoid signaling | D65: 102 | E65: 15 | F65: 1 | G65: 1.901140684 | H65: 0.1066098081 | I65: 16 | J65: 8 | K65: 50 | L65: 2.97440843e-07 | M65: 0.0523715415 | N65: 0.5 | O65: 3.825956447
A66: 65 | B66: REACT:208 | C66: REACT: Cell Cycle | D66: 409 | E66: 27 | F66: 9 | G66: 3.422053232 | H66: 0.9594882729 | I66: 27 | J66: 9 | K66: 33.33333333 | L66: 3.10680229e-06 | M66: 0.0523715415 | N66: 0.3333333333 | O66: 1.507298166
A67: 66 | B67: REACT:138 | C67: REACT: Axon guidance | D67: 266 | E67: 21 | F67: 6 | G67: 2.661596958 | H67: 0.6396588486 | I67: 21 | J67: 6 | K67: =(J67/I67)*100 -> 28.57142857 | L67: =HYPGEOMDIST(J67,I67,53,1012) -> 0.0004113391464 | M67: =53/1012 -> 0.0523715415 | N67: =J67/I67 -> 0.2857142857 | O67: =(N67-M67)^2/M67 -> 1.039664572
A68: 67 | B68: KEGG:04010 | C68: MAPK signaling pathway | D68: 268 | E68: 21 | F68: 7 | G68: 2.661596958 | H68: 0.7462686567 | I68: 21 | J68: 11 | K68: 52.38095238 | L68: 6.461826022e-10 | M68: 0.0523715415 | N68: 0.5238095238 | O68: 4.243788989
A69: 68 | B69: KEGG:04062 | C69: Chemokine signaling pathway | D69: 189 | E69: 13 | F69: 1 | G69: 1.64765526 | H69: 0.1066098081 | I69: 14 | J69: 5 | K69: 35.71428571 | L69: 0.0004218862965 | M69: 0.0523715415 | N69: 0.3571428571 | O69: 1.77358833
A70: 69 | B70: REACT:1029 | C70: REACT: Signaling by Insulin receptor | D70: 109 | E70: 12 | F70: 2 | G70: 1.520912548 | H70: 0.2132196162 | I70: 12 | J70: 5 | K70: 41.66666667 | L70: 0.00018416392 | M70: 0.0523715415 | N70: 0.4166666667 | O70: 2.534027726
A71: 70 | B71: KEGG:04912 | C71: GnRH signaling pathway | D71: 101 | E71: 14 | F71: 2 | G71: 1.774397972 | H71: 0.2132196162 | I71: 14 | J71: 9 | K71: 64.28571429 | L71: 2.393569924e-09 | M71: 0.0523715415 | N71: 0.6428571429 | O71: 6.657685365
A72: 71 | B72: REACT:1157 | C72: REACT: Toll Receptor Cascades | D72: 121 | E72: 14 | F72: 2 | G72: 1.774397972 | H72: 0.2132196162 | I72: 14 | J72: 8 | K72: 57.14285714 | L72: 7.611552359e-08 | M72: 0.0523715415 | N72: 0.5714285714 | O72: 5.144400806
A73: 72 | B73: KEGG:04728 | C73: Dopaminergic synapse | D73: 130 | E73: 14 | F73: 2 | G73: 1.774397972 | H73: 0.2132196162 | I73: 14 | J73: 0 | K73: 0 | L73: 0.4685491374 | M73: 0.0523715415 | N73: 0 | O73: 0.0523715415
A74: 73 | B74: KEGG:04910 | C74: Insulin signaling pathway | D74: 138 | E74: 13 | F74: 1 | G74: 1.64765526 | H74: 0.1066098081 | I74: 13 | J74: 9 | K74: 69.23076923 | L74: 8.942319948e-10 | M74: 0.0523715415 | N74: 0.6923076923 | O74: 7.819481065
A75: 74 | B75: REACT:492 | C75: REACT: Hemostasis | D75: 468 | E75: 33 | F75: 16 | G75: 4.182509506 | H75: 1.70575693 | I75: 35 | J75: 12 | K75: 34.28571429 | L75: 3.725796166e-08 | M75: 0.0523715415 | N75: 0.3428571429 | O75: 1.611216362
A76: 75 | B76: KEGG:04510 | C76: Focal adhesion | D76: 200 | E76: 17 | F76: 5 | G76: 2.154626109 | H76: 0.5330490405 | I76: 17 | J76: 7 | K76: 41.17647059 | L76: 8.863065408e-06 | M76: 0.0523715415 | N76: 0.4117647059 | O76: 2.466290716
A77: 76 | B77: KEGG:04722 | C77: Neurotrophin signaling pathway | D77: 120 | E77: 14 | F77: 1 | G77: 1.774397972 | H77: 0.1066098081 | I77: 14 | J77: 10 | K77: 71.42857143 | L77: 5.513983071e-11 | M77: 0.0523715415 | N77: 0.7142857143 | O77: 8.365810124
A78: 77 | B78: KEGG:04916 | C78: Melanogenesis | D78: 101 | E78: 11 | F78: 1 | G78: 1.394169835 | H78: 0.1066098081 | I78: 11 | J78: 6 | K78: 54.54545455 | L78: 5.677477005e-06 | M78: 0.0523715415 | N78: 0.5454545455 | O78: 4.642422999
A79: 78 | B79: REACT:623 | C79: REACT: Metabolism of lipids and lipoproteins | D79: 489 | E79: 40 | F79: 24 | G79: 5.069708492 | H79: 2.558635394 | I79: 41 | J79: 12 | K79: 29.26829268 | L79: 2.724993621e-07 | M79: 0.0523715415 | N79: 0.2926829268 | O79: 1.102689748
A80: 79 | B80: REACT:1030 | C80: REACT: Signaling by Interleukins | D80: 109 | E80: 11 | F80: 1 | G80: 1.394169835 | H80: 0.1066098081 | I80: 11 | J80: 5 | K80: 45.45454545 | L80: 0.0001128398555 | M80: 0.0523715415 | N80: 0.4545454545 | O80: 3.088392125
A81: 80 | B81: NCI:63 | C81: NCI:ERBB1_downstream_pathway | D81: 106 | E81: 12 | F81: 2 | G81: 1.520912548 | H81: 0.2132196162 | I81: 12 | J81: 7 | K81: 58.33333333 | L81: 4.569854475e-07 | M81: 0.0523715415 | N81: 0.5833333333 | O81: 5.38308433
A82: 81 | B82: REACT:1151 | C82: REACT: Toll Like Receptor 4 (TLR4) Cascade | D82: 103 | E82: 12 | F82: 1 | G82: 1.520912548 | H82: 0.1066098081 | I82: 12 | J82: 8 | K82: 66.66666667 | L82: 1.37574153e-08 | M82: 0.0523715415 | N82: 0.6666666667 | O82: 7.205411374
A83: 82 | B83: REACT:616 | C83: REACT: Membrane Trafficking | D83: 133 | E83: 11 | F83: 2 | G83: 1.394169835 | H83: 0.2132196162 | I83: 11 | J83: 4 | K83: 36.36363636 | L83: 0.001567585747 | M83: 0.0523715415 | N83: 0.3636363636 | O83: 1.849970169
A84: 83 | B84: REACT:552 | C84: REACT: Integration of energy metabolism | D84: 125 | E84: 9 | F84: 1 | G84: 1.140684411 | H84: 0.1066098081 | I84: 9 | J84: 3 | K84: 33.33333333 | L84: 0.008415935569 | M84: 0.0523715415 | N84: 0.3333333333 | O84: 1.507298166
A85: 84 | B85: REACT:115 | C85: REACT: Apoptosis | D85: 148 | E85: 11 | F85: 1 | G85: 1.394169835 | H85: 0.1066098081 | I85: 11 | J85: 3 | K85: 27.27272727 | L85: 0.01492341631 | M85: 0.0523715415 | N85: 0.2727272727 | O85: 0.9271571333
A86: 85 | B86: KEGG:04270 | C86: Vascular smooth muscle contraction | D86: 116 | E86: 11 | F86: 2 | G86: 1.394169835 | H86: 0.2132196162 | I86: 11 | J86: 4 | K86: 36.36363636 | L86: 0.001567585747 | M86: 0.0523715415 | N86: 0.3636363636 | O86: 1.849970169
A87: 86 | B87: KEGG:04660 | C87: T cell receptor signaling pathway | D87: 108 | E87: 11 | F87: 1 | G87: 1.394169835 | H87: 0.1066098081 | I87: 11 | J87: 7 | K87: 63.63636364 | L87: 1.995822133e-07 | M87: 0.0523715415 | N87: 0.6363636364 | O87: 6.512062794
O88: =SUM(O2:O87) -> 180.9917781
O89: =CHIDIST(O88,86) -> 9.831467725e-09

Sheet Table S12C. OR_per_cluster
A1: ClusterFDR_ID | B1: ClusterName | C1: GsSize | D1: Case_N | E1: Ctrl_N | F1: Case_% | G1: Ctrl_% | H1: FET-Pvalue | I1: FET2s_OR | J1: FET2s_OR_95CI_low | K1: FET2s_OR_95CI_up | L1: FET_BHFDR | M1: LRM_GsN_Sign | N1: LRM_GsN_Pvalue | O1: LRM_Convg
A2: Clust20_2 | B2: Development_CellProlif | C2: 3419 | D2: 147 | E2: 64 | F2: 18.63117871 | G2: 6.823027719 | H2: 5.509159535e-14 | I2: 3.124841001 | J2: 2.27167131 | K2: 4.336026777 | L2: 2.203663814e-12 | M2: 1 | N2: 1.584727496e-07 | O2: 1
A3: Clust15_2 | B3: Development_CellProlif | C3: 2909 | D3: 135 | E3: 58 | F3: 17.11026616 | G3: 6.18336887 | H3: 4.636725219e-13 | I3: 3.129865342 | J3: 2.244109927 | K3: 4.407960238 | L3: 9.273450438e-12 | M3: 1 | N3: 7.306693001e-07 | O3: 1
A4: Clust20_3 | B4: NegRegCellProl_CellCycle | C4: 1262 | D4: 79 | E4: 24 | F4: 10.01267427 | G4: 2.558635394 | H4: 3.882988314e-11 | I4: 4.234093859 | J4: 2.620609666 | K4: 7.069192982 | L4: 5.177317752e-10 | M4: 1 | N4: 0.0004851957558 | O4: 1
A5: Clust15_3 | B5: NegRegCellProl_CellCycle | C5: 1041 | D5: 68 | E5: 19 | F5: 8.618504436 | G5: 2.025586354 | H5: 2.302911219e-10 | I5: 4.558067018 | J5: 2.678670722 | K5: 8.104638247 | L5: 1.848366415e-09 | M5: 1 | N5: 0.00131118906 | O5: 1
A6: Clust20_10 | B6: CellProj_NeuronDev_Axg | C6: 1713 | D6: 108 | E6: 47 | F6: 13.68821293 | G6: 5.010660981 | H6: 2.310458019e-10 | I6: 3.004578888 | J6: 2.081417266 | K6: 4.391768892 | L6: 1.848366415e-09 | M6: 1 | N6: 9.596847444e-06 | O6: 1
A7: Clust15_10 | B7: CellProj_NeuronDev_Axg | C7: 1636 | D7: 104 | E7: 47 | F7: 13.18124208 | G7: 5.010660981 | H7: 1.539177852e-09 | I7: 2.876473155 | J7: 1.988355883 | K7: 4.212644275 | L7: 1.026118568e-08 | M7: 1 | N7: 3.471796457e-05 | O7: 1
A8: Clust20_11 | B8: NeuronDev_Axg | C8: 989 | D8: 74 | E8: 27 | F8: 9.37896071 | G8: 2.878464819 | H8: 6.626210884e-09 | I8: 3.489608222 | J8: 2.19162076 | K8: 5.705235711 | L8: 3.78640622e-08 | M8: 1 | N8: 0.001153620011 | O8: 1
A9: Clust15_11 | B9: NeuronDev_Axg | C9: 964 | D9: 73 | E9: 27 | F9: 9.252217997 | G9: 2.878464819 | H9: 1.109340094e-08 | I9: 3.437669351 | J9: 2.156901607 | K9: 5.624723423 | L9: 5.54670047e-08 | M9: 1 | N9: 0.001644025979 | O9: 1
A10: Clust20_26 | B10: Unlabeled | C10: 2061 | D10: 132 | E10: 76 | F10: 16.73003802 | G10: 8.102345416 | H10: 3.059331374e-08 | I10: 2.277701181 | J10: 1.672492286 | K10: 3.118807859 | L10: 1.359702833e-07 | M10: 1 | N10: 0.002689209869 | O10: 1
A11: Clust20_1 | B11: Endocytosis_MembraneOrg | C11: 760 | D11: 82 | E11: 40 | F11: 10.39290241 | G11: 4.264392324 | H11: 5.57555115e-07 | I11: 2.602399984 | J11: 1.737770233 | K11: 3.95096332 | L11: 2.23022046e-06 | M11: 1 | N11: 0.001112823731 | O11: 1
A12: Clust15_9 | B12: PosRegCellProl | C12: 591 | D12: 37 | E12: 9 | F12: 4.689480355 | G12: 0.9594882729 | H12: 1.074174773e-06 | I12: 5.075026419 | J12: 2.38613324 | K12: 12.03393222 | L12: 3.580582576e-06 | M12: 1 | N12: 0.009966179467 | O12: 1
A13: Clust20_9 | B13: PosRegCellProl | C13: 591 | D13: 37 | E13: 9 | F13: 4.689480355 | G13: 0.9594882729 | H13: 1.074174773e-06 | I13: 5.075026419 | J13: 2.38613324 | K13: 12.03393222 | L13: 3.580582576e-06 | M13: 1 | N13: 0.009966179467 | O13: 1
A14: Clust15_7 | B14: VascularDev | C14: 689 | D14: 50 | E14: 18 | F14: 6.337135615 | G14: 1.918976546 | H14: 1.918283401e-06 | I14: 3.455753583 | J14: 1.961299857 | K14: 6.350827423 | L14: 4.569523387e-06 | M14: 1 | N14: 0.03145026922 | O14: 1
A15: Clust15_8 | B15: CardiovascularDev | C15: 689 | D15: 50 | E15: 18 | F15: 6.337135615 | G15: 1.918976546 | H15: 1.918283401e-06 | I15: 3.455753583 | J15: 1.961299857 | K15: 6.350827423 | L15: 4.569523387e-06 | M15: 1 | N15: 0.03145026922 | O15: 1
A16: Clust20_7 | B16: VascularDev | C16: 689 | D16: 50 | E16: 18 | F16: 6.337135615 | G16: 1.918976546 | H16: 1.918283401e-06 | I16: 3.455753583 | J16: 1.961299857 | K16: 6.350827423 | L16: 4.569523387e-06 | M16: 1 | N16: 0.03145026922 | O16: 1
A17: Clust20_8 | B17: CardiovascularDev | C17: 689 | D17: 50 | E17: 18 | F17: 6.337135615 | G17: 1.918976546 | H17: 1.918283401e-06 | I17: 3.455753583 | J17: 1.961299857 | K17: 6.350827423 | L17: 4.569523387e-06 | M17: 1 | N17: 0.03145026922 | O17: 1
A18: Clust15_15 | B18: NeuronalSynapse | C18: 383 | D18: 36 | E18: 9 | F18: 4.562737643 | G18: 0.9594882729 | H18: 1.94204744e-06 | I18: 4.93126175 | J18: 2.312049424 | K18: 11.71587091 | L18: 4.569523387e-06 | M18: 1 | N18: 0.03711567681 | O18: 1
A19: Clust15_6 | B19: CellMotility | C19: 791 | D19: 51 | E19: 19 | F19: 6.463878327 | G19: 2.025586354 | H19: 2.395150028e-06 | I19: 3.340291965 | J19: 1.918529706 | K19: 6.046319277 | L19: 5.042421112e-06 | M19: 1 | N19: 0.009315193494 | O19: 1
A20: Clust20_6 | B20: CellMotility | C20: 791 | D20: 51 | E20: 19 | F20: 6.463878327 | G20: 2.025586354 | H20: 2.395150028e-06 | I20: 3.340291965 | J20: 1.918529706 | K20: 6.046319277 | L20: 5.042421112e-06 | M20: 1 | N20: 0.009315193494 | O20: 1
A21: Clust20_15 | B21: NeuronalSynapse | C21: 547 | D21: 56 | E21: 24 | F21: 7.097591888 | G21: 2.558635394 | H21: 6.004669471e-06 | I21: 2.907758393 | J21: 1.753181115 | K21: 4.956051402 | L21: 1.200933894e-05 | M21: 1 | N21: 0.01134178092 | O21: 1
A22: Clust20_5 | B22: EmbryonicDev | C22: 799 | D22: 46 | E22: 17 | F22: 5.830164766 | G22: 1.812366738 | H22: 7.01962102e-06 | I22: 3.351879413 | J22: 1.867013407 | K22: 6.290914341 | L22: 1.33707067e-05 | M22: 1 | N22: 0.1521802868 | O22: 1
A23: Clust20_23 | B23: EarlyEndosome | C23: 179 | D23: 26 | E23: 5 | F23: 3.29531052 | G23: 0.5330490405 | H23: 1.147287311e-05 | I23: 6.35219202 | J23: 2.3851222 | K23: 21.28552725 | L23: 2.022158525e-05 | M23: 1 | N23: 0.02187309409 | O23: 1
A24: Clust20_13 | B24: CellAdhesion | C24: 133 | D24: 22 | E24: 3 | F24: 2.78833967 | G24: 0.3198294243 | H24: 1.188101599e-05 | I24: 8.930309903 | J24: 2.668051868 | K24: 46.73910989 | L24: 2.022158525e-05 | M24: 1 | N24: 0.04534409544 | O24: 1
A25: Clust15_4 | B25: Growth | C25: 718 | D25: 39 | E25: 13 | F25: 4.942965779 | G25: 1.385927505 | H25: 1.263849078e-05 | I25: 3.697360168 | J25: 1.915051947 | K25: 7.606830969 | L25: 2.022158525e-05 | M25: 1 | N25: 0.02758081297 | O25: 1
A26: Clust20_4 | B26: Growth | C26: 718 | D26: 39 | E26: 13 | F26: 4.942965779 | G26: 1.385927505 | H26: 1.263849078e-05 | I26: 3.697360168 | J26: 1.915051947 | K26: 7.606830969 | L26: 2.022158525e-05 | M26: 1 | N26: 0.02758081297 | O26: 1
A27: Clust15_16 | B27: GlutamatergicSynapse | C27: 126 | D27: 19 | E27: 2 | F27: 2.408111534 | G27: 0.2132196162 | H27: 2.095174426e-05 | I27: 11.53561205 | J27: 2.769170709 | K27: 102.4871692 | L27: 3.103962112e-05 | M27: 1 | N27: 0.0214570943 | O27: 1
A28: Clust20_16 | B28: GlutamatergicSynapse | C28: 126 | D28: 19 | E28: 2 | F28: 2.408111534 | G28: 0.2132196162 | H28: 2.095174426e-05 | I28: 11.53561205 | J28: 2.769170709 | K28: 102.4871692 | L28: 3.103962112e-05 | M28: 1 | N28: 0.0214570943 | O28: 1
A29: Clust20_18 | B29: SignalingPathways | C29: 1498 | D29: 85 | E29: 51 | F29: 10.77313054 | G29: 5.437100213 | H29: 3.032385583e-05 | I29: 2.099023057 | J29: 1.444198493 | K29: 3.075671163 | L29: 4.331979404e-05 | M29: 1 | N29: 0.01408571014 | O29: 1
A30: Clust15_19 | B30: KinaseRegPhosphoryl | C30: 983 | D30: 61 | E30: 31 | F30: 7.73130545 | G30: 3.304904051 | H30: 3.445492158e-05 | I30: 2.450321907 | J30: 1.546440941 | K30: 3.951461483 | L30: 4.752402976e-05 | M30: 1 | N30: 0.04407934143 | O30: 1
A31: Clust20_20 | B31: Mapk | C31: 543 | D31: 35 | E31: 12 | F31: 4.43599493 | G31: 1.279317697 | H31: 4.701111986e-05 | I31: 3.57950868 | J31: 1.799093026 | K31: 7.630626752 | L31: 6.268149314e-05 | M31: 1 | N31: 0.07680044039 | O31: 1
A32: Clust20_19 | B32: KinaseRegPhosphoryl | C32: 1387 | D32: 88 | E32: 55 | F32: 11.15335868 | G32: 5.863539446 | H32: 5.153437884e-05 | I32: 2.014610057 | J32: 1.400323172 | K32: 2.91894596 | L32: 6.64959727e-05 | M32: 1 | N32: 0.05707868441 | O32: 1
A33: Clust20_14 | B33: CytoskeletonOrg | C33: 721 | D33: 65 | E33: 36 | F33: 8.238276299 | G33: 3.837953092 | H33: 7.801628505e-05 | I33: 2.24842875 | J33: 1.455224429 | K33: 3.521459685 | L33: 9.752035631e-05 | M33: 1 | N33: 0.04240108556 | O33: 1
A34: Clust15_17 | B34: CholinergicSynapse | C34: 112 | D34: 17 | E34: 2 | F34: 2.154626109 | G34: 0.2132196162 | H34: 8.434849077e-05 | I34: 10.29482243 | J34: 2.431959548 | K34: 92.16197697 | L34: 9.923351855e-05 | M34: 1 | N34: 0.1019603986 | O34: 1
A35: Clust20_17 | B35: CholinergicSynapse | C35: 112 | D35: 17 | E35: 2 | F35: 2.154626109 | G35: 0.2132196162 | H35: 8.434849077e-05 | I35: 10.29482243 | J35: 2.431959548 | K35: 92.16197697 | L35: 9.923351855e-05 | M35: 1 | N35: 0.1019603986 | O35: 1
A36: Clust20_22 | B36: InsulinPathway | C36: 206 | D36: 19 | E36: 3 | F36: 2.408111534 | G36: 0.3198294243 | H36: 8.802747469e-05 | I36: 7.682696458 | J36: 2.24931198 | K36: 40.69931735 | L36: 0.0001006028282 | M36: 1 | N36: 0.1590775244 | O36: 1
A37: Clust20_21 | B37: NeurotrophinSignaling | C37: 120 | D37: 14 | E37: 1 | F37: 1.774397972 | G37: 0.1066098081 | H37: 0.0001404022978 | I37: 16.91343099 | J37: 2.561494771 | K37: 714.1194899 | L37: 0.0001560025531 | M37: -1 | N37: 0.9293035302 | O37: 1
A38: Clust20_12 | B38: SH3domainBinding | C38: 118 | D38: 16 | E38: 2 | F38: 2.027883397 | G38: 0.2132196162 | H38: 0.0001677654669 | I38: 9.676824022 | J38: 2.263949942 | K38: 87.11135897 | L38: 0.0001813680723 | M38: 1 | N38: 0.01101593482 | O38: 1
A39: Clust15_1 | B39: Endocytosis_MembraneOrg | C39: 202 | D39: 23 | E39: 6 | F39: 2.915082383 | G39: 0.6396588486 | H39: 0.0002046316693 | I39: 4.660701763 | J39: 1.832700707 | K39: 14.06533733 | L39: 0.0002154017572 | M39: 1 | N39: 0.06291318525 | O39: 1
A40: Clust20_25 | B40: GlycosylTransferase | C40: 262 | D40: 53 | E40: 30 | F40: 6.717363752 | G40: 3.198294243 | H40: 0.0004944406223 | I40: 2.178569148 | J40: 1.350957529 | K40: 3.570790135 | L40: 0.000507118587 | M40: 1 | N40: 0.01846730571 | O40: 1
A41: Clust20_24 | B41: Peptidase | C41: 572 | D41: 74 | E41: 50 | F41: 9.37896071 | G41: 5.330490405 | H41: 0.0008203270137 | I41: 1.83741517 | J41: 1.248099007 | K41: 2.723587179 | L41: 0.0008203270137 | M41: 1 | N41: 0.03773728626 | O41: 1

Sheet Table S12D. Enr_MPO_exonicDEL
A1: GsID | B1: GsName (parent terms are in italic) | C1: GsSize | D1: Case_N | E1: Ctrl_N | F1: Case_% | G1: Ctrl_% | H1: FET_pv | I1: FET_OR | J1: FET_OR_confLow | K1: FET_OR_confHigh | L1: FET2s_OR | M1: FET2s_OR_confLow | N1: FET2s_OR_confHigh | O1: FET_BHFDR | P1: LRM_GsN_Sign | Q1: LRM_GsN_Pv | R1: LRM_Convg | S1: LRM_GsN_BHFDR
A2: MP:0003631 | B2: nervous system phenotype | C2: 1969 | D2: 142 | E2: 83 | F2: 17.99746515 | G2: 8.848614072 | H2: 1.380672003e-08 | I2: 2.259791253 | J2: 1.756232297 | K2: Inf | L2: 2.259791253 | M2: 1.677695139 | N2: 3.058729616 | O2: 4.060556361e-05 | P2: 1 | Q2: 1.777792093e-05 | R2: 1 | S2: 0.008462290364
A3: MP:0003632 | B3: abnormal nervous system morphology | C3: 1526 | D3: 112 | E3: 60 | F3: 14.19518378 | G3: 6.396588486 | H3: 5.268701297e-08 | I3: 2.419648584 | J3: 1.814638495 | K3: Inf | L3: 2.419648584 | M3: 1.723276227 | N3: 3.424194092 | O3: 5.950608296e-05 | P3: 1 | Q3: 0.0001251883384 | R3: 1 | S3: 0.02979482453
A4: MP:0003633 | B4: abnormal nervous system physiology | C4: 1177 | D4: 115 | E4: 65 | F4: 14.57541191 | G4: 6.929637527 | H4: 1.665339823e-07 | I4: 2.290511726 | J4: 1.731404375 | K4: Inf | L4: 2.290511726 | M4: 1.646207726 | N4: 3.208442281 | O4: 9.79552884e-05 | P4: 1 | Q4: 0.0003263251238 | R4: 1 | S4: 0.05177691965
A5: MP:0004924 | B5: abnormal behavior | C5: 1640 | D5: 134 | E5: 80 | F5: 16.98352345 | G5: 8.528784648 | H5: 8.093312881e-08 | I5: 2.193134735 | J5: 1.695751283 | K5: Inf | L5: 2.193134735 | M5: 1.618441787 | N5: 2.986562417 | O5: 5.950608296e-05 | P5: 1 | Q5: 0.0007160833978 | R5: 1 | S5: 0.06817113947
A6: MP:0005386 | B6: behavior/neurological phenotype | C6: 1640 | D6: 134 | E6: 80 | F6: 16.98352345 | G6: 8.528784648 | H6: 8.093312881e-08 | I6: 2.193134735 | J6: 1.695751283 | K6: Inf | L6: 2.193134735 | M6: 1.618441787 | N6: 2.986562417 | O6: 5.950608296e-05 | P6: 1 | Q6: 0.0007160833978 | R6: 1 | S6: 0.06817113947
A7: MP:0002152 | B7: abnormal brain morphology | C7: 909 | D7: 69 | E7: 35 | F7: 8.745247148 | G7: 3.731343284 | H7: 9.784497752e-06 | I7: 2.471228473 | J7: 1.709174298 | K7: Inf | L7: 2.471228473 | M7: 1.601624232 | N7: 3.872640385 | O7: 0.001516320144 | P7: 1 | Q7: 0.001038434275 | R7: 1 | S7: 0.07035830239
A8: MP:0010769 | B8: abnormal survival | C8: 2647 | D8: 130 | E8: 89 | F8: 16.4765526 | G8: 9.488272921 | H8: 9.796015894e-06 | I8: 1.881144551 | J8: 1.462931035 | K8: Inf | L8: 1.881144551 | M8: 1.397405872 | N8: 2.540941566 | O8: 0.001516320144 | P8: 1 | Q8: 0.00115337153 | R8: 1 | S8: 0.07035830239
A9: MP:0000787 | B9: abnormal telencephalon morphology | C9: 412 | D9: 45 | E9: 15 | F9: 5.703422053 | G9: 1.599147122 | H9: 2.591952667e-06 | I9: 3.719101057 | J9: 2.200334152 | K9: Inf | L9: 3.719101057 | M9: 2.015661307 | N9: 7.242335329 | O9: 0.0008469925326 | P9: 1 | Q9: 0.001197876397 | R9: 1 | S9: 0.07035830239
A10: MP:0002882 | B10: abnormal neuron morphology | C10: 837 | D10: 82 | E10: 40 | F10: 10.39290241 | G10: 4.264392324 | H10: 5.57555115e-07 | I10: 2.602399984 | J10: 1.846545484 | K10: Inf | L10: 2.602399984 | M10: 1.737770233 | N10: 3.95096332 | O10: 0.0002732949322 | P10: 1 | Q10: 0.001330304037 | R10: 1 | S10: 0.07035830239
A11: MP:0000783 | B11: abnormal forebrain morphology | C11: 532 | D11: 52 | E11: 24 | F11: 6.590621039 | G11: 2.558635394 | H11: 3.665808965e-05 | I11: 2.685521448 | J11: 1.734564247 | K11: Inf | L11: 2.685521448 | M11: 1.608236269 | N11: 4.601254234 | O11: 0.003717635919 | P11: 1 | Q11: 0.003071984046 | R11: 1 | S11: 0.1462264406
A12: MP:0010770 | B12: preweaning lethality | C12: 2298 | D12: 113 | E12: 72 | F12: 14.32192649 | G12: 7.675906183 | H12: 6.296022781e-06 | I12: 2.009767053 | J12: 1.529673939 | K12: Inf | L12: 2.009767053 | M12: 1.455900077 | N12: 2.788256384 | O12: 0.001424354077 | P12: 1 | Q12: 0.003458326249 | R12: 1 | S12: 0.1496512086
A13: MP:0005388 | B13: respiratory system phenotype | C13: 717 | D13: 53 | E13: 22 | F13: 6.717363752 | G13: 2.345415778 | H13: 6.916984573e-06 | I13: 2.996427165 | J13: 1.913913932 | K13: Inf | L13: 2.996427165 | M13: 1.772122491 | N13: 5.224950894 | O13: 0.001441765944 | P13: 1 | Q13: 0.004510607914 | R13: 1 | S13: 0.1684427793
A14: MP:0006042 | B14: increased apoptosis | C14: 358 | D14: 55 | E14: 25 | F14: 6.970849176 | G14: 2.665245203 | H14: 1.726201271e-05 | I14: 2.734958672 | J14: 1.784243682 | K14: Inf | L14: 2.734958672 | M14: 1.657097292 | N14: 4.627473369 | O14: 0.002115315807 | P14: 1 | Q14: 0.004600328005 | R14: 1 | S14: 0.1684427793
A15: MP:0001544 | B15: abnormal cardiovascular system physiology | C15: 870 | D15: 63 | E15: 29 | F15: 7.984790875 | G15: 3.091684435 | H15: 4.959862392e-06 | I15: 2.718466592 | J15: 1.826619426 | K15: Inf | L15: 2.718466592 | M15: 1.704298218 | N15: 4.427251197 | O15: 0.001326086845 | P15: 1 | Q15: 0.007294278071 | R15: 1 | S15: 0.2437786222
A16: MP:0011086 | B16: partial postnatal lethality | C16: 427 | D16: 27 | E16: 4 | F16: 3.422053232 | G16: 0.4264392324 | H16: 1.670829158e-06 | I16: 8.265068306 | J16: 3.270454115 | K16: Inf | L16: 8.265068306 | M16: 2.862201253 | N16: 32.63517899 | O16: 0.0006142385694 | P16: 1 | Q16: 0.008388821002 | R16: 1 | S16: 0.2437786222
A17: MP:0008540 | B17: abnormal cerebrum morphology | C17: 296 | D17: 36 | E17: 14 | F17: 4.562737643 | G17: 1.492537313 | H17: 0.0001208547819 | I17: 3.153367655 | J17: 1.805885915 | K17: Inf | L17: 3.153367655 | M17: 1.64524755 | N17: 6.378391284 | O17: 0.0071218092 | P17: 1 | Q17: 0.008934989405 | R17: 1 | S17: 0.2437786222
A18: MP:0000913 | B18: abnormal brain development | C18: 423 | D18: 31 | E18: 10 | F18: 3.929024081 | G18: 1.066098081 | H18: 7.974703505e-05 | I18: 3.792510944 | J18: 1.995328889 | K18: Inf | L18: 3.792510944 | M18: 1.797739059 | N18: 8.730653058 | O18: 0.006036976578 | P18: 1 | Q18: 0.009116090522 | R18: 1 | S18: 0.2437786222
A19: MP:0005378 | B19: growth/size phenotype | C19: 2143 | D19: 151 | E19: 120 | F19: 19.13814956 | G19: 12.79317697 | H19: 0.0002010628585 | I19: 1.612862506 | J19: 1.284877473 | K19: Inf | L19: 1.612862506 | M19: 1.232435692 | N19: 2.114311714 | O19: 0.009855431116 | P19: 1 | Q19: 0.00959227503 | R19: 1 | S19: 0.2437786222
A20: MP:0003861 | B20: abnormal nervous system development | C20: 693 | D20: 51 | E20: 21 | F20: 6.463878327 | G20: 2.23880597 | H20: 9.356324237e-06 | I20: 3.015751156 | J20: 1.907162787 | K20: Inf | L20: 3.015751156 | M20: 1.763237975 | N20: 5.329260023 | O20: 0.001516320144 | P20: 1 | Q20: 0.01024106325 | R20: 1 | S20: 0.2437786222
A21: MP:0010768 | B21: mortality/aging | C21: 2871 | D21: 150 | E21: 124 | F21: 19.01140684 | G21: 13.2196162 | H21: 0.0006637924707 | I21: 1.540546004 | J21: 1.228961999 | K21: Inf | L21: 1.540546004 | M21: 1.179015675 | N21: 2.015570161 | O21: 0.02076823039 | P21: 1 | Q21: 0.01072813406 | R21: 1 | S21: 0.2437786222
A22: MP:0001921 | B22: reduced fertility | C22: 379 | D22: 46 | E22: 28 | F22: 5.830164766 | G22: 2.985074627 | H22: 0.002657757969 | I22: 2.011322797 | J22: 1.312108544 | K22: Inf | L22: 2.011322797 | M22: 1.217225927 | N22: 3.376732572 | O22: 0.04597921286 | P22: 1 | Q22: 0.01249230096 | R22: 1 | S22: 0.2437786222
A23: MP:0005621 | B23: abnormal cell physiology | C23: 2040 | D23: 149 | E23: 116 | F23: 18.88466413 | G23: 12.36673774 | H23: 0.0001210780211 | I23: 1.649237663 | J23: 1.310781187 | K23: Inf | L23: 1.649237663 | M23: 1.256687748 | N23: 2.168368373 | O23: 0.0071218092 | P23: 1 | Q23: 0.01299483576 | R23: 1 | S23: 0.2437786222
A24: MP:0002444 | B24: abnormal T cell physiology | C24: 399 | D24: 38 | E24: 11 | F24: 4.816223067 | G24: 1.172707889 | H24: 4.060075482e-06 | I24: 4.260829654 | J24: 2.334120197 | K24: Inf | L24: 4.260829654 | M24: 2.116437554 | N24: 9.309332073 | O24: 0.001194068199 | P24: 1 | Q24: 0.01312406155 | R24: 1 | S24: 0.2437786222
A25: MP:0001648 | B25: abnormal apoptosis | C25: 652 | D25: 69 | E25: 36 | F25: 8.745247148 | G25: 3.837953092 | H25: 1.617423423e-05 | I25: 2.399962359 | J25: 1.665104265 | K25: Inf | L25: 2.399962359 | M25: 1.561094116 | N25: 3.743760429 | O25: 0.002079493737 | P25: 1 | Q25: 0.01323258805 | R25: 1 | S25: 0.2437786222
A26: MP:0005384 | B26: cellular phenotype | C26: 2126 | D26: 149 | E26: 117 | F26: 18.88466413 | G26: 12.47334755 | H26: 0.0001568724003 | I26: 1.633162206 | J26: 1.298595635 | K26: Inf | L26: 1.633162206 | M26: 1.245113421 | N26: 2.145953744 | O26: 0.008704938289 | P26: 1 | Q26: 0.0138953956 | R26: 1 | S26: 0.2437786222
A27: MP:0001265 | B27: decreased body size | C27: 1267 | D27: 110 | E27: 76 | F27: 13.94169835 | G27: 8.102345416 | H27: 6.777472689e-05 | I27: 1.836765324 | J27: 1.401541856 | K27: Inf | L27: 1.836765324 | M27: 1.334386946 | N27: 2.538619042 | O27: 0.006036976578 | P27: 1 | Q27: 0.01423091577 | R27: 1 | S27: 0.2437786222
A28: MP:0000313 | B28: abnormal cell death | C28: 778 | D28: 73 | E28: 40 | F28: 9.252217997 | G28: 4.264392324 | H28: 2.241899284e-05 | I28: 2.287819686 | J28: 1.611523831 | K28: Inf | L28: 2.287819686 | M28: 1.51442002 | N28: 3.49839129 | O28: 0.002435791033 | P28: 1 | Q28: 0.01423315166 | R28: 1 | S28: 0.2437786222
A29: MP:0002106 | B29: abnormal muscle physiology | C29: 495 | D29: 43 | E29: 13 | F29: 5.449936629 | G29: 1.385927505 | H29: 1.459518957e-06 | I29: 4.098243202 | J29: 2.349586586 | K29: Inf | L29: 4.098243202 | M29: 2.143729766 | N29: 8.369982018 | O29: 0.0006132064648 | P29: 1 | Q29: 0.01433991895 | R29: 1 | S29: 0.2437786222
A30: MP:0002064 | B30: seizures | C30: 236 | D30: 28 | E30: 6 | F30: 3.548795944 | G30: 0.6396588486 | H30: 1.032110826e-05 | I30: 5.709528099 | J30: 2.598600632 | K30: Inf | L30: 5.709528099 | M30: 2.304072959 | N30: 16.95387171 | O30: 0.00151771897 | P30: 1 | Q30: 0.0155258241 | R30: 1 | S30: 0.2548376646
A31: MP:0005013 | B31: increased lymphocyte cell number | C31: 308 | D31: 29 | E31: 7 | F31: 3.675538657 | G31: 0.7462686567 | H31: 1.626261678e-05 | I31: 5.071413481 | J31: 2.421584233 | K31: Inf | L31: 5.071413481 | M31: 2.158268479 | N31: 13.79267705 | O31: 0.002079493737 | P31: 1 | Q31: 0.01661322472 | R31: 1 | S31: 0.2635964988
A32: MP:0002145 | B32: abnormal T cell differentiation | C32: 366 | D32: 35 | E32: 10 | F32: 4.43599493 | G32: 1.066098081 | H32: 8.911732548e-06 | I32: 4.304342929 | J32: 2.291097242 | K32: Inf | L32: 4.304342929 | M32: 2.069289786 | N32: 9.812206028 | O32: 0.001516320144 | P32: 1 | Q32: 0.01878671163 | R32: 1 | S32: 0.2884669269
A33: MP:0003091 | B33: abnormal cell migration | C33: 284 | D33: 19 | E33: 2 | F33: 2.408111534 | G33: 0.2132196162 | H33: 2.095174426e-05 | I33: 11.53561205 | J33: 3.26033038 | K33: Inf | L33: 11.53561205 | M33: 2.769170709 | N33: 102.4871692 | O33: 0.00236996461 | P33: 1 | Q33: 0.02032594991 | R33: 1 | S33: 0.3006036673
A34: MP:0009357 | B34: abnormal seizure response to inducing agent | C34: 125 | D34: 19 | E34: 2 | F34: 2.408111534 | G34: 0.2132196162 | H34: 2.095174426e-05 | I34: 11.53561205 | J34: 3.26033038 | K34: Inf | L34: 11.53561205 | M34: 2.769170709 | N34: 102.4871692 | O34: 0.00236996461 | P34: 1 | Q34: 0.02084017021 | R34: 1 | S34: 0.3006036673
A35: MP:0002063 | B35: abnormal learning/memory/conditioning | C35: 361 | D35: 59 | E35: 31 | F35: 7.477820025 | G35: 3.304904051 | H35: 7.748864936e-05 | I35: 2.363539086 | J35: 1.593678441 | K35: Inf | L35: 2.363539086 | M35: 1.487241046 | N35: 3.820584863 | O35: 0.006036976578 | P35: 1 | Q35: 0.02246834931 | R35: 1 | S35: 0.3145568903
A36: MP:0002133 | B36: abnormal respiratory system physiology | C36: 507 | D36: 41 | E36: 17 | F36: 5.196451204 | G36: 1.812366738 | H36: 8.005511273e-05 | I36: 2.967762115 | J36: 1.781214177 | K36: Inf | L36: 2.967762115 | M36: 1.633573655 | N36: 5.620156086 | O36: 0.006036976578 | P36: 1 | Q36: 0.02337059059 | R36: 1 | S36: 0.3178400321
A37: MP:0010771 | B37: integument phenotype | C37: 962 | D37: 69 | E37: 49 | F37: 8.745247148 | G37: 5.223880597 | H37: 0.002643733529 | I37: 1.738100708 | J37: 1.243759013 | K37: Inf | L37: 1.738100708 | M37: 1.171189158 | N37: 2.595734999 | O37: 0.04597921286 | P37: 1 | Q37: 0.02601861737 | R37: 1 | S37: 0.3328130955
A38: MP:0002557 | B38: abnormal social/conspecific interaction | C38: 201 | D38: 24 | E38: 6 | F38: 3.041825095 | G38: 0.6396588486 | H38: 0.000114307728 | I38: 4.869762393 | J38: 2.180139912 | K38: Inf | L38: 4.869762393 | M38: 1.926252437 | N38: 14.64107878 | O38: 0.007003729753 | P38: 1 | Q38: 0.02719665214 | R38: 1 | S38: 0.3328130955
A39: MP:0001672 | B39: abnormal embryogenesis/ development | C39: 1118 | D39: 64 | E39: 36 | F39: 8.111533587 | G39: 3.837953092 | H39: 0.0001140019475 | I39: 2.21080597 | J39: 1.525789544 | K39: Inf | L39: 2.21080597 | M39: 1.428979718 | N39: 3.466087724 | O39: 0.007003729753 | P39: 1 | Q39: 0.02753446551 | R39: 1 | S39: 0.3328130955
A40: MP:0005380 | B40: embryogenesis phenotype | C40: 1118 | D40: 64 | E40: 36 | F40: 8.111533587 | G40: 3.837953092 | H40: 0.0001140019475 | I40: 2.21080597 | J40: 1.525789544 | K40: Inf | L40: 2.21080597 | M40: 1.428979718 | N40: 3.466087724 | O40: 0.007003729753 | P40: 1 | Q40: 0.02753446551 | R40: 1 | S40: 0.3328130955
A41: MP:0000266 | B41: abnormal heart morphology | C41: 700 | D41: 52 | E41: 21 | F41: 6.590621039 | G41: 2.23880597 | H41: 5.805599452e-06 | I41: 3.0790227 | J41: 1.950088461 | K41: Inf | L41: 3.0790227 | M41: 1.803504588 | N41: 5.433552704 | O41: 0.001422855666 | P41: 1 | Q41: 0.02796748702 | R41: 1 | S41: 0.3328130955
A42: MP:0002089 | B42: abnormal postnatal growth/weight/body size | C42: 1598 | D42: 124 | E42: 95 | F42: 15.71609632 | G42: 10.12793177 | H42: 0.0003395724408 | I42: 1.65412084 | J42: 1.288649181 | K42: Inf | L42: 1.65412084 | M42: 1.231207386 | N42: 2.227834328 | O42: 0.01300088138 | P42: 1 | Q42: 0.03274698834 | R42: 1 | S42: 0.3753528868
A43: MP:0011096 | B43: complete embryonic lethality between implantation and somite formation | C43: 222 | D43: 23 | E43: 5 | F43: 2.915082383 | G43: 0.5330490405 | H43: 7.411845326e-05 | I43: 5.59729865 | J43: 2.35586631 | K43: Inf | L43: 5.59729865 | M43: 2.068561262 | N43: 18.93942026 | O43: 0.006036976578 | P43: 1 | Q43: 0.03311937237 | R43: 1 | S43: 0.3753528868
A44: MP:0002752 | B44: abnormal somatic nervous system morphology | C44: 528 | D44: 47 | E44: 22 | F44: 5.956907478 | G44: 2.345415778 | H44: 0.0001055010635 | I44: 2.635901928 | J44: 1.667515502 | K44: Inf | L44: 2.635901928 | M44: 1.540979733 | N44: 4.636971531 | O44: 0.007003729753 | P44: 1 | Q44: 0.0345956179 | R44: 1 | S44: 0.3829654447
A45: MP:0010832 | B45: lethality during fetal growth through weaning | C45: 1359 | D45: 71 | E45: 42 | F45: 8.998732573 | G45: 4.47761194 | H45: 0.0001137145654 | I45: 2.108673034 | J45: 1.490000721 | K45: Inf | L45: 2.108673034 | M45: 1.400688353 | N45: 3.20818538 | O45: 0.007003729753 | P45: 1 | Q45: 0.03763841385 | R45: 1 | S45: 0.4071792044
A46: MP:0011181 | B46: increased hematopoietic cell number | C46: 524 | D46: 34 | E46: 12 | F46: 4.309252218 | G46: 1.279317697 | H46: 7.873330842e-05 | I46: 3.472680541 | J46: 1.918409635 | K46: Inf | L46: 3.472680541 | M46: 1.739487323 | N46: 7.417356141 | O46: 0.006036976578 | P46: 1 | Q46: 0.04262959149 | R46: 1 | S46: 0.4451216105
A47: MP:0005584 | B47: abnormal enzyme/coenzyme activity | C47: 101 | D47: 11 | E47: 1 | F47: 1.394169835 | G47: 0.1066098081 | H47: 0.001221726484 | I47: 13.23144125 | J47: 2.34115381 | K47: Inf | L47: 13.23144125 | M47: 1.915802889 | N47: 569.3478515 | O47: 0.03071023582 | P47: 1 | Q47: 0.04415970275 | R47: 1 | S47: 0.4451216105
A48: MP:0006205 | B48: embryonic lethality between implantation and somite formation | C48: 243 | D48: 23 | E48: 6 | F48: 2.915082383 | G48: 0.6396588486 | H48: 0.0002046316693 | I48: 4.660701763 | J48: 2.076422212 | K48: Inf | L48: 4.660701763 | M48: 1.832700707 | N48: 14.06533733 | O48: 0.009865930157 | P48: 1 | Q48: 0.04535029749 | R48: 1 | S48: 0.4451216105
A49: MP:0009850 | B49: embryonic lethality between implantation and placentation | C49: 331 | D49: 27 | E49: 8 | F49: 3.422053232 | G49: 0.8528784648 | H49: 0.0001310775512 | I49: 4.115982572 | J49: 2.022074433 | K49: Inf | L49: 4.115982572 | M49: 1.805828169 | N49: 10.54770071 | O49: 0.007558805454 | P49: 1 | Q49: 0.04595925476 | R49: 1 | S49: 0.4451216105
A50: MP:0001634 | B50: internal hemorrhage | C50: 189 | D50: 16 | E50: 3 | F50: 2.027883397 | G50: 0.3198294243 | H50: 0.0006126560062 | I50: 6.444693807 | J50: 2.144199173 | K50: Inf | L50: 6.444693807 | M50: 1.835179708 | N50: 34.62358913 | O50: 0.02015751725 | P50: 1 | Q50: 0.04618918696 | R50: 1 | S50: 0.4451216105
A51: MP:0005385 | B51: cardiovascular system phenotype | C51: 1363 | D51: 81 | E51: 50 | F51: 10.2661597 | G51: 5.330490405 | H51: 8.308139394e-05 | I51: 2.031051815 | J51: 1.47200909 | K51: Inf | L51: 2.031051815 | M51: 1.389516985 | N51: 2.992915281 | O51: 0.006050461253 | P51: 1 | Q51: 0.04730397675 | R51: 1 | S51: 0.4451216105
A52: MP:0002080 | B52: prenatal lethality | C52: 1369 | D52: 69 | E52: 43 | F52: 8.745247148 | G52: 4.584221748 | H52: 0.0003403834976 | I52: 1.993896122 | J52: 1.409363086 | K52: Inf | L52: 1.993896122 | M52: 1.324798089 | N52: 3.029406123 | O52: 0.01300088138 | P52: 1 | Q52: 0.04769160113 | R52: 1 | S52: 0.4451216105
A53: MP:0000952 | B53: abnormal CNS glial cell morphology | C53: 135 | D53: 22 | E53: 9 | F53: 2.78833967 | G53: 0.9594882729 | H53: 0.003661965596 | I53: 2.958955615 | J53: 1.45923289 | K53: Inf | L53: 2.958955615 | M53: 1.30016157 | N53: 7.345197912 | O53: 0.05831411908 | P53: 1 | Q53: 0.04878702023 | R53: 1 | S53: 0.4465888775
A54: MP:0001914 | B54: hemorrhage | C54: 333 | D54: 20 | E54: 6 | F54: 2.534854246 | G54: 0.6396588486 | H54: 0.001112849209 | I54: 4.036870825 | J54: 1.766977597 | K54: Inf | L54: 4.036870825 | M54: 1.553674618 | N54: 12.34748337 | O54: 0.02922222789 | P54: 1 | Q54: 0.05033536073 | R54: 1 | S54: 0.4487238243
A55: MP:0003634 | B55: abnormal glial cell morphology | C55: 186 | D55: 28 | E55: 14 | F55: 3.548795944 | G55: 1.492537313 | H55: 0.004521588611 | I55: 2.427171009 | J55: 1.352749006 | K55: Inf | L55: 2.427171009 | M55: 1.225452345 | N55: 5.026315115 | O55: 0.06195549514 | P55: 1 | Q55: 0.05125280745 | R55: 1 | S55: 0.4487238243
A56: MP:0003635 | B56: abnormal synaptic transmission | C56: 389 | D56: 60 | E56: 37 | F56: 7.604562738 | G56: 3.9445629 | H56: 0.0007271087462 | I56: 2.003443085 | J56: 1.380153882 | K56: Inf | L56: 2.003443085 | M56: 1.291791256 | N56: 3.142503737 | O56: 0.02204563735 | P56: 1 | Q56: 0.05413719009 | R56: 1 | S56: 0.4487238243
A57: MP:0000788 | B57: abnormal cerebral cortex morphology | C57: 165 | D57: 20 | E57: 5 | F57: 2.534854246 | G57: 0.5330490405 | H57: 0.0004474304969 | I57: 4.849684705 | J57: 2.006500138 | K57: Inf | L57: 4.849684705 | M57: 1.755255756 | N57: 16.61237298 | O57: 0.01585413363 | P57: 1 | Q57: 0.05603531181 | R57: 1 | S57: 0.4487238243
A58: MP:0002060 | B58: abnormal skin morphology | C58: 500 | D58: 37 | E58: 18 | F58: 4.689480355 | G58: 1.918976546 | H58: 0.0008575666197 | I58: 2.513468792 | J58: 1.508216627 | K58: Inf | L58: 2.513468792 | M58: 1.382060615 | N58: 4.730916129 | O58: 0.02368319232 | P58: 1 | Q58: 0.05604454137 | R58: 1 | S58: 0.4487238243
A59: MP:0003723 | B59: abnormal long bone morphology | C59: 281 | D59: 19 | E59: 4 | F59: 2.408111534 | G59: 0.4264392324 | H59: 0.0002903365326 | I59: 5.756010241 | J59: 2.191838884 | K59: Inf | L59: 5.756010241 | M59: 1.902099704 | N59: 23.36551762 | O59: 0.01154031443 | P59: 1 | Q59: 0.05693466641 | R59: 1 | S59: 0.4487238243
A60: MP:0000841 | B60: abnormal hindbrain morphology | C60: 255 | D60: 27 | E60: 13 | F60: 3.422053232 | G60: 1.385927505 | H60: 0.004060899162 | I60: 2.519889171 | J60: 1.379052232 | K60: Inf | L60: 2.519889171 | M60: 1.246130238 | N60: 5.357749894 | O60: 0.05831411908 | P60: 1 | Q60: 0.05710395654 | R60: 1 | S60: 0.4487238243
A61: MP:0003956 | B61: abnormal body size | C61: 1455 | D61: 121 | E61: 93 | F61: 15.33586819 | G61: 9.914712154 | H61: 0.0004391703741 | I61: 1.645308749 | J61: 1.278511588 | K61: Inf | L61: 1.645308749 | M61: 1.220996338 | N61: 2.222694826 | O61: 0.01585413363 | P61: 1 | Q61: 0.05924287908 | R61: 1 | S61: 0.4487238243
A62: MP:0001392 | B62: abnormal locomotor behavior | C62: 735 | D62: 82 | E62: 53 | F62: 10.39290241 | G62: 5.650319829 | H62: 0.0001827914671 | I62: 1.935980183 | J62: 1.411508076 | K62: Inf | L62: 1.935980183 | M62: 1.333646321 | N62: 2.830065107 | O62: 0.009482269381 | P62: 1 | Q62: 0.05984754729 | R62: 1 | S62: 0.4487238243
A63: MP:0002398 | B63: abnormal bone marrow cell morphology/development | C63: 736 | D63: 51 | E63: 29 | F63: 6.463878327 | G63: 3.091684435 | H63: 0.0006709158668 | I63: 2.165160159 | J63: 1.431508669 | K63: Inf | L63: 2.165160159 | M63: 1.331208298 | N63: 3.58129262 | O63: 0.02077014278 | P63: 1 | Q63: 0.06000488873 | R63: 1 | S63: 0.4487238243
A64: MP:0005015 | B64: increased T cell number | C64: 203 | D64: 26 | E64: 5 | F64: 3.29531052 | G64: 0.5330490405 | H64: 1.147287311e-05 | I64: 6.35219202 | J64: 2.708894994 | K64: Inf | L64: 6.35219202 | M64: 2.3851222 | N64: 21.28552725 | O64: 0.001606748563 | P64: 1 | Q64: 0.06016246945 | R64: 1 | S64: 0.4487238243
A65: MP:0002206 | B65: abnormal CNS synaptic transmission | C65: 328 | D65: 50 | E65: 28 | F65: 6.337135615 | G65: 2.985074627 | H65: 0.0006270649762 | I65: 2.197938179 | J65: 1.44437098 | K65: Inf | L65: 2.197938179 | M65: 1.342003701 | N65: 3.664699457 | O65: 0.02015751725 | P65: 1 | Q65: 0.06090321222 | R65: 1 | S65: 0.4487238243
A66: MP:0001574 | B66: abnormal oxygen level | C66: 171 | D66: 16 | E66: 6 | F66: 2.027883397 | G66: 0.6396588486 | H66: 0.009147720298 | I66: 3.213117275 | J66: 1.359921491 | K66: Inf | L66: 3.213117275 | M66: 1.187105432 | N66: 10.07576537 | O66: 0.09402945306 | P66: 1 | Q66: 0.06127531214 | R66: 1 | S66: 0.4487238243
A67: MP:0001731 | B67: abnormal postnatal growth | C67: 550 | D67: 37 | E67: 17 | F67: 4.689480355 | G67: 1.812366738 | H67: 0.0004939607524 | I67: 2.664129345 | J67: 1.583649644 | K67: Inf | L67: 2.664129345 | M67: 1.449498189 | N67: 5.087618517 | O67: 0.01714706734 | P67: 1 | Q67: 0.06297398141 | R67: 1 | S67: 0.4541759871
A68: MP:0004738 | B68: abnormal brainstem auditory evoked potential | C68: 122 | D68: 15 | E68: 4 | F68: 1.901140684 | G68: 0.4264392324 | H68: 0.003165459763 | I68: 4.522012858 | J68: 1.663289788 | K68: Inf | L68: 4.522012858 | M68: 1.432651534 | N68: 18.78487652 | O68: 0.05309785134 | P68: 1 | Q68: 0.06530958024 | R68: 1 | S68: 0.454634812
A69: MP:0001730 | B69: embryonic growth arrest | C69: 189 | D69: 15 | E69: 4 | F69: 1.901140684 | G69: 0.4264392324 | H69: 0.003165459763 | I69: 4.522012858 | J69: 1.663289788 | K69: Inf | L69: 4.522012858 | M69: 1.432651534 | N69: 18.78487652 | O69: 0.05309785134 | P69: 1 | Q69: 0.0700702288 | R69: 1 | S69: 0.454634812
A70: MP:0001828 | B70: abnormal T cell activation | C70: 212 | D70: 20 | E70: 5 | F70: 2.534854246 | G70: 0.5330490405 | H70: 0.0004474304969 | I70: 4.849684705 | J70: 2.006500138 | K70: Inf | L70: 4.849684705 | M70: 1.755255756 | N70: 16.61237298 | O70: 0.01585413363 | P70: 1 | Q70: 0.07009428838 | R70: 1 | S70: 0.454634812
A71: MP:0000691 | B71: enlarged spleen | C71: 263 | D71: 24 | E71: 6 | F71: 3.041825095 | G71: 0.6396588486 | H71: 0.000114307728 | I71: 4.869762393 | J71: 2.180139912 | K71: Inf | L71: 4.869762393 | M71: 1.926252437 | N71: 14.64107878 | O71: 0.007003729753 | P71: 1 | Q71: 0.07164209339 | R71: 1 | S71: 0.454634812
A72: MP:0001923 | B72: reduced female fertility | C72: 181 | D72: 15 | E72: 5 | F72: 1.901140684 | G72: 0.5330490405 | H72: 0.007353373185 | I72: 3.61376549 | J72: 1.432466548 | K72: Inf | L72: 3.61376549 | M72: 1.24143419 | N72: 12.77203141 | O72: 0.08514279739 | P72: 1 | Q72: 0.0718465588 | R72: 1 | S72: 0.454634812
A73: MP:0006069 | B73: abnormal retinal neuronal layer morphology | C73: 175 | D73: 24 | E73: 14 | F73: 3.041825095 | G73: 1.492537313 | H73: 0.02165420973 | I73: 2.069741772 | J73: 1.130740786 | K73: Inf | L73: 2.069741772 | M73: 1.020059331 | N73: 4.35972937 | O73: 0.1519929137 | P73: 1 | Q73: 0.07327746305 | R73: 1 | S73: 0.454634812
A74: MP:0002429 | B74: abnormal blood cell morphology/development | C74: 1254 | D74: 72 | E74: 53 | F74: 9.125475285 | G74: 5.650319829 | H74: 0.003697783654 | I74: 1.676264225 | J74: 1.211432661 | K74: Inf | L74: 1.676264225 | M74: 1.142631338 | N74: 2.472282786 | O74: 0.05831411908 | P74: 1 | Q74: 0.07372161117 | R74: 1 | S74: 0.454634812
A75: MP:0001732 | B75: postnatal growth retardation | C75: 530 | D75: 36 | E75: 17 | F75: 4.562737643 | G75: 1.812366738 | H75: 0.000763244779 | I75: 2.588723476 | J75: 1.53460101 | K75: Inf | L75: 2.588723476 | M75: 1.403853648 | N75: 4.955903123 | O75: 0.02290513158 | P75: 1 | Q75: 0.07395012432 | R75: 1 | S75: 0.454634812
A76: MP:0002396 | B76: abnormal hematopoietic system morphology/development | C76: 1411 | D76: 76 | E76: 57 | F76: 9.632446134 | G76: 6.076759062 | H76: 0.003843852685 | I76: 1.646991045 | J76: 1.202121112 | K76: Inf | L76: 1.646991045 | M76: 1.135705293 | N76: 2.399567171 | O76: 0.05831411908 | P76: 1 | Q76: 0.07400710268 | R76: 1 | S76: 0.454634812
A77: MP:0003491 | B77: abnormal voluntary movement | C77: 787 | D77: 82 | E77: 54 | F77: 10.39290241 | G77: 5.756929638 | H77: 0.0002608218771 | I77: 1.89794377 | J77: 1.386097492 | K77: Inf | L77: 1.89794377 | M77: 1.309919086 | N77: 2.768062892 | O77: 0.01144891255 | P77: 1 | Q77: 0.07463198731 | R77: 1 | S77: 0.454634812
A78: MP:0001586 | B78: abnormal erythrocyte cell number | C78: 126 | D78: 9 | E78: 1 | F78: 1.140684411 | G78: 0.1066098081 | H78: 0.005001648961 | I78: 10.80014125 | J78: 1.838533235 | K78: Inf | L78: 10.80014125 | M78: 1.490954455 | N78: 473.342661 | O78: 0.06417111921 | P78: 1 | Q78: 0.07600438566 | R78: 1 | S78: 0.454634812
A79: MP:0008247 | B79: abnormal mononuclear cell morphology | C79: 878 | D79: 61 | E79: 40 | F79: 7.73130545 | G79: 4.264392324 | H79: 0.001578086368 | I79: 1.88039232 | J79: 1.307595037 | K79: Inf | L79: 1.88039232 | M79: 1.225642136 | N79: 2.912197758 | O79: 0.03773294317 | P79: 1 | Q79: 0.07689795171 | R79: 1 | S79: 0.454634812
A80: MP:0005377 | B80: hearing/vestibular/ear phenotype | C80: 343 | D80: 26 | E80: 11 | F80: 3.29531052 | G80: 1.172707889 | H80: 0.001987756917 | I80: 2.869991927 | J80: 1.511940874 | K80: Inf | L80: 2.869991927 | M80: 1.359774282 | N80: 6.47904155 | O80: 0.04059717425 | P80: 1 | Q80: 0.07751439078 | R80: 1 | S80: 0.454634812
A81: MP:0002875 | B81: decreased erythrocyte cell number | C81: 101 | D81: 8 | E81: 1 | F81: 1.013941698 | G81: 0.1066098081 | H81: 0.009987661938 | I81: 9.588043016 | J81: 1.589403482 | K81: Inf | L81: 9.588043016 | M81: 1.28084693 | N81: 425.4925745 | O81: 0.0979123792 | P81: 1 | Q81: 0.07858189232 | R81: 1 | S81: 0.454634812
A82: MP:0003762 | B82: abnormal immune organ physiology | C82: 110 | D82: 19 | E82: 4 | F82: 2.408111534 | G82: 0.4264392324 | H82: 0.0002903365326 | I82: 5.756010241 | J82: 2.191838884 | K82: Inf | L82: 5.756010241 | M82: 1.902099704 | N82: 23.36551762 | O82: 0.01154031443 | P82: 1 | Q82: 0.07887461315 | R82: 1 | S82: 0.454634812
A83: MP:0005391 | B83: vision/eye phenotype | C83: 746 | D83: 63 | E83: 37 | F83: 7.984790875 | G83: 3.9445629 | H83: 0.0002534969615 | I83: 2.112240498 | J83: 1.460437707 | K83: Inf | L83: 2.112240498 | M83: 1.368005604 | N83: 3.301727315 | O83: 0.01129597824 | P83: 1 | Q83: 0.07904167719 | R83: 1 | S83: 0.454634812
A84: MP:0000218 | B84: increased leukocyte cell number | C84: 453 | D84: 32 | E84: 12 | F84: 4.055766793 | G84: 1.279317697 | H84: 0.0002158180682 | I84: 3.259871837 | J84: 1.789945123 | K84: Inf | L84: 3.259871837 | M84: 1.620903399 | N84: 6.999337315 | O84: 0.01023743449 | P84: 1 | Q84: 0.08097153278 | R84: 1 | S84: 0.454634812
A85: MP:0000160 | B85: kyphosis | C85: 110 | D85: 21 | E85: 10 | F85: 2.661596958 | G85: 1.066098081 | H85: 0.01044799483 | I85: 2.536174713 | J85: 1.272390865 | K85: Inf | L85: 2.536174713 | M85: 1.134958992 | N85: 6.070028605 | O85: 0.1017468635 | P85: 1 | Q85: 0.08158870333 | R85: 1 | S85: 0.454634812
A86: MP:0001262 | B86: decreased body weight | C86: 952 | D86: 91 | E86: 71 | F86: 11.53358682 | G86: 7.569296375 | H86: 0.003196925738 | I86: 1.591553661 | J86: 1.195418761 | K86: Inf | L86: 1.591553661 | M86: 1.134869025 | N86: 2.239278849 | O86: 0.05309785134 | P86: 1 | Q86: 0.08208360282 | R86: 1 | S86: 0.454634812
A87: MP:0002123 | B87: abnormal hematopoiesis | C87: 1237 | D87: 71 | E87: 53 | F87: 8.998732573 | G87: 5.650319829 | H87: 0.004842376772 | I87: 1.650695752 | J87: 1.191790848 | K87: Inf | L87: 1.650695752 | M87: 1.123823078 | N87: 2.436842404 | O87: 0.06415058597 | P87: 1 | Q87: 0.08377231476 | R87: 1 | S87: 0.454634812
A88: MP:0008762 | B88: embryonic lethality | C88: 1042 | D88: 62 | E88: 37 | F88: 7.858048162 | G88: 3.9445629 | H88: 0.0003624124426 | I88: 2.07587522 | J88: 1.433551017 | K88: Inf | L88: 2.07587522 | M88: 1.342562103 | N88: 3.248056979 | O88: 0.01366480761 | P88: 1 | Q88: 0.0859798559 | R88: 1 | S88: 0.454634812
A89: MP:0000245 | B89: abnormal erythropoiesis | C89: 365 | D89: 27 | E89: 14 | F89: 3.422053232 | G89: 1.492537313 | H89: 0.006806579326 | I89: 2.337463761 | J89: 1.296967189 | K89: Inf | L89: 2.337463761 | M89: 1.173786243 | N89: 4.85893471 | O89: 0.08237921728 | P89: 1 | Q89: 0.08682708864 | R89: 1 | S89: 0.454634812
A90: MP:0001408 | B90: stereotypic behavior | C90: 117 | D90: 17 | E90: 5 | F90: 2.154626109 | G90: 0.5330490405 | H90: 0.002483992778 | I90: 4.106010291 | J90: 1.66069118 | K90: Inf | L90: 4.106010291 | M90: 1.445578692 | N90: 14.30020158 | O90: 0.04427528946 | P90: 1 | Q90: 0.09047337042 | R90: 1 | S90: 0.454634812
A91: MP:0001463 | B91: abnormal spatial learning | C91: 144 | D91: 31 | E91: 15 | F91: 3.929024081 | G91: 1.599147122 | H91: 0.00217633277 | I91: 2.515228241 | J91: 1.436272763 | K91: Inf | L91: 2.515228241 | M91: 1.30619076 | N91: 5.052915374 | O91: 0.04354146038 | P91: 1 | Q91: 0.091286266 | R91: 1 | S91: 0.454634812
A92: MP:0005094 | B92: abnormal T cell proliferation | C92: 198 | D92: 19 | E92: 5 | F92: 2.408111534 | G92: 0.5330490405 | H92: 0.0008004308028 | I92: 4.601145602 | J92: 1.890738325 | K92: Inf | L92: 4.601145602 | M92: 1.651574685 | N92: 15.839819 | O92: 0.02354066991 | P92: 1 | Q92: 0.09288586442 | R92: 1 | S92: 0.454634812
A93: MP:0003492 | B93: abnormal involuntary movement | C93: 391 | D93: 51 | E93: 33 | F93: 6.463878327 | G93: 3.518123667 | H93: 0.003268655546 | I93: 1.894439882 | J93: 1.271719902 | K93: Inf | L93: 1.894439882 | M93: 1.1851227 | N93: 3.064956053 | O93: 0.05311113791 | P93: 1 | Q93: 0.09344783691 | R93: 1 | S93: 0.454634812
A94: MP:0008946 | B94: abnormal neuron number | C94: 240 | D94: 30 | E94: 15 | F94: 3.802281369 | G94: 1.599147122 | H94: 0.003308737447 | I94: 2.430930357 | J94: 1.38294718 | K94: Inf | L94: 2.430930357 | M94: 1.25673705 | N94: 4.899804436 | O94: 0.05317484608 | P94: 1 | Q94: 0.09436184784 | R94: 1 | S94: 0.454634812
A95: MP:0001663 | B95: abnormal digestive system physiology | C95: 344 | D95: 19 | E95: 6 | F95: 2.408111534 | G95: 0.6396588486 | H95: 0.001918265105 | I95: 3.830133851 | J95: 1.664607388 | K95: Inf | L95: 3.830133851 | M95: 1.461485514 | N95: 11.78046201 | O95: 0.04031887328 | P95: 1 | Q95: 0.09502598506 | R95: 1 | S95: 0.454634812
A96: MP:0002066 | B96: abnormal motor capabilities/coordination/movement | C96: 1064 | D96: 95 | E96: 65 | F96: 12.04055767 | G96: 6.929637527 | H96: 0.0001847622614 | I96: 1.837818632 | J96: 1.374947165 | K96: Inf | L96: 1.837818632 | M96: 1.304683894 | N96: 2.601602023 | O96: 0.009482269381 | P96: 1 | Q96: 0.09504522178 | R96: 1 | S96: 0.454634812
A97: MP:0003945 | B97: abnormal lymphocyte physiology | C97: 644 | D97: 54 | E97: 35 | F97: 6.844106464 | G97: 3.731343284 | H97: 0.002537274904 | I97: 1.894777893 | J97: 1.286518903 | K97: Inf | L97: 1.894777893 | M97: 1.201155171 | N97: 3.022640218 | O97: 0.04495256321 | P97: 1 | Q97: 0.09520995806 | R97: 1 | S97: 0.454634812
A98: MP:0002407 | B98: abnormal double-negative T cell morphology | C98: 142 | D98: 24 | E98: 6 | F98: 3.041825095 | G98: 0.6396588486 | H98: 0.000114307728 | I98: 4.869762393 | J98: 2.180139912 | K98: Inf | L98: 4.869762393 | M98: 1.926252437 | N98: 14.64107878 | O98: 0.007003729753 | P98: 1 | Q98: 0.0957645757 | R98: 1 | S98: 0.454634812
A99: MP:0000367 | B99: abnormal coat/ hair morphology | C99: 297 | D99: 22 | E99: 10 | F99: 2.78833967 | G99: 1.066098081 | H99: 0.006734884493 | I99: 2.660341388 | J99: 1.343529976 | K99: Inf | L99: 2.660341388 | M99: 1.200122295 | N99: 6.333199026 | O99: 0.08184832766 | P99: 1 | Q99: 0.09639005173 | R99: 1 | S99: 0.454634812
A100: MP:0001510 | B100: abnormal coat appearance | C100: 289 | D100: 22 | E100: 10 | F100: 2.78833967 | G100: 1.066098081 | H100: 0.006734884493 | I100: 2.660341388 | J100: 1.343529976 | K100: Inf | L100: 2.660341388 | M100: 1.200122295 | N100: 6.333199026 | O100: 0.08184832766 | P100: 1 | Q100: 0.09639005173 | R100: 1 | S100: 0.454634812
A101: MP:0001216 | B101: abnormal epidermal layer morphology | C101: 164 | D101: 12 | E101: 4 | F101: 1.520912548 | G101: 0.4264392324 | H101: 0.01675645216 | I101: 3.603679071 | J101: 1.272961143 | K101: Inf | L101: 3.603679071 | M101: 1.086611049 | N101: 15.38690543 | O101: 0.1422637273 | P101: 1 | Q101: 0.09828358805 | R101: 1 | S101: 0.454634812
A102: MP:0003202 | B102: abnormal neuron apoptosis | C102: 119 | D102: 21 | E102: 12 | F102: 2.661596958 | G102: 1.279317697 | H102: 0.0278748195 | I102: 2.109140646 | J102: 1.098378587 | K102: Inf | L102: 2.109140646 | M102: 0.983695806 | N102: 4.735164748 | O102: 0.187168594 | P102: 1 | Q102: 0.09867451125 | R102: 1 | S102: 0.454634812
A103: MP:0005406 | B103: abnormal heart size | C103: 280 | D103: 21 | E103: 6 | F103: 2.661596958 | G103: 0.6396588486 | H103: 0.000638880184 | I103: 4.244221575 | J103: 1.869775943 | K103: Inf | L103: 4.244221575 | M103: 1.646251811 | N103: 12.91828753 | O103: 0.02020372711 | P103: 1 | Q103: 0.09939111064 | R103: 1 | S103: 0.454634812
A104: MP:0000432 | B104: abnormal head morphology | C104: 473 | D104: 22 | E104: 8 | F104: 2.78833967 | G104: 0.8528784648 | H104: 0.001852294965 | I104: 3.332216834 | J104: 1.597169 | K104: Inf | L104: 3.332216834 | M104: 1.418931845 | N104: 8.706554008 | O104: 0.03996151636 | P104: 1 | Q104: 0.1005861915 | R104: 1 | S104: 0.454634812
A105: MP:0002127 | B105: abnormal cardiovascular system morphology | C105: 1029 | D105: 65 | E105: 38 | F105: 8.238276299 | G105: 4.051172708 | H105: 0.0001870015723 | I105: 2.12543786 | J105: 1.477133251 | K105: Inf | L105: 2.12543786 | M105: 1.384832275 | N105: 3.301473912 | O105: 0.009482269381 | P105: 1 | Q105: 0.1006948718 | R105: 1 | S105: 0.454634812
A106: MP:0000847 | B106: abnormal metencephalon morphology | C106: 209 | D106: 17 | E106: 5 | F106: 2.154626109 | G106: 0.5330490405 | H106: 0.002483992778 | I106: 4.106010291 | J106: 1.66069118 | K106: Inf | L106: 4.106010291 | M106: 1.445578692 | N106: 14.30020158 | O106: 0.04427528946 | P106: 1 | Q106: 0.1020438603 | R106: 1 | S106: 0.454634812
A107: MP:0000849 | B107: abnormal cerebellum morphology | C107: 208 | D107: 17 | E107: 5 | F107: 2.154626109 | G107: 0.5330490405 | H107: 0.002483992778 | I107: 4.106010291 | J107: 1.66069118 | K107: Inf | L107: 4.106010291 | M107: 1.445578692 | N107: 14.30020158 | O107: 0.04427528946 | P107: 1 | Q107: 0.1020438603 | R107: 1 | S107: 0.454634812
A108: MP:0000745 | B108: tremors | C108: 161 | D108: 19 | E108: 8 | F108: 2.408111534 | G108: 0.8528784648 | H108: 0.007993094375 | I108: 2.866827047 | J108: 1.345849511 | K108: Inf | L108: 2.866827047 | M108: 1.190387054 | N108: 7.613613728 | O108: 0.09128321805 | P108: 1 | Q108: 0.1057547678 | R108: 1 | S108: 0.454634812
A109: MP:0003232 | B109: abnormal forebrain development | C109: 120 | D109: 8 | E109: 1 | F109: 1.013941698 | G109: 0.1066098081 | H109: 0.009987661938 | I109: 9.588043016 | J109: 1.589403482 | K109: Inf | L109: 9.588043016 | M109: 1.28084693 | N109: 425.4925745 | O109: 0.0979123792 | P109: 1 | Q109: 0.1058970476 | R109: 1 | S109: 0.454634812
A110: MP:0003878 | B110: abnormal ear physiology | C110: 189 | D110: 20 | E110: 7 | F110: 2.534854246 | G110: 0.7462686567 | H110: 0.002467046424 | I110: 3.456696519 | J110: 1.579921061 | K110: Inf | L110: 3.456696519 | M110: 1.39489363 | N110: 9.730574546 | O110: 0.04427528946 | P110: 1 | Q110: 0.1071923336 | R110: 1 | S110: 0.454634812
A111: MP:0009937 | B111: abnormal neuron differentiation | C111: 170 | D111: 16 | E111: 4 | F111: 2.027883397 | G111: 0.4264392324 | H111: 0.001769488622 | I111: 4.829812769 | J111: 1.794682244 | K111: Inf | L111: 4.829812769 | M111: 1.549249871 | N111: 19.92402943 | O111: 0.03956372401 | P111: 1 | Q111: 0.1075879883 | R111: 1 | S111: 0.454634812
A112: MP:0008037 | B112: abnormal T cell morphology | C112: 534 | D112: 49 | E112: 25 | F112: 6.210392902 | G112: 2.665245203 | H112: 0.0002237372987 | I112: 2.417008403 | J112: 1.562276725 | K112: Inf | L112: 2.417008403 | M112: 1.448194243 | N112: 4.125762315 | O112: 0.01025854468 | P112: 1 | Q112: 0.1089544869 | R112: 1 | S112: 0.454634812
A113: MP:0000947 | B113: convulsive seizures | C113: 100 | D113: 11 | E113: 3 | F113: 1.394169835 | G113: 0.3198294243 | H113: 0.01278155036 | I113: 4.403519452 | J113: 1.372327601 | K113: Inf | L113: 4.403519452 | M113: 1.157659002 | N113: 24.6652624 | O113: 0.1182092441 | P113: 1 | Q113: 0.1111238122 | R113: 1 | S113: 0.454634812
A114: MP:0003698 | B114: abnormal male reproductive system physiology | C114: 544 | D114: 72 | E114: 54 | F114: 9.125475285 | G114: 5.756929638 | H114: 0.00488527189 | I114: 1.643382603 | J114: 1.189586613 | K114: Inf | L114: 1.643382603 | M114: 1.122233097 | N114: 2.418473802 | O114: 0.06417111921 | P114: 1 | Q114: 0.1121020924 | R114: 1 | S114: 0.454634812
A115: MP:0001575 | B115: cyanosis | C115: 148 | D115: 13 | E115: 5 | F115: 1.64765526 | G115: 0.5330490405 | H115: 0.02057178343 | I115: 3.124070018 | J115: 1.206310857 | K115: Inf | L115: 3.124070018 | M115: 1.039451251 | N115: 11.24253446 | O115: 0.1461391668 | P115: 1 | Q115: 0.1152514731 | R115: 1 | S115: 0.454634812
A116: MP:0000428 | B116: abnormal craniofacial morphology | C116: 658 | D116: 30 | E116: 14 | F116: 3.802281369 | G116: 1.492537313 | H116: 0.001933002765 | I116: 2.607291385 | J116: 1.46494377 | K116: Inf | L116: 2.607291385 | M116: 1.329276779 | N116: 5.361456106 | O116: 0.04031887328 | P116: 1 | Q116: 0.1159855172 | R116: 1 | S116: 0.454634812
A117: MP:0005382 | B117: craniofacial phenotype | C117: 658 | D117: 30 | E117: 14 | F117: 3.802281369 | G117: 1.492537313 | H117: 0.001933002765 | I117: 2.607291385 | J117: 1.46494377 | K117: Inf | L117: 2.607291385 | M117: 1.329276779 | N117: 5.361456106 | O117: 0.04031887328 | P117: 1 | Q117: 0.1159855172 | R117: 1 | S117: 0.454634812
A118: MP:0003699 | B118: abnormal female reproductive system physiology | C118: 422 | D118: 42 | E118: 25 | F118: 5.323193916 | G118: 2.665245203 | H118: 0.003233733614 | I118: 2.052502409 | J118: 1.308412955 | K118: Inf | L118: 2.052502409 | M118: 1.209421874 | N118: 3.549108494 | O118: 0.05311113791 | P118: 1 | Q118: 0.1162537566 | R118: 1 | S118: 0.454634812
A119: MP:0002109 | B119: abnormal limb morphology | C119: 389 | D119: 19 | E119: 7 | F119: 2.408111534 | G119: 0.7462686567 | H119: 0.004104393965 | I119: 3.279676893 | J119: 1.487943731 | K119: Inf | L119: 3.279676893 | M119: 1.311642159 | N119: 9.2810967 | O119: 0.05831411908 | P119: 1 | Q119: 0.116483525 | R119: 1 | S119: 0.454634812
A120: MP:0005369 | B120: muscle phenotype | C120: 791 | D120: 62 | E120: 35 | F120: 7.858048162 | G120: 3.731343284 | H120: 0.0001551295189 | I120: 2.199292551 | J120: 1.509646459 | K120: Inf | L120: 2.199292551 | M120: 1.412561657 | N120: 3.471352752 | O120: 0.008704938289 | P120: 1 | Q120: 0.1167738799 | R120: 1 | S120: 0.454634812
A121: MP:0000164 | B121: abnormal cartilage development | C121: 109 | D121: 7 | E121: 1 | F121: 0.8871989861 | G121: 0.1066098081 | H121: 0.01972448523 | I121: 8.379012563 | J121: 1.342201114 | K121: Inf | L121: 8.379012563 | M121: 1.072816292 | N121: 377.7439775 | O121: 0.14283216 | P121: 1 | Q121: 0.1169187016 | R121: 1 | S121: 0.454634812
A122: MP:0002114 | B122: abnormal axial skeleton morphology | C122: 568 | D122: 40 | E122: 23 | F122: 5.069708492 | G122: 2.452025586 | H122: 0.002878222051 | I122: 2.123669691 | J122: 1.332229446 | K122: Inf | L122: 2.123669691 | M122: 1.228439551 | N122: 3.751124791 | O122: 0.04950205293 | P122: 1 | Q122: 0.1169824506 | R122: 1 | S122: 0.454634812
A123: MP:0002460 | B123: decreased immunoglobulin level | C123: 201 | D123: 16 | E123: 6 | F123: 2.027883397 | G123: 0.6396588486 | H123: 0.009147720298 | I123: 3.213117275 | J123: 1.359921491 | K123: Inf | L123: 3.213117275 | M123: 1.187105432 | N123: 10.07576537 | O123: 0.09402945306 | P123: 1 | Q123: 0.117553384 | R123: 1 | S123: 0.454634812
A124: MP:0002083 | B124: premature death | C124: 678 | D124: 48 | E124: 31 | F124: 6.08365019 | G124: 3.304904051 | H124: 0.00421000972 | I124: 1.894528467 | J124: 1.255958203 | K124: Inf | L124: 1.894528467 | M124: 1.167965175 | N124: 3.112978383 | O124: 0.05952710859 | P124: 1 | Q124: 0.1183519366 | R124: 1 | S124: 0.454634812
A125: MP:0000274 | B125: enlarged heart | C125: 212 | D125: 17 | E125: 4 | F125: 2.154626109 | G125: 0.4264392324 | H125: 0.0009782747503 | I125: 5.136803228 | J125: 1.926550286 | K125: Inf | L125: 5.136803228 | M125: 1.666372112 | N125: 21.07375794 | O125: 0.02639546826 | P125: 1 | Q125: 0.1186024718 | R125: 1 | S125: 0.454634812
A126: MP:0002446 | B126: abnormal macrophage morphology | C126: 223 | D126: 16 | E126: 4 | F126: 2.027883397 | G126: 0.4264392324 | H126: 0.001769488622 | I126: 4.829812769 | J126: 1.794682244 | K126: Inf | L126: 4.829812769 | M126: 1.549249871 | N126: 19.92402943 | O126: 0.03956372401 | P126: 1 | Q126: 0.1193893939 | R126: 1 | S126: 0.454634812
A127: MP:0005371 | B127: limbs/digits/tail phenotype | C127: 492 | D127: 30 | E127: 11 | F127: 3.802281369 | G127: 1.172707889 | H127: 0.0002872222178 | I127: 3.328730927 | J127: 1.782575186 | K127: Inf | L127: 3.328730927 | M127: 1.60866859 | N127: 7.411487944 | O127: 0.01154031443 | P127: 1 | Q127: 0.1203474694 | R127: 1 | S127: 0.4546459954
A128: MP:0002619 | B128: abnormal lymphocyte morphology | C128: 731 | D128: 55 | E128: 36 | F128: 6.970849176 | G128: 3.837953092 | H128: 0.002623736603 | I128: 1.876744259 | J128: 1.280118875 | K128: Inf | L128: 1.876744259 | M128: 1.196055924 | N128: 2.976265595 | O128: 0.04597921286 | P128: 1 | Q128: 0.1252379806 | R128: 1 | S128: 0.4630582115
A129: MP:0005397 | B129: hematopoietic system phenotype | C129: 1461 | D129: 79 | E129: 60 | F129: 10.01267427 | G129: 6.396588486 | H129: 0.003929622842 | I129: 1.627725175 | J129: 1.19614772 | K129: Inf | L129: 1.627725175 | M129: 1.131339572 | N129: 2.351682108 | O129: 0.05831411908 | P129: 1 | Q129: 0.1263760047 | R129: 1 | S129: 0.4630582115
A130: MP:0001545 | B130: abnormal hematopoietic system physiology | C130: 235 | D130: 24 | E130: 7 | F130: 3.041825095 | G130: 0.7462686567 | H130: 0.000289039959 | I130: 4.169379422 | J130: 1.950829986 | K130: Inf | L130: 4.169379422 | M130: 1.731097001 | N130: 11.52265272 | O130: 0.01154031443 | P130: 1 | Q130: 0.1266355866 | R130: 1 | S130: 0.4630582115
A131: MP:0002200 | B131: abnormal brain ventricle/choroid plexus morphology | C131: 176 | D131: 14 | E131: 5 | F131: 1.774397972 | G131: 0.5330490405 | H131: 0.01239508057 | I131: 3.368602838 | J131: 1.319092889 | K131: Inf | L131: 3.368602838 | M131: 1.140154485 | N131: 12.00102011 | O131: 0.1172152153 | P131: 1 | Q131: 0.1287554125 | R131: 1 | S131: 0.4630582115
A132: MP:0002082 | B132: postnatal lethality | C132: 737 | D132: 40 | E132: 21 | F132: 5.069708492 | G132: 2.23880597 | H132: 0.001154912322 | I132: 2.330883175 | J132: 1.44328205 | K132: Inf | L132: 2.330883175 | M132: 1.32869008 | N132: 4.199678913 | O132: 0.02980260737 | P132: 1 | Q132: 0.1302627545 | R132: 1 | S132: 0.4630582115
A133: MP:0004686 | B133: decreased length of long bones | C133: 137 | D133: 10 | E133: 2 | F133: 1.267427123 | G133: 0.2132196162 | H133: 0.008781571437 | I133: 6.001882635 | J133: 1.533988334 | K133: Inf | L133: 6.001882635 | M133: 1.273653666 | N133: 56.44417451 | O133: 0.09385430981 | P133: 1 | Q133: 0.1305515406 | R133: 1 | S133: 0.4630582115
A134: MP:0003084 | B134: abnormal skeletal muscle fiber morphology | C134: 110 | D134: 17 | E134: 6 | F134: 2.154626109 | G134: 0.6396588486 | H134: 0.005505143144 | I134: 3.418258018 | J134: 1.46106831 | K134: Inf | L134: 3.418258018 | M134: 1.278155152 | N134: 10.64208174 | O134: 0.06919070934 | P134: 1 | Q134: 0.1309889376 | R134: 1 | S134: 0.4630582115
A135: MP:0000230 | B135: abnormal systemic arterial blood pressure | C135: 148 | D135: 14 | E135: 4 | F135: 1.774397972 | G135: 0.4264392324 | H135: 0.005594307344 | I135: 4.21501261 | J135: 1.532627522 | K135: Inf | L135: 4.21501261 | M135: 1.316637078 | N135: 17.64908528 | O135: 0.06942134134 | P135: 1 | Q135: 0.1327007645 | R135: 1 | S135: 0.4630582115
A136: MP:0006335 | B136: abnormal hearing electrophysiology | C136: 130 | D136: 15 | E136: 5 | F136: 1.901140684 | G136: 0.5330490405 | H136: 0.007353373185 | I136: 3.61376549 | J136: 1.432466548 | K136: Inf | L136: 3.61376549 | M136: 1.24143419 | N136: 12.77203141 | O136: 0.08514279739 | P136: 1 | Q136: 0.1336330237 | R136: 1 | S136: 0.4630582115
A137: MP:0001922 | B137: reduced male fertility | C137: 159 | D137: 11 | E137: 6 | F137: 1.394169835 | G137: 0.6396588486 | H137: 0.09065805293 | I137: 2.19525918 | J137: 0.8619717539 | K137: Inf | L137: 2.19525918 | M137: 0.7401990392 | N137: 7.263487388 | O137: 0.3459411522 | P137: 1 | Q137: 0.1337128814 | R137: 1 | S137: 0.4630582115
A138: MP:0002132 | B138: abnormal respiratory system morphology | C138: 423 | D138: 25 | E138: 10 | F138: 3.168567807 | G138: 1.066098081 | H138: 0.001679044988 | I138: 3.034778035 | J138: 1.558621047 | K138: Inf | L138: 3.034778035 | M138: 1.397178798 | N138: 7.126781075 | O138: 0.03919104215 | P138: 1 | Q138: 0.1342440304 | R138: 1 | S138: 0.4630582115
A139: MP:0011504 | B139: abnormal limb long bone morphology | C139: 170 | D139: 12 | E139: 3 | F139: 1.520912548 | G139: 0.3198294243 | H139: 0.007136563326 | I139: 4.810143497 | J139: 1.525238144 | K139: Inf | L139: 4.810143497 | M139: 1.29163141 | N139: 26.65145479 | O139: 0.08395453097 | P139: 1 | Q139: 0.1342479689 | R139: 1 | S139: 0.4630582115
A140: MP:0002463 | B140: abnormal neutrophil physiology | C140: 114 | D140: 7 | E140: 2 | F140: 0.8871989861 | G140: 0.2132196162 | H140: 0.05380336677 | I140: 4.186320092 | J140: 0.976713275 | K140: Inf | L140: 4.186320092 | M140: 0.7940355351 | N140: 41.43630914 | O140: 0.2681961045 | P140: 1 | Q140: 0.1371650842 | R140: 1 | S140: 0.4661360921
A141: MP:0002414 | B141: abnormal myeloblast morphology/development | C141: 557 | D141: 41 | E141: 26 | F141: 5.196451204 | G141: 2.771855011 | H141: 0.006724229988 | I141: 1.921910673 | J141: 1.22856536 | K141: Inf | L141: 1.921910673 | M141: 1.135812872 | N141: 3.305403455 | O141: 0.08184832766 | P141: 1 | Q141: 0.137784862 | R141: 1 | S141: 0.4661360921
A142: MP:0004087 | B142: abnormal muscle fiber morphology | C142: 204 | D142: 26 | E142: 11 | F142: 3.29531052 | G142: 1.172707889 | H142: 0.001987756917 | I142: 2.869991927 | J142: 1.511940874 | K142: Inf | L142: 2.869991927 | M142: 1.359774282 | N142: 6.47904155 | O142: 0.04059717425 | P142: 1 | Q142: 0.1380781281 | R142: 1 | S142: 0.4661360921
A143: MP:0001919 | B143: abnormal reproductive system physiology | C143: 961 | D143: 92 | E143: 72 | F143: 11.66032953 | G143: 7.675906183 | H143: 0.003204297152 | I143: 1.587141749 | J143: 1.194102088 | K143: Inf | L143: 1.587141749 | M143: 1.133942666 | N143: 2.228249088 | O143: 0.05309785134 | P143: 1 | Q143: 0.1409160555 | R143: 1 | S143: 0.4723664959
A144: MP:0000801 | B144: abnormal temporal lobe morphology | C144: 164 | D144: 18 | E144: 12 | F144: 2.281368821 | G144: 1.279317697 | H144: 0.08054224932 | I144: 1.80091832 | J144: 0.9147446775 | K144: Inf | L144: 1.80091832 | M144: 0.8149180751 | N144: 4.126246475 | O144: 0.3459411522 | P144: 1 | Q144: 0.1431566215 | R144: 1 | S144: 0.4732121655
A145: MP:0000807 | B145: abnormal hippocampus morphology | C145: 161 | D145: 18 | E145: 12 | F145: 2.281368821 | G145: 1.279317697 | H145: 0.08054224932 | I145: 1.80091832 | J145: 0.9147446775 | K145: Inf | L145: 1.80091832 | M145: 0.8149180751 | N145: 4.126246475 | O145: 0.3459411522 | P145: 1 | Q145: 0.1431566215 | R145: 1 | S145: 0.4732121655
A146: MP:0002462 | B146: abnormal granulocyte physiology | C146: 165 | D146: 18 | E146: 4 | F146: 2.281368821 | G146: 0.4264392324 | H146: 0.0005354165068 | I146: 5.446009147 | J146: 2.058937801 | K146: Inf | L146: 5.446009147 | M146: 1.78402742 | N146: 22.21822447 | O146: 0.01809953961 | P146: 1 | Q146: 0.1461966233 | R146: 1 | S146: 0.4757110676
A147: MP:0002067 | B147: abnormal sensory capabilities/reflexes/nociception | C147: 450 | D147: 49 | E147: 34 | F147: 6.210392902 | G147: 3.624733475 | H147: 0.00851727592 | I147: 1.759965994 | J147: 1.181195542 | K147: Inf | L147: 1.759965994 | M147: 1.10046468 | N147: 2.84340413 | O147: 0.09385430981 | P147: 1 | Q147: 0.1464061128 | R147: 1 | S147: 0.4757110676
A148: MP:0004811 | B148: abnormal neuron physiology | C148: 329 | D148: 46 | E148: 28 | F148: 5.830164766 | G148: 2.985074627 | H148: 0.002657757969 | I148: 2.011322797 | J148: 1.312108544 | K148: Inf | L148: 2.011322797 | M148: 1.217225927 | N148: 3.376732572 | O148: 0.04597921286 | P148: 1 | Q148: 0.1493070429 | R148: 1 | S148: 0.4757110676
A149: MP:0000875 | B149: abnormal cerebellar Purkinje cell layer | C149: 120 | D149: 12 | E149: 4 | F149: 1.520912548 | G149: 0.4264392324 | H149: 0.01675645216 | I149: 3.603679071 | J149: 1.272961143 | K149: Inf | L149: 3.603679071 | M149: 1.086611049 | N149: 15.38690543 | O149: 0.1422637273 | P149: 1 | Q149: 0.1501700081 | R149: 1 | S149: 0.4757110676
A150: MP:0004097 | B150: abnormal cerebellar cortex morphology | C150: 163 | D150: 12 | E150: 4 | F150: 1.520912548 | G150: 0.4264392324 | H150: 0.01675645216 | I150: 3.603679071 | J150: 1.272961143 | K150: Inf | L150: 3.603679071 | M150: 1.086611049 | N150: 15.38690543 | O150: 0.1422637273 | P150: 1 | Q150: 0.1501700081 | R150: 1 | S150: 0.4757110676
A151: MP:0009956 | B151: abnormal cerebellar layer morphology | C151: 142 | D151: 12 | E151: 4 | F151: 1.520912548 | G151: 0.4264392324 | H151: 0.01675645216 | I151: 3.603679071 | J151: 1.272961143 | K151: Inf | L151: 3.603679071 | M151: 1.086611049 | N151: 15.38690543 | O151: 0.1422637273 | P151: 1 | Q151: 0.1501700081 | R151: 1 | S151: 0.4757110676
A152: MP:0002161 | B152: abnormal fertility/fecundity | C152: 860 | D152: 85 | E152: 67 | F152: 10.77313054 | G152: 7.142857143 | H152: 0.005194984022 | I152: 1.569163321 | J152: 1.168553986 | K152: Inf | L152: 1.569163321 | M152: 1.107702928 | N152: 2.230052371 | O152: 0.06614046757 | P152: 1 | Q152: 0.1509083429 | R152: 1 | S152: 0.4757110676
A153: MP:0000350 | B153: abnormal cell proliferation | C153: 455 | D153: 41 | E153: 22 | F153: 5.196451204 | G153: 2.345415778 | H153: 0.001257121641 | I153: 2.28114354 | J153: 1.425488548 | K153: Inf | L153: 2.28114354 | M153: 1.314015854 | N153: 4.059143852 | O153: 0.03100728321 | P153: 1 | Q153: 0.1547261944 | R153: 1 | S153: 0.482097987
A154: MP:0002092 | B154: abnormal eye morphology | C154: 677 | D154: 56 | E154: 35 | F154: 7.097591888 | G154: 3.731343284 | H154: 0.001312698126 | I154: 1.970273683 | J154: 1.341787745 | K154: Inf | L154: 1.970273683 | M154: 1.25350583 | N154: 3.134008879 | O154: 0.03190615857 | P154: 1 | Q154: 0.1549600673 | R154: 1 | S154: 0.482097987
A155: MP:0006325 | B155: impaired hearing | C155: 100 | D155: 11 | E155: 3 | F155: 1.394169835 | G155: 0.3198294243 | H155: 0.01278155036 | I155: 4.403519452 | J155: 1.372327601 | K155: Inf | L155: 4.403519452 | M155: 1.157659002 | N155: 24.6652624 | O155: 0.1182092441 | P155: 1 | Q155: 0.1574496995 | R155: 1 | S155: 0.4850847331
A156: MP:0000759 | B156: abnormal skeletal muscle morphology | C156: 233 | D156: 27 | E156: 12 | F156: 3.422053232 | G156: 1.279317697 | H156: 0.002308264726 | I156: 2.732713986 | J156: 1.472321161 | K156: Inf | L156: 2.732713986 | M156: 1.328028214 | N156: 5.962645979 | O156: 0.04427528946 | P156: 1 | Q156: 0.1579582639 | R156: 1 | S156: 0.4850847331
A157: MP:0009250 | B157: abnormal appendicular skeleton morphology | C157: 377 | D157: 27 | E157: 13 | F157: 3.422053232 | G157: 1.385927505 | H157: 0.004060899162 | I157: 2.519889171 | J157: 1.379052232 | K157: Inf | L157: 2.519889171 | M157: 1.246130238 | N157: 5.357749894 | O157: 0.05831411908 | P157: 1 | Q157: 0.1602741389 | R157: 1 | S157: 0.4890416033
A158: MP:0008415 | B158: abnormal neurite morphology | C158: 184 | D158: 20 | E158: 10 | F158: 2.534854246 | G158: 1.066098081 | H158: 0.01599546484 | I158: 2.412329093 | J158: 1.20151552 | K158: Inf | L158: 2.412329093 | M158: 1.070101931 | N158: 5.806983768 | O158: 0.141770223 | P158: 1 | Q158: 0.1615235259 | R158: 1 | S158: 0.4892276694
A159: MP:0008083 | B159: decreased single-positive T cell number | C159: 168 | D159: 26 | E159: 8 | F159: 3.29531052 | G159: 0.8528784648 | H159: 0.0002267274411 | I159: 3.958411155 | J159: 1.936458863 | K159: Inf | L159: 3.958411155 | M159: 1.727902668 | N159: 10.17657151 | O159: 0.01025854468 | P159: 1 | Q159: 0.1628405929 | R159: 1 | S159: 0.4892276694
A160: MP:0003313 | B160: abnormal locomotor activation | C160: 532 | D160: 70 | E160: 47 | F160: 8.871989861 | G160: 5.010660981 | H160: 0.001033265647 | I160: 1.844959519 | J160: 1.316551426 | K160: Inf | L160: 1.844959519 | M160: 1.239356979 | N160: 2.767166003 | O160: 0.0273768853 | P160: 1 | Q160: 0.1639113594 | R160: 1 | S160: 0.4892276694
A161: MP:0002073 | B161: abnormal hair growth | C161: 150 | D161: 16 | E161: 8 | F161: 2.027883397 | G161: 0.8528784648 | H161: 0.03055183103 | I161: 2.405023296 | J161: 1.097638405 | K161: Inf | L161: 2.405023296 | M161: 0.9649855447 | N161: 6.528237147 | O161: 0.2005645872 | P161: 1 | Q161: 0.1655657343 | R161: 1 | S161: 0.4892276694
A162: MP:0002435 | B162: abnormal effector T cell morphology | C162: 275 | D162: 32 | E162: 10 | F162: 4.055766793 | G162: 1.066098081 | H162: 4.660483361e-05 | I162: 3.919963544 | J162: 2.068940085 | K162: Inf | L162: 3.919963544 | M162: 1.865310224 | N162: 8.999818234 | O162: 0.004421445666 | P162: 1 | Q162: 0.1656777982 | R162: 1 | S162: 0.4892276694
A163: MP:0001191 | B163: abnormal skin condition | C163: 154 | D163: 17 | E163: 10 | F163: 2.154626109 | G163: 1.066098081 | H163: 0.05254576587 | I163: 2.042704216 | J163: 0.9907093173 | K163: Inf | L163: 2.042704216 | M163: 0.8773483696 | N163: 5.022877708 | O163: 0.2681961045 | P163: 1 | Q163: 0.1665018539 | R163: 1 | S163: 0.4892276694
A164: MP:0001399 | B164: hyperactivity | C164: 202 | D164: 25 | E164: 8 | F164: 3.168567807 | G164: 0.8528784648 | H164: 0.0003888123215 | I164: 3.801250587 | J164: 1.851182322 | K164: Inf | L164: 3.801250587 | M164: 1.650280519 | N164: 9.808336159 | O164: 0.01429371297 | P164: 1 | Q164: 0.1679914413 | R164: 1 | S164: 0.4905762335
A165: MP:0002432 | B165: abnormal CD4-positive T cell morphology | C165: 218 | D165: 25 | E165: 9 | F165: 3.168567807 | G165: 0.9594882729 | H165: 0.0008390481004 | I165: 3.375435889 | J165: 1.692074029 | K165: Inf | L165: 3.375435889 | M165: 1.512932153 | N165: 8.269240994 | O165: 0.02368319232 | P165: 1 | Q165: 0.1721974709 | R165: 1 | S165: 0.493804377
A166: MP:0008073 | B166: abnormal CD4-positive T cell number | C166: 184 | D166: 25 | E166: 9 | F166: 3.168567807 | G166: 0.9594882729 | H166: 0.0008390481004 | I166: 3.375435889 | J166: 1.692074029 | K166: Inf | L166: 3.375435889 | M166: 1.512932153 | N166: 8.269240994 | O166: 0.02368319232 | P166: 1 | Q166: 0.1721974709 | R166: 1 | S166: 0.493804377
A167: MP:0005076 | B167: abnormal cell differentiation | C167: 813 | D167: 58 | E167: 38 | F167: 7.351077313 | G167: 4.051172708 | H167: 0.002035253891 | I167: 1.878467091 | J167: 1.294253815 | K167: Inf | L167: 1.878467091 | M167: 1.211250341 | N167: 2.942444528 | O167: 0.0412805634 | P167: 1 | Q167: 0.1731089463 | R167: 1 | S167: 0.493804377
A168: MP:0001943 | B168: abnormal respiration | C168: 348 | D168: 25 | E168: 13 | F168: 3.168567807 | G168: 1.385927505 | H168: 0.009315306814 | I168: 2.327224801 | J168: 1.261225505 | K168: Inf | L168: 2.327224801 | M168: 1.137302885 | N168: 4.988956598 | O168: 0.09512610187 | P168: 1 | Q168: 0.1732464936 | R168: 1 | S168: 0.493804377
A169: MP:0005294 | B169: abnormal heart ventricle morphology | C169: 329 | D169: 27 | E169: 10 | F169: 3.422053232 | G169: 1.066098081 | H169: 0.0006305649734 | I169: 3.286033047 | J169: 1.703245951 | K169: Inf | L169: 3.286033047 | M169: 1.529717711 | N169: 7.658918067 | O169: 0.02015751725 | P169: 1 | Q169: 0.1754441927 | R169: 1 | S169: 0.4961515574
A170: MP:0004937 | B170: dilated heart | C170: 113 | D170: 16 | E170: 4 | F170: 2.027883397 | G170: 0.4264392324 | H170: 0.001769488622 | I170: 4.829812769 | J170: 1.794682244 | K170: Inf | L170: 4.829812769 | M170: 1.549249871 | N170: 19.92402943 | O170: 0.03956372401 | P170: 1 | Q170: 0.1774021662 | R170: 1 | S170: 0.4961515574
A171: MP:0005551 | B171: abnormal eye electrophysiology | C171: 137 | D171: 20 | E171: 10 | F171: 2.534854246 | G171: 1.066098081 | H171: 0.01599546484 | I171: 2.412329093 | J171: 1.20151552 | K171: Inf | L171: 2.412329093 | M171: 1.070101931 | N171: 5.806983768 | O171: 0.141770223 | P171: 1 | Q171: 0.1776428178 | R171: 1 | S171: 0.4961515574
A172: MP:0001286 | B172: abnormal eye development | C172: 154 | D172: 12 | E172: 4 | F172: 1.520912548 | G172: 0.4264392324 | H172: 0.01675645216 | I172: 3.603679071 | J172: 1.272961143 | K172: Inf | L172: 3.603679071 | M172: 1.086611049 | N172: 15.38690543 | O172: 0.1422637273 | P172: 1 | Q172: 0.1784432909 | R172: 1 | S172: 0.4961515574
A173: MP:0004703 | B173: abnormal vertebral column morphology | C173: 348 | D173: 29 | E173: 15 | F173: 3.675538657 | G173: 1.599147122 | H173: 0.004979531015 | I173: 2.346853331 | J173: 1.329782301 | K173: Inf | L173: 2.346853331 | M173: 1.207468517 | N173: 4.746574143 | O173: 0.06417111921 | P173: 1 | Q173: 0.1796300084 | R173: 1 | S173: 0.4961515574
A174: MP:0000163 | B174: abnormal cartilage morphology | C174: 219 | D174: 13 | E174: 3 | F174: 1.64765526 | G174: 0.3198294243 | H174: 0.003929933715 | I174: 5.21616143 | J174: 1.678901456 | K174: Inf | L174: 5.21616143 | M174: 1.426476052 | N174: 28.61891129 | O174: 0.05831411908 | P174: 1 | Q174: 0.1814266564 | R174: 1 | S174: 0.4961515574
A175: MP:0002405 | B175: respiratory system inflammation | C175: 110 | D175: 7 | E175: 2 | F175: 0.8871989861 | G175: 0.2132196162 | H175: 0.05380336677 | I175: 4.186320092 | J175: 0.976713275 | K175: Inf | L175: 4.186320092 | M175: 0.7940355351 | N175: 41.43630914 | O175: 0.2681961045 | P175: 1 | Q175: 0.1836237412 | R175: 1 | S175: 0.4961515574
A176: MP:0005329 | B176: abnormal myocardium layer morphology | C176: 237 | D176: 25 | E176: 10 | F176: 3.168567807 | G176: 1.066098081 | H176: 0.001679044988 | I176: 3.034778035 | J176: 1.558621047 | K176: Inf | L176: 3.034778035 | M176: 1.397178798 | N176: 7.126781075 | O176: 0.03919104215 | P176: 1 | Q176: 0.1837000773 | R176: 1 | S176: 0.4961515574
A177: MP:0010545 | B177: abnormal heart layer morphology | C177: 242 | D177: 25 | E177: 10 | F177: 3.168567807 | G177: 1.066098081 | H177: 0.001679044988 | I177: 3.034778035 | J177: 1.558621047 | K177: Inf | L177: 3.034778035 | M177: 1.397178798 | N177: 7.126781075 | O177: 0.03919104215 | P177: 1 | Q177: 0.1837000773 | R177: 1 | S177: 0.4961515574
A178: MP:0002873 | B178: normal phenotype | C178: 1239 | D178: 74 | E178: 47 | F178: 9.37896071 | G178: 5.010660981 | H178: 0.0002855073556 | I178: 1.961287211 | J178: 1.404994071 | K178: Inf | L178: 1.961287211 | M178: 1.323584912 | N178: 2.930162593 | O178: 0.01154031443 | P178: 1 | Q178: 0.1844933312 | R178: 1 | S178: 0.4961515574
A179: MP:0003229 | B179: abnormal vitelline vasculature morphology | C179: 146 | D179: 8 | E179: 1 | F179: 1.013941698 | G179: 0.1066098081 | H179: 0.009987661938 | I179: 9.588043016 | J179: 1.589403482 | K179: Inf | L179: 9.588043016 | M179: 1.28084693 | N179: 425.4925745 | O179: 0.0979123792 | P179: 1 | Q179: 0.1856914589 | R179: 1 | S179: 0.4964712796
A180: MP:0008948 | B180: decreased neuron number | C180: 208 | D180: 26 | E180: 15 | F180: 3.29531052 | G180: 1.599147122 | H180: 0.01589503257 | I180: 2.095938077 | J180: 1.17154604 | K180: Inf | L180: 2.095938077 | M180: 1.06072586 | N180: 4.289296798 | O180: 0.141770223 | P180: 1 | Q180: 0.1866982333 | R180: 1 | S180: 0.4964712796
A181: MP:0001963 | B181: abnormal hearing physiology | C181: 164 | D181: 17 | E181: 6 | F181: 2.154626109 | G181: 0.6396588486 | H181: 0.005505143144 | I181: 3.418258018 | J181: 1.46106831 | K181: Inf | L181: 3.418258018 | M181: 1.278155152 | N181: 10.64208174 | O181: 0.06919070934 | P181: 1 | Q181: 0.1884679051 | R181: 1 | S181: 0.4965176708
A182: MP:0002169 | B182: no abnormal phenotype detected | C182: 1236 | D182: 74 | E182: 46 | F182: 9.37896071 | G182: 4.904051173 | H182: 0.0001958032081 | I182: 2.006145201 | J182: 1.434213898 | K182: Inf | L182: 2.006145201 | M182: 1.350767688 | N182: 3.005938069 | O182: 0.009760292118 | P182: 1 | Q182: 0.1905798975 | R182: 1 | S182: 0.4965176708
A183: MP:0001800 | B183: abnormal humoral immune response | C183: 346 | D183: 29 | E183: 16 | F183: 3.675538657 | G183: 1.70575693 | H183: 0.008007844358 | I183: 2.197872757 | J183: 1.259286543 | K183: Inf | L183: 2.197872757 | M183: 1.144876111 | N183: 4.367055994 | O183: 0.09128321805 | P183: 1 | Q183: 0.1918596277 | R183: 1 | S183: 0.4965176708
A184: MP:0004166 | B184: abnormal limbic system morphology | C184: 194 | D184: 18 | E184: 13 | F184: 2.281368821 | G184: 1.385927505 | H184: 0.1125149557 | I184: 1.660667536 | J184: 0.8559124802 | K184: Inf | L184: 1.660667536 | M184: 0.763694883 | N184: 3.71189033 | O184: 0.3925343828 | P184: 1 | Q184: 0.1919922294 | R184: 1 | S184: 0.4965176708
A185: MP:0000352 | B185: decreased cell proliferation | C185: 235 | D185: 23 | E185: 9 | F185: 2.915082383 | G185: 0.9594882729 | H185: 0.002265184279 | I185: 3.097422869 | J185: 1.53655109 | K185: Inf | L185: 3.097422869 | M185: 1.370808722 | N185: 7.652389645 | O185: 0.04427528946 | P185: 1 | Q185: 0.1925002514 | R185: 1 | S185: 0.4965176708
A186: MP:0002065 | B186: abnormal fear/anxiety-related behavior | C186: 191 | D186: 44 | E186: 24 | F186: 5.576679341 | G186: 2.558635394 | H186: 0.001000298416 | I186: 2.248186964 | J186: 1.431580118 | K186: Inf | L186: 2.248186964 | M186: 1.323483827 | N186: 3.903800885 | O186: 0.0267443422 | P186: 1 | Q186: 0.1929743048 | R186: 1 | S186: 0.4965176708
A187: MP:0001845 | B187: abnormal inflammatory response | C187: 700 | D187: 52 | E187: 30 | F187: 6.590621039 | G187: 3.198294243 | H187: 0.0007149900044 | I187: 2.13458955 | J187: 1.419401902 | K187: Inf | L187: 2.13458955 | M187: 1.321164862 | N187: 3.503755034 | O187: 0.0219040167 | P187: 1 | Q187: 0.1940618334 | R187: 1 | S187: 0.4966313585
A188: MP:0003727 | B188: abnormal retinal layer morphology | C188: 212 | D188: 31 | E188: 22 | F188: 3.929024081 | G188: 2.345415778 | H188: 0.03935830033 | I188: 1.70225551 | J188: 1.032016569 | K188: Inf | L188: 1.70225551 | M188: 0.9454164271 | N188: 3.113767797 | O188: 0.230733632 | P188: 1 | Q188: 0.1960275791 | R188: 1 | S188: 0.497295743
A189: MP:0006113 | B189: abnormal heart septum morphology | C189: 176 | D189: 14 | E189: 5 | F189: 1.774397972 | G189: 0.5330490405 | H189: 0.01239508057 | I189: 3.368602838 | J189: 1.319092889 | K189: Inf | L189: 3.368602838 | M189: 1.140154485 | N189: 12.00102011 | O189: 0.1172152153 | P189: 1 | Q189: 0.1965892304 | R189: 1 | S189: 0.497295743
A190: MP:0001431 | B190: abnormal eating behavior | C190: 341 | D190: 25 | E190: 14 | F190: 3.168567807 | G190: 1.492537313 | H190: 0.0149039751 | I190: 2.158750162 | J190: 1.185943107 | K190: Inf | L190: 2.158750162 | M190: 1.071093157 | N190: 4.525733704 | O190: 0.135285774 | P190: 1 | Q190: 0.1974556627 | R190: 1 | S190: 0.497295743
A191: MP:0000877 | B191: abnormal Purkinje cell morphology | C191: 109 | D191: 10 | E191: 3 | F191: 1.267427123 | G191: 0.3198294243 | H191: 0.02253475876 | I191: 3.997949493 | J191: 1.220438306 | K191: Inf | L191: 3.997949493 | M191: 1.024682345 | N191: 22.68359166 | O191: 0.1553143557 | P191: 1 | Q191: 0.1992372073 | R191: 1 | S191: 0.4991416351
A192: MP:0000822 | B192: abnormal brain ventricle morphology | C192: 133 | D192: 13 | E192: 5 | F192: 1.64765526 | G192: 0.5330490405 | H192: 0.02057178343 | I192: 3.124070018 | J192: 1.206310857 | K192: Inf | L192: 3.124070018 | M192: 1.039451251 | N192: 11.24253446 | O192: 0.1461391668 | P192: 1 | Q192: 0.2016061381 | R192: 1 | S192: 0.5017826928
A193: MP:0003224 | B193: neuron degeneration | C193: 190 | D193: 29 | E193: 18 | F193: 3.675538657 | G193: 1.918976546 | H193: 0.01855436674 | I193: 1.949514342 | J193: 1.138454271 | K193: Inf | L193: 1.949514342 | M193: 1.037432472 | N193: 3.758392072 | O193: 0.14283216 | P193: 1 | Q193: 0.2023997416 | R193: 1 | S193: 0.5017826928
A194: MP:0008081 | B194: abnormal single-positive T cell number | C194: 231 | D194: 31 | E194: 10 | F194: 3.929024081 | G194: 1.066098081 | H194: 7.974703505e-05 | I194: 3.792510944 | J194: 1.995328889 | K194: Inf | L194: 3.792510944 | M194: 1.797739059 | N194: 8.730653058 | O194: 0.006036976578 | P194: 1 | Q194: 0.2051450563 | R194: 1 | S194: 0.5059536105
A195: MP:0005381 | B195: digestive/alimentary phenotype | C195: 732 | D195: 34 | E195: 17 | F195: 4.309252218 | G195: 1.812366738 | H195: 0.001775726477 | I195: 2.438508782 | J195: 1.437035836 | K195: Inf | L195: 2.438508782 | M195: 1.312992805 | N195: 4.692671653 | O195: 0.03956372401 | P195: 1 | Q195: 0.2083159115 | R195: 1 | S195: 0.5111256386
A196: MP:0005376 | B196: homeostasis/metabolism phenotype | C196: 2327 | D196: 134 | E196: 117 | F196: 16.98352345 | G196: 12.47334755 | H196: 0.00499395373 | I196: 1.435233221 | J196: 1.135614169 | K196: Inf | L196: 1.435233221 | M196: 1.08779206 | N196: 1.895619834 | O196: 0.06417111921 | P196: 1 | Q196: 0.2119887787 | R196: 1 | S196: 0.5174700444
A197: MP:0004262 | B197: abnormal physical strength | C197: 152 | D197: 18 | E197: 9 | F197: 2.281368821 | G197: 0.9594882729 | H197: 0.02206504528 | I197: 2.408666722 | J197: 1.152797673 | K197: Inf | L197: 2.408666722 | M197: 1.020658099 | N197: 6.122712042 | O197: 0.1541408507 | P197: 1 | Q197: 0.2167867277 | R197: 1 | S197: 0.5264820531
A198: MP:0008079 | B198: decreased CD8-positive T cell number | C198: 107 | D198: 23 | E198: 7 | F198: 2.915082383 | G198: 0.7462686567 | H198: 0.0005014103337 | I198: 3.99051409 | J198: 1.857674068 | K198: Inf | L198: 3.99051409 | M198: 1.646492698 | N198: 11.07245609 | O198: 0.01714706734 | P198: 1 | Q198: 0.2188462271 | R198: 1 | S198: 0.5269543153
A199: MP:0009931 | B199: abnormal skin appearance | C199: 272 | D199: 19 | E199: 5 | F199: 2.408111534 | G199: 0.5330490405 | H199: 0.0008004308028 | I199: 4.601145602 | J199: 1.890738325 | K199: Inf | L199: 4.601145602 | M199: 1.651574685 | N199: 15.839819 | O199: 0.02354066991 | P199: 1 | Q199: 0.2191952824 | R199: 1 | S199: 0.5269543153
A200: MP:0004196 | B200: abnormal prenatal growth/weight/body size | C200: 654 | D200: 46 | E200: 26 | F200: 5.830164766 | G200: 2.771855011 | H200: 0.001155218375 | I200: 2.170702608 | J200: 1.40274266 | K200: Inf | L200: 2.170702608 | M200: 1.299715417 | N200: 3.695612823 | O200: 0.02980260737 | P200: 1 | Q200: 0.2261267971 | R200: 1 | S200: 0.5373523435
... 277 more rows
